{"text_format":"1","workbook":"xlsx","n_sheets":12,"sheets":["Main Page","Budget Check","Narrative","Budget ","Transferability","Teacher Quality","Private Schools","GEPA","Expenditure Descriptions","General Assurances","Program Specific Assurances","Prefills"],"not_rendered":{"charts":0,"images":3,"macros":1,"external_links":0,"defined_names":15,"comments":3,"pivot_tables":0},"unopened":[],"bounds":{"document_bytes":16777216,"sheet_cells":100000,"rows_first":2000,"rows_last":500,"rows_between":2000,"halvings":0,"cell_chars":16384,"cell_head_chars":4096},"cells_cut":0,"cells_raw":0,"read":"whole","date_system":"1900"}

{"sheet":"Main Page","index":0,"n_rows":34,"n_cols":15,"rows_kept":34,"cut":false,"hidden":false,"merged":[[0,0,0,13],[55,17,55,18],[41,16,41,18],[31,16,31,18],[47,16,49,16],[51,17,51,18],[52,17,52,18],[53,17,53,18],[45,17,46,18],[43,16,46,16],[42,17,42,18],[43,17,44,18],[35,16,35,18],[36,17,36,18],[39,17,39,18],[38,17,38,18],[3,0,3,13],[2,16,2,18],[1,0,1,13],[2,0,2,13],[54,17,54,18],[32,10,32,13],[27,10,27,13],[28,10,28,13],[29,10,29,13],[30,10,30,13],[31,10,31,13],[4,16,4,18],[17,10,17,13],[17,2,17,5],[22,3,22,5],[7,11,7,14],[0,16,0,18],[1,16,1,18],[3,16,3,18],[13,16,13,18],[18,16,18,18],[15,16,15,18],[17,16,17,18],[16,2,16,5],[16,10,16,13],[23,3,23,5],[24,3,24,5],[25,3,25,5],[20,10,20,13],[21,10,21,13],[22,10,22,13],[18,3,18,5],[18,10,18,13],[19,3,19,5],[20,3,20,5],[21,3,21,5],[26,3,26,5],[27,16,27,18],[23,10,23,13],[24,10,24,13],[25,10,25,13],[26,10,26,13],[33,10,33,13],[29,3,29,5],[4,0,4,13],[7,0,7,5],[10,0,10,13],[9,0,9,13],[14,0,14,13],[5,0,5,13],[6,0,6,13],[11,0,11,13],[12,0,12,4],[12,5,12,10],[13,0,13,4],[13,5,13,10],[27,3,27,5],[28,3,28,5]]}
["Virginia Department of Education",null,null,null,null,null,null,null,null,null,null,null,null,null,1]
["Office of ESEA Programs"]
["P. O. Box 2120"]
["Richmond, Virginia 23218-2120"]
[]
["Title II, Part A, Supporting Effective Instruction"]
[" "]
["Due by:",null,null,null,null,null,"2022-07-01"]
[null,null,null,null,null,null,{"$f":"YEAR(G8) & \"-\" & YEAR(G8)+1","v":"2022-2023"}]
[]
[]
["Select the division name from the dropdown box.  The division number will auto populate."]
["School Division:",null,null,null,null,"Albemarle County Public Schools"]
["Division Number:",null,null,null,null,{"$f":"IF(ISBLANK(F13),\" \",VLOOKUP(F13,Prefills!A6:B145,2))","v":2}]
[]
[]
[null,null,"Select the appropriate tab(s) and press the \"Print\" button.",null,null,null,null,null,null,null,"Select the appropriate button to move to the desired section within the application."]
[null,null,"Print Application",null,null,null,null,null,null,"Cell","Application Directory"]
[null,"Tab #","Check Mark","Print Application",null,null,null,null,null,null,"Push This Button to go to the Desired Page"]
[true,null,null,"Print All Tabs Below ",null,null,null,null,1,"B2"]
[false,null,null,"Budget Check",null,null,null,null,2,"D7"]
[false,null,null,"Narrative",null,null,null,null,3,"B114"]
[false,null,null,"Budget ",null,null,null,null,4,"B194"]
[false,null,null,"Transferability",null,null,null,null,5,"B2"]
[false,null,null,"Teacher Quality",null,null,null,null,6,"B38"]
[false,null,null,"Private Schools",null,null,null,null,7,"B2"]
[false,null,null,"GEPA",null,null,null,null,8,"B41"]
[false,null,null,"Expenditure Descriptions",null,null,null,null,9,"B5"]
[false,null,null,"General Assurances",null,null,null,null,10,"B2"]
[false,null,null,"Program Specific Assurances",null,null,null,null,11,"B28"]
[null,null,null,null,null,null,null,null,12,"B2"]
[null,null,null,null,null,null,null,null,13,"B2"]
[null,null,null,null,null,null,null,null,14,"B2"]
[null,null,null,null,null,null,null,null,15,"B2"]

{"sheet":"Budget Check","index":1,"n_rows":39,"n_cols":4,"rows_kept":39,"cut":false,"hidden":false,"merged":[[3,1,3,3],[4,1,4,3],[5,1,5,3],[6,1,6,3],[0,1,0,3],[1,1,1,3],[2,1,2,3],[7,1,7,3],[8,1,8,3],[9,1,9,3],[10,1,10,3],[13,1,13,3],[11,1,11,2],[12,1,12,2],[64,2,64,3],[65,2,65,3],[49,2,49,3],[51,1,51,3],[52,2,52,3],[53,1,56,1],[53,2,54,3],[55,2,56,3],[57,1,59,1],[61,2,61,3],[62,2,62,3],[63,2,63,3],[41,1,41,3],[45,1,45,3],[46,2,46,3],[48,2,48,3],[37,1,37,3],[27,1,27,3],[28,1,28,3],[23,1,23,3],[25,1,25,3],[14,1,14,3]]}
[null,"Virginia Department of Education"]
[null,"Office of ESEA Programs"]
[null,"P. O. Box 2120"]
[null,"Richmond, Virginia 23218-2120"]
[]
[null,"Title II, Part A, Supporting Effective Instruction"]
[]
[null,{"$f":"'Main Page'!G9","v":"2022-2023"}]
[null,"Autocalculated Budget Check"]
[null,"Note:  Only budget errors will display in column D.  If column D is blank after the Budget and Transferability tabs have been updated the budgets are balanced."]
[]
[null,"School Division:",null,{"$f":"'Main Page'!F13","v":"Albemarle County Public Schools"}]
[null,"Division Number:",null,{"$f":"'Main Page'!F14","v":2}]
[]
[null,"Budget Tab"]
[null,1000,"Total Personnel Services",{"$f":"IF('Budget '!O10=\"Yes\",\"\",\"Budget summary does not match the detailed budget breakdown\")","v":""}]
[null,2000,"Total Employee Benefits",{"$f":"IF('Budget '!O14=\"Yes\",\"\",\"Budget summary does not match the detailed budget breakdown\")","v":""}]
[null,3000,"Total Purchased/Contracted Services",{"$f":"IF('Budget '!O18=\"Yes\",\"\",\"Budget summary does not match the detailed budget breakdown\")","v":""}]
[null,4000,"Total Internal Services",{"$f":"IF('Budget '!O20=\"Yes\",\"\",\"Budget summary does not match the detailed budget breakdown\")","v":""}]
[null,5000,"Total Other Charges",{"$f":"IF('Budget '!O24=\"Yes\",\"\",\"Budget summary does not match the detailed budget breakdown\")","v":""}]
[null,6000,"Total Materials & Supplies",{"$f":"IF('Budget '!O28=\"Yes\",\"\",\"Budget summary does not match the detailed budget breakdown\")","v":""}]
[null,8000,"Total Capital Outlay",{"$f":"IF('Budget '!O30=\"Yes\",\"\",\"Budget summary does not match the detailed budget breakdown\")","v":""}]
[null,null,"Does the Budget Summary Match the Total Allocation?",{"$f":"IF('Budget '!H32=\"Yes\", \"\",\"Budget summary does not match the total allocation\")","v":""}]
[null,"Detailed Budget Breakdown"]
[null,null,"Does the Detailed Budget Breakdown Match the Total Allocation?",{"$f":"IF('Budget '!I41=\"Yes\", \"\",\"Detailed budget breakdown does not match the total allocation\")","v":""}]
[null,"Private School Set-Aside"]
[null,null,"Does the Private School Set-Aside Match the \"Private Schools\" Tab?",{"$f":"IF('Budget '!H35=\"Yes\", \"\",\"Private school set-aside does not match the private schools tab\")","v":""}]
[]
[null,"Transferability Tab"]
[null,1000,"Total Personnel Services",{"$f":"IF(Transferability!O14=\"Yes\",\"\",\"Transferability budget summary does not match the detailed budget breakdown\")","v":""}]
[null,2000,"Total Employee Benefits",{"$f":"IF(Transferability!O18=\"Yes\",\"\",\"Transferability budget summary does not match the detailed budget breakdown\")","v":""}]
[null,3000,"Total Purchased/Contracted Services",{"$f":"IF(Transferability!O22=\"Yes\",\"\",\"Transferability budget summary does not match the detailed budget breakdown\")","v":""}]
[null,4000,"Total Internal Services",{"$f":"IF(Transferability!O24=\"Yes\",\"\",\"Transferability budget summary does not match the detailed budget breakdown\")","v":""}]
[null,5000,"Total Other Charges",{"$f":"IF(Transferability!O28=\"Yes\",\"\",\"Transferability budget summary does not match the detailed budget breakdown\")","v":""}]
[null,6000,"Total Materials & Supplies",{"$f":"IF(Transferability!O32=\"Yes\",\"\",\"Transferability budget summary does not match the detailed budget breakdown\")","v":""}]
[null,8000,"Total Capital Outlay",{"$f":"IF(Transferability!O34=\"Yes\",\"\",\"Transferability budget summary does not match the detailed budget breakdown\")","v":""}]
[null,null,"Does the Transferability Budget Summary Match the Amount Transferred into Program?",{"$f":"IF(Transferability!H38=\"Yes\",\"\",\"Transferability budget summary does not match the amount transferred into program\")","v":""}]
[null,"Detailed Budget Breakdown"]
[null,null,"Does the Transferability Detailed Budget Breakdown Match the Transferability Allocation?",{"$f":"IF(Transferability!K44=\"Yes\", \"\",\"Transferability detailed budget breakdown does not match the transferability allocation\")","v":""}]

{"sheet":"Narrative","index":2,"n_rows":279,"n_cols":23,"rows_kept":279,"cut":false,"hidden":false,"merged":[[0,13,0,16],[55,13,55,16],[55,7,55,12],[75,2,75,3],[76,2,76,3],[78,2,78,3],[79,2,79,3],[81,2,81,3],[82,2,82,3],[1,3,1,12],[1,14,1,15],[2,3,2,12],[3,3,3,12],[3,14,3,15],[73,1,73,16],[31,1,31,6],[31,8,31,15],[33,1,33,6],[33,8,33,15],[35,1,35,6],[35,8,35,15],[42,1,42,16],[43,1,43,16],[44,3,44,4],[272,1,272,16],[273,1,273,16],[274,1,274,16],[275,1,275,16],[276,1,276,16],[277,1,277,16],[278,1,278,16],[133,2,133,3],[145,2,145,3],[145,10,145,16],[157,2,157,3],[157,10,157,16],[173,2,173,3],[173,10,173,16],[183,2,183,3],[183,10,183,16],[192,2,192,3],[192,10,192,16],[207,2,207,3],[207,10,207,16],[227,2,227,3],[227,10,227,16],[247,2,247,3],[247,10,247,16],[262,1,262,16],[263,1,263,16],[264,1,264,16],[265,1,265,16],[266,1,266,16],[268,1,268,16],[270,1,270,16],[271,1,271,16],[267,2,267,3],[267,10,267,16],[253,1,253,16],[254,1,254,16],[255,1,255,16],[256,1,256,16],[257,1,257,16],[258,1,258,16],[259,1,259,16],[260,1,260,16],[261,1,261,16],[243,1,243,16],[244,1,244,16],[245,1,245,16],[246,1,246,16],[248,1,248,16],[250,1,250,16],[251,1,251,16],[252,1,252,16],[234,1,234,16],[235,1,235,16],[236,1,236,16],[237,1,237,16],[238,1,238,16],[239,1,239,16],[240,1,240,16],[241,1,241,16],[242,1,242,16],[226,1,226,16],[228,1,228,16],[230,1,230,16],[231,1,231,16],[232,1,232,16],[233,1,233,16],[116,2,116,16],[117,2,117,16],[118,2,118,16],[119,2,119,16],[120,1,120,16],[121,1,121,16],[122,1,122,16],[126,1,126,16],[133,10,133,16],[134,1,134,16],[135,1,135,16],[142,1,142,16],[143,1,143,16],[144,1,144,16],[146,1,146,16],[141,1,141,16],[131,1,131,16],[132,1,132,16],[37,1,37,16],[38,1,38,16],[40,1,40,16],[41,2,41,3],[41,10,41,16],[109,2,109,3],[44,1,44,2],[224,1,224,16],[225,1,225,16],[44,5,45,13],[44,14,44,16],[45,1,45,2],[45,3,45,4],[45,14,45,16],[47,5,47,13],[47,14,47,16],[48,5,48,13],[48,14,48,16],[49,1,49,16],[50,1,50,16],[46,1,46,2],[46,3,46,4],[46,5,46,13],[46,14,46,16],[18,1,18,7],[18,8,18,9],[18,10,18,16],[19,1,19,7],[19,8,19,9],[19,10,19,12],[19,14,19,16],[12,3,12,12],[13,3,13,12],[14,3,14,12],[15,1,15,16],[16,1,16,16],[17,1,17,7],[17,8,17,9],[17,10,17,16],[8,18,8,20],[9,3,9,12],[9,15,9,16],[9,18,9,20],[10,3,10,12],[10,18,10,20],[4,3,4,12],[4,14,4,15],[4,18,6,21],[5,15,5,16],[6,3,6,12],[7,3,7,12],[7,14,7,15],[7,18,7,20],[8,14,8,15],[24,18,24,21],[26,1,26,16],[27,1,27,16],[28,1,28,16],[29,2,29,4],[30,1,30,16],[20,1,21,7],[20,8,20,16],[21,8,21,16],[22,1,22,16],[23,1,23,16],[24,1,24,16],[71,1,71,16],[62,8,62,12],[62,13,62,16],[63,8,63,12],[63,13,63,16],[72,2,72,3],[72,10,72,16],[56,1,56,5],[60,1,66,5],[60,8,60,12],[60,13,60,16],[70,1,70,16],[52,1,52,16],[53,1,53,16],[55,1,55,5],[58,1,58,16],[67,1,67,16],[68,2,68,16],[69,2,69,7],[69,10,69,12],[69,13,69,16],[64,8,64,12],[64,13,64,16],[65,8,65,12],[65,13,65,16],[66,7,66,12],[66,13,66,16],[61,8,61,12],[61,13,61,16],[57,1,57,16],[74,1,74,16],[75,8,76,16],[78,8,79,16],[84,2,84,3],[85,2,85,3],[87,2,87,3],[88,2,88,3],[90,2,90,3],[91,2,91,3],[81,8,82,16],[84,8,85,16],[87,8,88,16],[90,8,91,16],[93,8,94,16],[96,8,97,16],[93,2,93,3],[94,2,94,3],[96,2,96,3],[97,2,97,3],[112,10,112,16],[99,8,100,16],[102,8,103,16],[105,8,106,16],[108,8,109,16],[110,1,110,16],[111,1,111,16],[99,2,99,3],[100,2,100,3],[102,2,102,3],[103,2,103,3],[105,2,105,3],[106,2,106,3],[108,2,108,3],[125,1,125,16],[127,1,127,16],[129,1,129,16],[130,1,130,16],[128,2,128,16],[124,2,124,16],[112,2,112,3],[113,1,113,16],[115,1,115,16],[164,2,164,16],[160,2,160,16],[137,1,137,16],[138,1,138,16],[139,1,139,16],[147,1,147,16],[154,1,154,16],[155,1,155,16],[152,2,152,16],[148,2,148,16],[140,2,140,16],[181,1,181,16],[182,1,182,16],[174,1,174,16],[176,1,176,16],[177,1,177,16],[136,2,136,16],[156,1,156,16],[159,1,159,16],[149,1,149,16],[150,1,150,16],[151,1,151,16],[153,1,153,16],[158,1,158,16],[172,1,172,16],[166,1,166,16],[167,1,167,16],[170,1,170,16],[171,1,171,16],[161,1,161,16],[162,1,162,16],[163,1,163,16],[165,1,165,16],[169,1,169,16],[168,2,168,16],[223,1,223,16],[54,1,54,16],[56,7,56,12],[56,13,56,16],[55,6,56,6],[59,1,59,5],[59,7,59,12],[59,13,59,16],[215,1,215,16],[216,1,216,16],[217,1,217,16],[218,1,218,16],[219,1,219,16],[220,1,220,16],[210,1,210,16],[211,1,211,16],[212,1,212,16],[213,1,213,16],[214,1,214,16],[202,1,202,16],[203,1,203,16],[59,6,66,6],[195,2,195,16],[205,1,205,16],[39,1,39,16],[190,1,190,16],[191,1,191,16],[193,1,193,16],[185,1,185,16],[186,1,186,16],[187,1,187,16],[221,1,221,16],[222,1,222,16],[208,1,208,16],[198,1,198,16],[199,1,199,16],[200,1,200,16],[201,1,201,16],[196,2,196,16],[197,2,197,16],[204,1,204,16],[206,1,206,16],[188,1,188,16],[189,1,189,16],[184,1,184,16],[178,1,178,16],[179,1,179,16],[180,1,180,16]]}
[null,null,null,null,null,null,null,null,null,null,null,null,null,"Place a \"Checkmark\" by the applicable response."]
[null,null,null,"Virginia Department of Education",null,null,null,null,null,null,null,null,null,"X"," Original "]
[null,null,null,"Office of ESEA Programs"]
[null,null,null,"P. O. Box 2120",null,null,null,null,null,null,null,null,null,null,"Revision:   "]
[null,null,null,"Richmond, Virginia 23218-2120",null,null,null,null,null,null,null,null,null,null,"Revision #",null," "]
[null,null,null,null,null,null,null,null,null,null,null,null,null,null,"Date:"]
[null,null,null,"  A.  COVER PAGE",null,null,null,null,null,null,null,null,null,null,"Explain"]
[null,null,null,{"$f":"'Main Page'!A6","v":"Title II, Part A, Supporting Effective Instruction"},null,null,null,null,null,null,null,null,null,null,"Amendment:"]
[null,null,null,null,null,null,null,null,null,null,null,null,null,null,"Amendment # "]
[null,null,null,{"$f":"'Main Page'!$G$9","v":"2022-2023"},null,null,null,null,null,null,null,null,null,null,"Date:"]
[null,null,null,"Individual Program Application",null,null,null,null,null,null,null,null,null,null,"Explain"]
[]
[null,null,null,{"$f":"\"Due by \" & TEXT('Main Page'!G8,\"mmmm dd, yyyy\")","v":"Due by July 01, 2022"}]
[null,null,null,"Elementary and Secondary Education Act of 1965 (ESEA), as amended by"]
[null,null,null,"the Every Student Succeeds Act of 2015 (ESSA), Public Law 114-95 "]
[]
[null,"To be Completed by School Division"]
[null,"Applicant  (Legal Name of Agency):",null,null,null,null,null,null,"Division Number: ",null,"Title II, Part A Coordinator:"]
[null,{"$f":"'Main Page'!$F$13","v":"Albemarle County Public Schools"},null,null,null,null,null,null,{"$f":"'Main Page'!$F$14","v":2},null,"Debora Collins"]
[null,"Mailing Address (Street, City or Town, Zip Code):",null,null,null,null,null,null,"Phone:",null,"434-296-5820",null,null,"Ext:"]
[null,"401 McIntire Road\nCharlottesville, VA 22902",null,null,null,null,null,null,"Email:"]
[null,null,null,null,null,null,null,null,"dcollins@k12albemarle.org"]
[]
[null,"LOCAL EDUCATIONAL AGENCY CERTIFICATION"]
[null,"Use of Funds:  The applicant designated above applies for an allocation of federal assistance as appropriated under ESEA.  Funds are available to support local education reform efforts that are consistent with statewide education reform efforts to: 1) provide funding to implement promising education reform programs and school improvement programs based on evidence-based research;  2) provide a continuing source of innovative and educational improvement;  3) meet the educational needs of all students; and 4) develop and implement education programs to improve student achievement and teacher performance. \n\nSpecific uses of funds for this application are found in the \"Guidelines, Instructions, and Assurances\" document. "]
[]
[null,"Assurances:  The local educational agency assures that the Title II, Part A, program will be administered and implemented in compliance with all applicable statutes, regulations, policies, and program plans.  Additionally, the local educational agency agrees by signing below to implement the general and program specific assurances located in the application.  The assurances and signed cover page are to be retained at the division level.  "]
[]
[null,"Certification:  We hereby certify that, to the best of our knowledge, the information contained in this application is correct.  The agency named above has authorized us as its representatives to file this application, and such action is recorded in the minutes of the School Board meeting held"]
[null,"on","2022-06-09",null,null,"."]
[]
[null,null,null,null,null,null,null,null,"     "]
[null,"Superintendent’s Signature",null,null,null,null,null,null,"Board Chairperson’s Signature"]
[null,"Dr. Matthew S. Haas",null,null,null,null,null,null,"Graham Paige"]
[null,"Superintendent’s Name",null,null,null,null,null,null,"Board Chairperson’s Name"]
[null,"2022-06-09",null,null,null,null,null,null,"2022-06-09"]
[null,"Date",null,null,null,null,null,null,"Date"]
[]
[null,"Application Submission, Approval, and LEA Expenditure of Funds: This application for Federal Funds is due by July 1, 2021.  Revisions and Amendments should be submitted in a timely manner.  Please note, in order for the funds to be expendable, the electronic application must be received at the Virginia Department of Education through the file submission process of the Online Management of Education Grant Awards (OMEGA) system.  "]
[]
[null,"Page 1"]
[null,{"$f":"'Main Page'!$G$9","v":"2022-2023"},"School Division:",null,{"$f":"'Main Page'!$F$13","v":"Albemarle County Public Schools"},null,null,null,"Division Number:",{"$f":"'Main Page'!$F$14","v":2},{"$f":"'Main Page'!$A$6","v":"Title II, Part A, Supporting Effective Instruction"}]
[null," APPLICATION INFORMATION"]
[]
[null,{"$f":"YEAR('Main Page'!$G$8)-1 & \"-\" & YEAR('Main Page'!$G$8)","v":"2021-2022"},null,{"$f":"YEAR('Main Page'!$G$8)-1 & \"-\" & YEAR('Main Page'!$G$8)","v":"2021-2022"},null,"ELIGIBLE PROGRAM",null,null,null,null,null,null,null,null,{"$f":"'Main Page'!$G$9","v":"2022-2023"}]
[null," Allocation",null,"Consolidated\nYes or No",null,null,null,null,null,null,null,null,null,null,"Allocation Total"]
[null,{"$f":"IF(ISBLANK('Main Page'!$F$13),\" \",VLOOKUP('Main Page'!$F$14,Prefills!D6:F145,3))","v":295515.82},null,"No",null,"Title II, Part A, Supporting Effective Instruction",null,null,null,null,null,null,null,null,295515.82,null,null,null,null,null,null,null,{"$f":"IF(OR(D47=\"Yes\", OR(D47=\"No\")) =TRUE,\"\",\" <<== You did not choose a 'Yes' or 'No' - Please review your entries.\")","v":""}]
[null,null,null,null,null,"Transferability (funds transferred out of Title IIA)",null,null,null,null,null,null,null,null,{"$f":"N67","v":0}]
[null,null,null,null,null,"Total Allocation Available for Title II, Part A",null,null,null,null,null,null,null,null,{"$f":"SUM(O47-O48)","v":295515.82}]
[]
[null,"TRANSFERABILITY"]
[]
[null,"Section 5103(b)(2) of the Every Student Succeeds Act allows LEAs to transfer funds between certain qualifying federal programs. If funds are transferred into or out of the Title II, Part A, program, PRIOR APPROVAL IS REQUIRED, and a separate Transferability approval form must be submitted. The transfer request form is available at"]
[null,"Transfer Request Form"]
[null,"1) If funds are to be transferred INTO Title II, Part A, complete Section A."]
[null,"A. Program from which funds will be transferred:",null,null,null,null,"TO","Program TO which funds will be transferred:",null,null,null,null,null,"Amount"]
[null,"Title IV, Part A",null,null,null,null,null,"Title II, Part A, Supporting Effective Instruction"]
[]
[null,"2) If funds are to be transferred OUT of Title II, Part A, complete Section B below.  "]
[null,"B.  Program from which funds will be transferred:",null,null,null,null,"TO","Select program(s) TO which funds will be transferred:",null,null,null,null,null,"Amount"]
[null,"Title II, Part A",null,null,null,null,null,null,"Title I, Part A"]
[null,null,null,null,null,null,null,null,"Title I, Part C"]
[null,null,null,null,null,null,null,null,"Title I, Part D"]
[null,null,null,null,null,null,null,null,"Title III, Part A"]
[null,null,null,null,null,null,null,null,"Title IV, Part A"]
[null,null,null,null,null,null,null,null,"Title V, Part B"]
[null,null,null,null,null,null,null,"Total",null,null,null,null,null,{"$f":"SUM(N61:Q66)","v":0}]
[]
[null,null,"Transferability is intended, but official paperwork will be submitted when final allocations are released."]
[null,null,"Transferability paperwork has been approved. ",null,null,null,null,null,"Date approved:"]
[]
[null,"Page 2"]
[null,{"$f":"'Main Page'!$G$9","v":"2022-2023"},"School Division:",null,{"$f":"'Main Page'!$F$13","v":"Albemarle County Public Schools"},null,null,null,"Division Number:",{"$f":"'Main Page'!$F$14","v":2},{"$f":"'Main Page'!$A$6","v":"Title II, Part A, Supporting Effective Instruction"}]
[null,"REVISIONS AND AMENDMENTS"]
[null,"Place an \"X\" in the first box indicating whether it is a revision or amendment. Enter the date of the revision or amendment.  Indicate the tab(s) that have been changed. Provide a concise description of changes (for example, \"Programmatic Changes--purchase of additional reading materials, object code 6000; Budget Changes--decreased travel budget in object code 5000 and increased materials to purchase additional reading materials in object code 6000\"). When completing an amendment, changes to the program overview may be reflected as additions at the end of the narrative.\n\nNOTE: Any changes to the program budget should first be reflected in an amended application, followed by a budget transfer within 7 business days of approval of the amended application. Budget transfers will not be accepted without an approved amended application reflecting budget changes."]
[null,1,"Revision:",null,null,"Date:"]
[null,null,"Amendment:",null," ","Date:"]
[]
[null,2,"Revision:",null,null,"Date:"]
[null,null,"Amendment:",null," ","Date:"]
[]
[null,3,"Revision:",null,null,"Date:"]
[null,null,"Amendment:",null," ","Date:"]
[]
[null,4,"Revision:",null,null,"Date:"]
[null,null,"Amendment:",null," ","Date:"]
[]
[null,5,"Revision:",null,null,"Date:"]
[null,null,"Amendment:",null," ","Date:"]
[]
[null,6,"Revision:",null,null,"Date:"]
[null,null,"Amendment:",null,null,"Date:"]
[]
[null,7,"Revision:",null,null,"Date:"]
[null,null,"Amendment:",null," ","Date:"]
[]
[null,8,"Revision:",null,null,"Date:"]
[null,null,"Amendment:",null," ","Date:"]
[]
[null,9,"Revision:",null,null,"Date:"]
[null,null,"Amendment:",null," ","Date:"]
[]
[null,10,"Revision:",null,null,"Date:"]
[null,null,"Amendment:",null," ","Date:"]
[]
[null,11,"Revision:",null,null,"Date:"]
[null,null,"Amendment:",null," ","Date:"]
[]
[null,12,"Revision:",null,null,"Date:"]
[null,null,"Amendment:",null," ","Date:"]
[]
[null,"Page 3"]
[null,{"$f":"'Main Page'!$G$9","v":"2022-2023"},"School Division:",null,{"$f":"'Main Page'!$F$13","v":"Albemarle County Public Schools"},null,null,null,"Division Number:",{"$f":"'Main Page'!$F$14","v":2},{"$f":"'Main Page'!$A$6","v":"Title II, Part A, Supporting Effective Instruction"}]
[null,"B.  PROGRAM OVERVIEW (4 PAGES)"]
[]
[null,"The purpose of Title II, Part A, is to improve students’ academic achievement by increasing the capacity of states, local educational agencies, schools, and local communities to—"]
[null,1,"increase student achievement consistend with the challenging State academic standards;"]
[null,2,"improve the quality and effectiveness of teachers, principals, and other school leaders;"]
[null,3,"increase the number of teachers, principals, and other school leaders who are effective in improving student academic achievement in schools; and"]
[null,4,"provide low-income and minority students greater access to effective teachers, principals, and other school leaders."]
[]
[null,"Narrative Boxes"]
[null,"Describe the process used for development of the Title II, Part A,  plan and identification of priorities, by addressing each of the following:"]
[]
[null,"1. ","STAKEHOLDER ENGAGEMENT/NEEDS ASSESSMENT: Describe the consultation and needs assessment process used in development of the program, including a description of the stakeholders involved in the process. (Section 2103(b)(3))"]
[null,"Albemarle County Public Schools' central approach to designing our professional development program is to support personalized and differentiated learning opportunities relevant to our teachers' needs and aligned to our School Board's vision, mission and goals.  Annually, each of our schools undergoes a comprehensive needs assessment, based on academic and culture feedback. The process includes analysis of information from SOL assessments and end of year assessments, as well as teacher, student and parent surveys.  A school improvement team then develops a school improvement plan.  Each school uses a \"plan, do, study, act\" process to implement their school improvement plan.  In addition, division staff meet with each school four times throughout the year to discuss goals and progress toward the identified goals.  Each school improvement plan has embedded professional learning goals, strategies, and activities that ensure teachers have the needed skills to provide the appropriate learning experiences for their students.  After identifying school goals, each principal works with teachers to identify their professional goals for the school year. These professional goals are used as part of the teacher appraisal system to hold teachers accountable for student learning. Instructional coaches work with teachers to hone their goals, determine strategies and activities to meet their goals, and ways to evaluate whether the goals have been met."]
[null,"In addition to our established approaches described above, the ACPS needs assessment process was ongoing throughout school year 2021-2022, as our school division adapted programs and instructional practices based on input from a wide variety of stakeholders: students, parents, teachers, support staff, nurses, leadership, and members of the wider Albemarle community.  Surveys, virtual meetings, board meeting comment sessions, and special virtual programs were all tools used to measure needs and to design our instructional methods, practices, and federal programs for the last school year, as well as for school year 2022-2023. Maximizing intervention teaching time and academic supports to address learning loss from pandemic-related academic setbacks was shown to continue to be a clear priority among stakeholders.  ACPS added new teachers and counselors based on the needs assessment results. Instructional coaches to provide ongoing, job-embedded support for these new and inexperienced teachers is a crucial piece to ensure that academic, social and emotional recovery can occur in school year 2022-2023 to meet the expectations of all stakeholders."]
[]
[null,"2. ","USE OF DATA: Describe results of prior activities and how the division will use data and ongoing consultation to continually update and improve activities supported with Title II, Part A, funds. (Section 2103(b)(2)(D)). Describe progress made toward meeting measurable objectives from 2021 application."]
[null,"In order to support best practices and meet the evolving needs of contemporary learners through sustained, meaningful professional development, Albemarle Schools relies on our intensive instructional coaching model.  This model is designed to provide job-embedded professional development for individual teachers, professional learning communities, and grade level teams.  Instructional coaching is an essential part of our professional development practices in ACPS.  Title II grant funds have been used for some time to fund four instructional coaches, who serve the needs of novice and other teachers at schools identified as having the greatest challenges, due to high percentages of inexperienced teachers combined with higher than average rates of poverty and minority student populations.  Research and our practice show that ongoing, job-embedded professional development has a greater impact on instructional practices than one-time events. Instructional coaches are partners who promote the transfer of teacher ideas into classroom practice by working side-by-side with teachers to plan, deliver, and analyze their instruction throughout the school year.  The coaches collect data and provide feedback needed for professional growth that aligns with teacher goals and achieving those goals. Community surveys are an important tool for collecting and evaluating data, including one in December 2020 entitled Portrait of A Graduate, which measured the skills viewed as most important for "]
[null,"ACPS graduates by teachers and parents.  Top-ranked were communication, critical thinking and adaptability, which is a focus for the ACPS strategic plan, teacher growth and skill development through instructional coaching teacher development.  \n\nRegarding ACPS measurable objectives from the 2021-22 school year, we continue to emphasize the use of student data to inform instruction and using integrated curriculum design and practice to promote the goal of 90% pass rates on SOL scores.  We continue to strive for our goal of 100% licensure rates of ACPS teachers.  Currently 96 percent of teachers are licensed with 94 percent of teachers in ACPS are teaching within their endorsed or licensed areas of instruction.  The referenced results were shown on the January 2022 IPAL report, meaning progress has likely occurred toward the goals in the ensuing months."]
[]
[null,"Page 4"]
[null,{"$f":"'Main Page'!$G$9","v":"2022-2023"},"School Division:",null,{"$f":"'Main Page'!$F$13","v":"Albemarle County Public Schools"},null,null,null,"Division Number:",{"$f":"'Main Page'!$F$14","v":2},{"$f":"'Main Page'!$A$6","v":"Title II, Part A, Supporting Effective Instruction"}]
[null,"B.  PROGRAM OVERVIEW (CONTINUED)"]
[]
[null,"3.","TEACHER QUALITY: Describe results of the 2021-2022 Instructional Personnel and Licensure (IPAL) report.  Describe how the division ensures that students are taught by qualified and effective teachers meeting Virginia's licensing and professional teaching requirements. (Section 2001(2-3))"]
[null,"We continue to strive toward the goal for 100% of ACPS classes being taught by licensed and properly endorsed teachers.  As noted, our percentage in the 2021-22 school year was 94.4%, which remains the same as the prior year. Our percentage of teachers with less than a year's experience has increased to 5.75%, and the number of provisionally licensed teachers has also increased to 54 from 37 in the previous school year. \n \nThe Human Resources department is committed to hiring teachers who have received or are eligible to receive their teaching license in the areas in which they will teach.  School division leaders meet on an ongoing basis with all principals and secondary principals, in particular, regarding teachers who are teaching out of their content areas to ensure the teachers take and pass appropriate Praxis tests, where applicable."]
[]
[]
[null,"4.","PRIORITIZING FUNDS: Describe how the school division will prioritize funds to schools that are implementing comprehensive support and improvement activities and targeted support and improvement activities under section 1111(d) and have the highest percentage of children counted under section 1124(c). If there are no schools identified as comprehensive or targeted support schools, how does the division prioritize funding?  (Section 2103(b)(2)(C))"]
[null,"While we do not have any schools identified for comprehensive or targeted support under section 111(d), ACPS prioritizes funds under Title II for providing instructional coaches for schools identified as being the most challenged in achieving academic goals due to high poverty and minority populations, as well as inexperienced teacher rates higher than the division average of 12% for teachers with less than three years' experience."]
[]
[]
[null,"Page 5"]
[null,{"$f":"'Main Page'!$G$9","v":"2022-2023"},"School Division:",null,{"$f":"'Main Page'!$F$13","v":"Albemarle County Public Schools"},null,null,null,"Division Number:",{"$f":"'Main Page'!$F$14","v":2},{"$f":"'Main Page'!$A$6","v":"Title II, Part A, Supporting Effective Instruction"}]
[null,"B.  PROGRAM OVERVIEW (CONTINUED)"]
[]
[null,"5. ","ALIGNMENT TO STANDARDS: Describe how the program activities will align with Virginia's accountability plan, and how the activities are aligned to challenging State academic standards. Describe how the activities funded from Title II, Part A, are expected to increase student achievement. (Section 2103(b)(2)(A))"]
[null,"Professional learning opportunities and requirements in our division are aligned to all professional standards, and at the heart of our professional development model is the belief that adult learners, like our students, grow most when they own their learning and also have the opportunity to learn with colleagues, including their instructional coaches.  Albemarle Schools designs professional development to support teacher growth which directly impacts student learning. To bring this belief to fruition, we strategically build a program that considers the importance of teachers' personal and professional growth goals, school/site-based improvement goals, division-wide needs especially as related in 2021-22 to the need for professional development in new initiatives set by School Board priorities. A strong professional development program both attends to the scope of these needs and supports the division in ensuring the alignment of current learning opportunities to the division's strategic priorities and goals.  Shifting grading practices and differentiating instruction are two key strategies mentioned in the secondary school redesign efforts. "]
[]
[]
[null,"6.","PROFESSIONAL GROWTH: Describe the school division's system of professional growth and improvement, such as induction for teachers, principals, or other school leaders and opportunities for building the capacity of teachers and opportunities to develop meaningful teacher leadership. (Section 2103(b)(2)(B))"]
[null,"All new employees transition to the school division through an induction program. For teachers, attendance at a New Teacher Academy occurs in August, before school starts, when they are introduced to the division vision, mission, priorities, and strategic practices.  At this time, novice teachers meet their mentor instructional coach, with whom they meet every two weeks throughout the school year. In addition to instructional coaches as mentors/coaches, each new teacher has a mentor teacher assigned at their school. Throughout the school year, new teachers receive professional development for division initiatives and framework structures such as Professional Learning Communities (PLC), Responsive Classroom or Developmental Design, P-Based Learning (PBL), and Framework for Quality Learning (FQL).  "]
[]
[]
[null,"Page 6"]
[null,{"$f":"'Main Page'!$G$9","v":"2022-2023"},"School Division:",null,{"$f":"'Main Page'!$F$13","v":"Albemarle County Public Schools"},null,null,null,"Division Number:",{"$f":"'Main Page'!$F$14","v":2},{"$f":"'Main Page'!$A$6","v":"Title II, Part A, Supporting Effective Instruction"}]
[null,"B.  PROGRAM OVERVIEW (CONTINUED)"]
[]
[null,"7. ","PROFESSIONAL DEVELOPMENT: If funds are to be used for professional development, describe how they meet the statutory definition of professional development in Section 8101(42), which requires that professional development be: sustained; intensive; collaborative; job-embedded; data-driven; and classroom focused. Describe the alignment to overarching division strategic goals. (Section 2103(b)(3)(E))  (If funds are not used for professional development, indicate N/A.) Examples of professional development activities may include items from any object code, such as mentors, professional development/instructional coaches, contracted services, conferences, professional learning communities (PLC); leadership development and associated costs."]
[null,"Philosophically, Albemarle County's professional development program is designed to support personalized and differentiated learning opportunities that are relevant to our teachers' needs and offered through a variety of approaches.  Instructional coaching as the cornerstone, provides collaborative, intensive, ongoing, and job-embedded professional development that is meaningful and based in research and job-retention evidence.  In working with a coach, a teacher hones a particular skill or element of his/her practice while also developing a more reflective approach to planning, delivering and analyzing teaching.  Our teacher-driven instructional coaching model, in which educators work side by side, has been instrumental in creating a more reflective professional environment for our division and in developing and retaining quality teachers."]
[]
[]
[null,"8. ","PROFESSIONAL DEVELOPMENT: If funding is to be used for professional development activities, cite evidence base used for decision, including anticipated outcomes. Provide impact data on any prior implementation.. (Section 2103(b)(3)(E))  (If funds are not used for professional development, indicate N/A.)  For new initiatives, cite  research base to support the specific decisions and why it is believed that the activities will be successful with the targeted population(s)."]
[null,"For many years, ACPS has used instructional coaching as an evidence-based professional development practice in accordance with research conducted under the direction of Jim Knight and Elena Aguilar, experts on instructional coaching. The partnership of coaches and teachers yields the practices of offering support, feedback, and intensive professional learning that can be targeted to individual teacher needs. The annual benefits for the division have included increased teacher retention, consistency among instructional methods and classroom management approaches among schools, and meeting state and federal benchmarks.  "]
[null,"Our school division's Professional Development webpage is replete with opportunities for teachers and staff to further their professional goals and enhance their capabilities to provide excellent instruction and guidance to our students.  Specific professional development programs include courses in Responsive Classroom, Supporting EL Learners, Fine Arts, Literacy instruction, AVID, differentiation as well as teacher book study groups; summer leadership institutes and PLC's feature strongly in ongoing PD activities.  ACPS offers micro credentialing and certification in Culturally Responsive Teaching, with Leadership study for CRT, as well.  These referenced programs are integral to our instructional coaching model as support for teacher growth, aligned with individual teacher goals."]
[]
[null,"9. ","CLASS-SIZE REDUCTION: If funding is to be used for class-size reduction, cite evidence base used for decision, including how the local context aligns with research-based practice. Provide impact data on any prior implementation, if applicable. How does the division ensure effectiveness of teachers hired to reduce class size? How will the impact of the smaller class sizes be measured? (Section 2103(b)(3)(D)) (If funds are not used for class-size reduction, indicate N/A.) Note: Title II, Part A funds may not be used to meet K-3 Standards of Quality (SOQ) requirements. Federal funds may only be used to reduce class sizes below the state-mandated class sizes."]
[]
[]
[]
[null,"Page 7"]
[null,{"$f":"'Main Page'!$G$9","v":"2022-2023"},"School Division:",null,{"$f":"'Main Page'!$F$13","v":"Albemarle County Public Schools"},null,null,null,"Division Number:",{"$f":"'Main Page'!$F$14","v":2},{"$f":"'Main Page'!$A$6","v":"Title II, Part A, Supporting Effective Instruction"}]
[null,"C.  COORDINATION OF SERVICES (2 PAGES)"]
[]
[null,"Describe the partnerships within the division among the programs in this application and other federal, state and/or local programs in the delivery of services to the targeted population(s).  Describe the collaboration of program staff, parents, and the community to provide services and activities that will contribute to the attainment of the measurable objectives in this application. Describe any partnerships with local universities, regional collaborations or other entities to improve teacher and principal quality through such efforts as high-quality professional development for teachers, principals and other school leaders; recruitment; mentoring, etc."]
[null,"Our school division regularly coordinates with and is supported by the University of Virginia School of Education and Human Development.  Forms of support include consultation, service on advisory committees, online and on-site graduate level courses, workshops, seminars, and partnerships with individual schools.  \nThe school division hosts and works with James Madison University to provide cohort programs for teachers and leaders, including a Masters in Leadership or Certification in Leadership.  In addition, an agreement with Old Dominion University has created a cohort for teachers seeking an endorsement in library media sciences that funds over 75% of their coursework.  These specific partnerships are in addition to the division's general Professional Development Reimbursement Program available to all teachers for coursework and conference attendance on topics they select.  \nBeyond regional universities, our school division maintains partnerships with regional non-profit organizations whose education missions support ours.  Programs with Montpelier and Monticello, for example, provide unique opportunities for teachers to work with content experts and current scholarly research.\nWithin our division on a monthly basis, the coordinators of the federal programs meet to collaborate and ensure that the services provided through and by the grant programs meet the needs of our students and school division staff.  Title I, Part A and Part C, Title II, Title III/ESOL, Homeless, and Adult ESOL are included in these collaborative work sessions. "]
[null,"The Office of Instruction, Title I and Title III staff work to develop increased parent involvement across the division, to spur instructional support at home from parents and to increase parent participation at school events. The Adult ESOL program provides Family Literacy classes for Title I ESOL students and families; the ESOL program has in the last year provided Technology Support Nights for parents of EL students. Tutors for identified Homeless students are provided through the Title I grant, to assist and support academics for these at-risk students.  Coordination among federal program leaders and the ACPS Leadership Team remains a priority to further ensure academic success in schools where percentages of at-risk student populations are higher than average for the division."]
[]
[]
[]
[null,"Page 8"]
[null,{"$f":"'Main Page'!$G$9","v":"2022-2023"},"School Division:",null,{"$f":"'Main Page'!$F$13","v":"Albemarle County Public Schools"},null,null,null,"Division Number:",{"$f":"'Main Page'!$F$14","v":2},{"$f":"'Main Page'!$A$6","v":"Title II, Part A, Supporting Effective Instruction"}]
[null,"C.  COORDINATION OF SERVICES (CONTINUED)"]
[]
[]
[]
[]
[]
[]
[null,"Page 9"]
[null,{"$f":"'Main Page'!$G$9","v":"2022-2023"},"School Division:",null,{"$f":"'Main Page'!$F$13","v":"Albemarle County Public Schools"},null,null,null,"Division Number:",{"$f":"'Main Page'!$F$14","v":2},{"$f":"'Main Page'!$A$6","v":"Title II, Part A, Supporting Effective Instruction"}]
[null,"D.  MEASURABLE OBJECTIVES "]
[]
[null,"1.","State up to eight measurable objectives that will guide the development of the program to be funded with the requested ESEA federal funds. For examples of measurable objectives, see Guidance pp.6-7"]
[null,null,"What is a Measurable Objective?\n A measurable objective has four components:\na) Subject (Who is the target or focus?);\nb) Behavior (What will be changed/improved?);\nc) Specific criteria for assessing improvement, readiness, or achievement, and tools to be used to measure effectiveness; and\nd) Time period for performance or assessment. "]
[null,"2.","Describe the evidence-based research that support the services and activities (programs, models, instructional methods, and techniques) that will be implemented to achieve each objective and that will be supported by the requested funds. \nNOTE: For class-size reduction and professional development activities, cite at least one research study that supports the initiative for your division's context. Note that conferences, unless part of a larger strategic initiative, do not constitute high quality professional development. "]
[null,"Measurable Objective 1:"]
[null,"Throughout the 2022-23 school year, language arts, mathematics, science, and social studies teachers will use student performance data to inform instruction.  They will use appropriate curriculum integration (i.e., instructional practice, effective use of technology, and interdisciplinary instruction) to move the division toward its goal of 90% pass rates on the Reading, Math, Science, and Social Studies SOLs, and improved pass rates for identified subgroups."]
[]
[]
[null,"Evidence-based research services and activities that will be implemented and supported by the requested funds to achieve the objective:"]
[null,"The Instructional Coaches serve as instructional resources for mathematics, reading/language arts, science, and social studies curricula, instruction, and assessment.  A key objective for each Instructional Coach will be to assist teachers in using data as a basis for planning and implementing improved instruction.  They will also collaborate with other staff for appropriate curriculum integration as well as focus on providing teachers specific strategies for improving core subject outcomes for struggling readers.\nInstructional Coaching as a job-embedded professional learning opportunity is, according to U.S. Department of Education officials, \"ongoing, high quality, job-embedded professional development to staff in a school and is clearly tied to improving instruction in multiple ways. First, the requirement that professional development be \"job-embedded\" connotes a direct connection between a teacher's work in the classroom and the professional development the teacher receives. (National Archives and Records Administration, 2009, p. 58479)\"."]
[]
[]
[null,"Page 10"]
[null,{"$f":"'Main Page'!$G$9","v":"2022-2023"},"School Division:",null,{"$f":"'Main Page'!$F$13","v":"Albemarle County Public Schools"},null,null,null,"Division Number:",{"$f":"'Main Page'!$F$14","v":2},{"$f":"'Main Page'!$A$6","v":"Title II, Part A, Supporting Effective Instruction"}]
[null,"D.  MEASURABLE OBJECTIVES (CONTINUED)"]
[]
[null,"Measurable Objective 2:"]
[null,"By the end of the 2022-2023 school year, 100% of teachers in Albemarle County will be properly licensed in the state of Virginia and teaching within their endorsed areas of instruction."]
[]
[]
[null,"Evidence-based research services and activities that will be implemented and supported by the requested funds to achieve the objective:"]
[null,"In school year 2022-2023, any remaining provisionally licensed teachers will be offered counseling by Albemarle County's Human Resources Department and by Instructional Coaches, to ensure that all teachers become properly licensed for school year 2023-2024. \n\nDivision leaders will continue to meet with secondary and other principals, as needed, regarding teachers teaching out of their content areas to ensure that these teachers take and pass appropriate Praxis tests, where applicable.  For IPAL endorsement area errors that are due to improper coding by principals, division leaders will work with principals to correct coding-related inaccuracies to eliminate these errors."]
[]
[]
[null,"Measurable Objective 3:"]
[null,"By June 2023, 100% of teachers in their first three years of teaching in our division will receive end-of-year summative evaluations of proficient or higher."]
[]
[]
[null,"Evidence-based research services and activities that will be implemented and supported by the requested funds to achieve the objective:"]
[null,"Our instructional coaching model and the coaches supported through grant funds will provide the teacher support to reach this goal through their two-year structured work with novice teachers.  Our Teacher Induction program features an additional layer of novice teacher support: The New Teacher Network. Through this Network, novices meet three to four times a year with ACPS Lead Coaches for additional community linkage and building connection to school division leadership. A midyear professional development session for Lead Coaches and first year teachers also will take place, with focus on classroom relationships and social-emotional learning, for example."]
[]
[]
[null,"Page 11"]
[null,{"$f":"'Main Page'!$G$9","v":"2022-2023"},"School Division:",null,{"$f":"'Main Page'!$F$13","v":"Albemarle County Public Schools"},null,null,null,"Division Number:",{"$f":"'Main Page'!$F$14","v":2},{"$f":"'Main Page'!$A$6","v":"Title II, Part A, Supporting Effective Instruction"}]
[null,"D.  MEASURABLE OBJECTIVES (CONTINUED)"]
[]
[null,"Measurable Objective 4:"]
[]
[]
[]
[null,"Evidence-based research services and activities that will be implemented and supported by the requested funds to achieve the objective:"]
[]
[]
[]
[null,"Measurable Objective 5:"]
[]
[]
[]
[null,"Evidence-based research services and activities that will be implemented and supported by the requested funds to achieve the objective:"]
[]
[]
[]
[null,"Page 12"]
[null,{"$f":"'Main Page'!$G$9","v":"2022-2023"},"School Division:",null,{"$f":"'Main Page'!$F$13","v":"Albemarle County Public Schools"},null,null,null,"Division Number:",{"$f":"'Main Page'!$F$14","v":2},{"$f":"'Main Page'!$A$6","v":"Title II, Part A, Supporting Effective Instruction"}]
[null,"D.  MEASURABLE OBJECTIVES (CONTINUED)"]
[]
[null,"Measurable Objective 6:"]
[]
[]
[]
[null,"Evidence-based research services and activities that will be implemented and supported by the requested funds to achieve the objective:"]
[]
[]
[]
[null,"Measurable Objective 7:"]
[]
[]
[]
[null,"Evidence-based research services and activities that will be implemented and supported by the requested funds to achieve the objective:"]
[]
[]
[]
[null,"Page 13"]
[null,{"$f":"'Main Page'!$G$9","v":"2022-2023"},"School Division:",null,{"$f":"'Main Page'!$F$13","v":"Albemarle County Public Schools"},null,null,null,"Division Number:",{"$f":"'Main Page'!$F$14","v":2},{"$f":"'Main Page'!$A$6","v":"Title II, Part A, Supporting Effective Instruction"}]
[null,"D.  MEASURABLE OBJECTIVES (CONTINUED)"]
[]
[null,"Measurable Objective 8:"]
[]
[]
[]
[null,"Evidence-based research services and activities that will be implemented and supported by the requested funds to achieve the objective:"]
[]
[]
[]
[null,"Page 14"]

{"sheet":"Budget ","index":3,"n_rows":346,"n_cols":17,"rows_kept":346,"cut":false,"hidden":false,"merged":[[341,14,341,15],[341,16,341,17],[342,10,342,13],[342,14,342,15],[342,16,342,17],[336,10,336,13],[336,14,336,15],[336,16,336,17],[338,16,338,17],[339,10,339,13],[339,14,339,15],[339,16,339,17],[325,14,325,15],[325,16,325,17],[326,10,326,13],[326,14,326,15],[326,16,326,17],[327,10,327,13],[334,10,334,13],[334,14,334,15],[334,16,334,17],[335,10,335,13],[335,14,335,15],[335,16,335,17],[330,14,330,15],[330,16,330,17],[337,16,337,17],[338,10,338,13],[338,14,338,15],[325,10,325,13],[11,2,11,6],[11,7,11,10],[12,2,12,6],[12,7,12,10],[13,2,13,6],[13,7,13,10],[15,2,15,6],[340,10,340,13],[340,14,340,15],[340,16,340,17],[315,10,315,13],[315,14,315,15],[315,16,315,17],[326,8,326,9],[316,1,316,7],[316,8,316,9],[327,14,327,15],[327,16,327,17],[328,10,328,13],[328,14,328,15],[328,16,328,17],[329,10,329,13],[329,14,329,15],[329,16,329,17],[331,10,331,13],[331,14,331,15],[331,16,331,17],[299,10,299,13],[299,14,299,15],[290,16,290,17],[291,10,291,13],[291,14,291,15],[343,14,343,15],[343,16,343,17],[9,11,34,13],[30,14,30,17],[34,7,34,10],[29,14,29,17],[27,14,27,17],[23,14,23,17],[19,14,19,17],[17,14,17,17],[13,14,13,17],[9,14,9,17],[28,14,28,17],[24,14,26,17],[20,14,22,17],[18,14,18,17],[14,14,16,17],[10,14,12,17],[31,16,31,17],[332,10,332,13],[332,14,332,15],[332,16,332,17],[333,10,333,13],[333,14,333,15],[333,16,333,17],[297,10,297,13],[297,14,297,15],[297,16,297,17],[298,10,298,13],[298,14,298,15],[298,16,298,17],[341,10,341,13],[291,16,291,17],[299,16,299,17],[300,14,300,15],[300,16,300,17],[301,1,301,17],[292,10,292,13],[292,14,292,15],[292,16,292,17],[293,10,293,13],[293,14,293,15],[293,16,293,17],[294,10,294,13],[294,14,294,15],[294,16,294,17],[295,10,295,13],[295,14,295,15],[295,16,295,17],[296,10,296,13],[296,14,296,15],[296,16,296,17],[296,8,296,9],[297,1,297,7],[294,1,294,7],[283,16,283,17],[284,10,284,13],[284,14,284,15],[284,16,284,17],[285,10,285,13],[285,14,285,15],[285,16,285,17],[286,10,286,13],[286,14,286,15],[286,16,286,17],[287,16,287,17],[288,10,288,13],[288,14,288,15],[288,16,288,17],[289,10,289,13],[289,14,289,15],[289,16,289,17],[278,10,278,13],[282,10,282,13],[282,14,282,15],[282,16,282,17],[273,1,273,7],[275,14,275,15],[275,16,275,17],[273,14,273,15],[273,16,273,17],[271,16,271,17],[272,14,272,15],[272,16,272,17],[281,1,281,7],[255,10,255,12],[266,1,266,7],[266,8,266,9],[267,1,267,7],[275,1,275,7],[275,8,275,9],[278,1,278,7],[278,8,278,9],[274,1,274,7],[274,8,274,9],[279,1,279,7],[279,8,279,9],[276,16,276,17],[277,14,277,15],[277,16,277,17],[278,14,278,15],[276,1,276,7],[275,10,275,13],[266,10,266,13],[244,1,244,9],[244,13,244,15],[244,16,244,17],[245,1,245,9],[245,13,245,15],[245,16,245,17],[246,1,246,9],[246,13,246,15],[246,16,246,17],[247,1,247,9],[247,13,247,15],[247,16,247,17],[248,1,248,9],[248,13,248,15],[248,16,248,17],[249,1,249,9],[249,13,249,15],[249,16,249,17],[244,10,244,12],[245,10,245,12],[248,10,248,12],[249,10,249,12],[246,10,246,12],[247,10,247,12],[238,1,238,9],[238,13,238,15],[238,16,238,17],[239,1,239,9],[239,13,239,15],[239,16,239,17],[240,1,240,9],[240,13,240,15],[240,16,240,17],[241,1,241,9],[241,13,241,15],[241,16,241,17],[242,1,242,9],[242,13,242,15],[242,16,242,17],[243,1,243,9],[243,13,243,15],[243,16,243,17],[242,10,242,12],[243,10,243,12],[240,10,240,12],[238,10,238,12],[239,10,239,12],[241,10,241,12],[233,1,233,9],[233,13,233,15],[233,16,233,17],[234,1,234,9],[234,13,234,15],[234,16,234,17],[235,1,235,9],[235,13,235,15],[235,16,235,17],[236,1,236,9],[236,13,236,15],[236,16,236,17],[237,1,237,9],[237,13,237,15],[237,16,237,17],[236,10,236,12],[237,10,237,12],[233,10,233,12],[234,10,234,12],[235,10,235,12],[229,1,229,9],[229,13,229,15],[229,16,229,17],[230,1,230,9],[230,13,230,15],[230,16,230,17],[231,1,231,9],[231,13,231,15],[231,16,231,17],[226,10,226,12],[227,10,227,12],[228,10,228,12],[229,10,229,12],[230,10,230,12],[231,10,231,12],[232,1,232,9],[232,13,232,15],[232,16,232,17],[232,10,232,12],[224,1,224,9],[224,13,224,15],[224,16,224,17],[225,1,225,9],[225,13,225,15],[225,16,225,17],[224,10,224,12],[225,10,225,12],[226,1,226,9],[226,13,226,15],[226,16,226,17],[227,1,227,9],[227,13,227,15],[227,16,227,17],[228,1,228,9],[228,13,228,15],[228,16,228,17],[210,1,210,9],[210,13,210,15],[210,16,210,17],[211,13,211,15],[211,16,211,17],[212,1,212,17],[207,10,207,12],[210,10,210,12],[208,10,208,12],[209,10,209,12],[206,10,206,12],[203,10,203,12],[204,10,204,12],[205,10,205,12],[206,1,206,9],[206,13,206,15],[206,16,206,17],[202,1,202,9],[202,13,202,15],[202,16,202,17],[198,10,198,12],[201,10,201,12],[202,10,202,12],[200,10,200,12],[203,1,203,9],[203,13,203,15],[203,16,203,17],[204,1,204,9],[204,13,204,15],[204,16,204,17],[205,1,205,9],[205,13,205,15],[205,16,205,17],[209,13,209,15],[209,16,209,17],[198,1,198,9],[198,13,198,15],[198,16,198,17],[194,1,194,9],[194,13,194,15],[194,16,194,17],[199,1,199,9],[199,13,199,15],[199,16,199,17],[196,10,196,12],[199,10,199,12],[200,1,200,9],[200,13,200,15],[200,16,200,17],[201,1,201,9],[201,13,201,15],[201,16,201,17],[179,16,179,17],[180,1,180,9],[180,13,180,15],[180,16,180,17],[188,16,188,17],[189,1,189,9],[189,13,189,15],[189,16,189,17],[190,1,190,9],[190,13,190,15],[190,16,190,17],[191,1,191,9],[191,13,191,15],[191,16,191,17],[190,10,190,12],[191,10,191,12],[179,1,179,9],[179,13,179,15],[185,10,185,12],[186,10,186,12],[187,10,187,12],[189,10,189,12],[181,10,181,12],[182,10,182,12],[179,10,179,12],[180,10,180,12],[181,1,181,9],[181,13,181,15],[178,13,178,15],[178,16,178,17],[166,1,166,17],[174,10,174,12],[175,10,175,12],[173,13,173,15],[173,16,173,17],[174,1,174,9],[174,13,174,15],[174,16,174,17],[175,1,175,9],[175,13,175,15],[175,16,175,17],[178,10,178,12],[159,1,159,9],[159,13,159,15],[159,16,159,17],[160,1,160,9],[160,13,160,15],[160,16,160,17],[176,10,176,12],[177,10,177,12],[177,1,177,9],[177,13,177,15],[177,16,177,17],[178,1,178,9],[158,10,158,12],[156,10,156,12],[162,1,162,9],[162,13,162,15],[162,16,162,17],[168,1,168,17],[169,1,169,17],[176,1,176,9],[176,13,176,15],[176,16,176,17],[162,10,162,12],[163,10,163,12],[163,1,163,9],[163,13,163,15],[163,16,163,17],[164,16,164,17],[164,13,164,15],[165,1,165,17],[161,1,161,9],[161,13,161,15],[161,16,161,17],[159,10,159,12],[160,10,160,12],[161,10,161,12],[151,16,151,17],[152,1,152,9],[152,13,152,15],[152,16,152,17],[153,1,153,9],[153,13,153,15],[153,16,153,17],[154,1,154,9],[154,13,154,15],[154,16,154,17],[149,10,149,12],[150,10,150,12],[157,16,157,17],[158,1,158,9],[158,13,158,15],[158,16,158,17],[157,13,157,15],[151,10,151,12],[155,10,155,12],[152,10,152,12],[153,10,153,12],[154,10,154,12],[155,1,155,9],[155,13,155,15],[155,16,155,17],[156,1,156,9],[156,13,156,15],[156,16,156,17],[157,1,157,9],[151,1,151,9],[151,13,151,15],[157,10,157,12],[144,13,144,15],[144,16,144,17],[139,10,139,12],[140,10,140,12],[149,1,149,9],[149,13,149,15],[149,16,149,17],[148,1,148,9],[148,13,148,15],[148,16,148,17],[142,10,142,12],[150,1,150,9],[150,13,150,15],[150,16,150,17],[147,10,147,12],[148,10,148,12],[145,10,145,12],[146,10,146,12],[145,1,145,9],[145,13,145,15],[145,16,145,17],[146,1,146,9],[146,13,146,15],[146,16,146,17],[147,1,147,9],[147,13,147,15],[147,16,147,17],[120,1,120,9],[120,13,120,15],[120,16,120,17],[120,10,120,12],[119,10,119,12],[121,16,121,17],[122,16,122,17],[122,13,122,15],[121,10,121,12],[121,1,121,9],[121,13,121,15],[123,1,123,17],[125,1,125,17],[126,1,126,17],[139,1,139,9],[139,13,139,15],[139,16,139,17],[134,1,134,9],[134,13,134,15],[134,16,134,17],[135,1,135,9],[135,13,135,15],[135,16,135,17],[136,1,136,9],[136,13,136,15],[136,16,136,17],[137,1,137,9],[137,13,137,15],[137,16,137,17],[138,1,138,9],[138,13,138,15],[138,16,138,17],[106,16,106,17],[107,1,107,9],[107,13,107,15],[107,16,107,17],[118,1,118,9],[118,13,118,15],[118,16,118,17],[119,1,119,9],[119,13,119,15],[119,16,119,17],[118,10,118,12],[115,10,115,12],[116,10,116,12],[117,10,117,12],[110,13,110,15],[110,16,110,17],[113,16,113,17],[114,1,114,9],[114,13,114,15],[114,16,114,17],[115,1,115,9],[115,13,115,15],[115,16,115,17],[113,13,113,15],[110,10,110,12],[116,1,116,9],[116,13,116,15],[116,16,116,17],[117,1,117,9],[117,13,117,15],[117,16,117,17],[101,13,101,15],[101,16,101,17],[102,1,102,9],[102,13,102,15],[102,16,102,17],[103,1,103,9],[103,13,103,15],[103,16,103,17],[104,1,104,9],[104,13,104,15],[104,16,104,17],[98,13,98,15],[98,16,98,17],[99,1,99,9],[99,13,99,15],[99,16,99,17],[105,1,105,9],[105,13,105,15],[105,16,105,17],[100,10,100,12],[101,10,101,12],[102,10,102,12],[100,13,100,15],[100,16,100,17],[101,1,101,9],[290,1,290,7],[280,10,280,13],[280,14,280,15],[96,10,96,12],[76,14,76,15],[76,16,76,17],[76,11,76,13],[77,1,77,17],[309,10,309,13],[309,14,309,15],[309,16,309,17],[280,16,280,17],[277,1,277,7],[280,1,280,7],[280,8,280,9],[292,1,292,7],[292,8,292,9],[293,1,293,7],[277,8,277,9],[273,8,273,9],[88,1,88,9],[88,13,88,15],[88,16,88,17],[89,1,89,9],[111,10,111,12],[89,16,89,17],[90,1,90,9],[90,13,90,15],[90,16,90,17],[91,1,91,9],[91,13,91,15],[265,16,265,17],[266,14,266,15],[266,16,266,17],[267,10,267,13],[267,14,267,15],[267,16,267,17],[85,16,85,17],[85,13,85,15],[85,1,85,9],[87,16,87,17],[93,1,93,9],[93,13,93,15],[95,16,95,17],[96,1,96,9],[96,13,96,15],[96,16,96,17],[97,1,97,9],[97,13,97,15],[97,16,97,17],[91,16,91,17],[92,1,92,9],[92,13,92,15],[92,16,92,17],[98,1,98,9],[108,1,108,9],[108,13,108,15],[108,16,108,17],[109,1,109,9],[109,13,109,15],[109,16,109,17],[110,1,110,9],[250,1,250,9],[250,13,250,15],[68,14,68,15],[68,16,68,17],[69,10,69,13],[69,14,69,15],[69,16,69,17],[70,10,70,13],[70,14,70,15],[70,16,70,17],[73,10,73,13],[73,14,73,15],[73,16,73,17],[74,10,74,13],[74,14,74,15],[74,16,74,17],[75,10,75,13],[75,14,75,15],[75,16,75,17],[51,16,51,17],[52,10,52,13],[52,14,52,15],[52,16,52,17],[53,10,53,13],[53,14,53,15],[53,16,53,17],[58,16,58,17],[59,10,59,13],[59,14,59,15],[59,16,59,17],[60,10,60,13],[60,14,60,15],[60,16,60,17],[61,10,61,13],[61,14,61,15],[61,16,61,17],[55,10,55,13],[55,14,55,15],[55,16,55,17],[56,10,56,13],[56,14,56,15],[56,16,56,17],[57,10,57,13],[57,14,57,15],[57,16,57,17],[58,10,58,13],[58,14,58,15],[51,10,51,13],[51,14,51,15],[345,1,345,17],[124,12,124,17],[167,12,167,17],[213,12,213,17],[258,12,258,17],[302,12,302,17],[38,1,38,17],[39,1,39,17],[41,1,41,17],[42,1,42,17],[43,1,43,17],[44,1,44,17],[45,1,45,17],[47,1,47,17],[305,1,305,17],[306,1,306,17],[308,1,308,17],[261,1,261,17],[262,1,262,17],[264,1,264,17],[216,1,216,17],[217,1,217,17],[219,1,219,17],[170,1,170,17],[171,1,171,17],[172,1,172,17],[127,1,127,17],[128,1,128,17],[130,1,130,17],[79,1,79,17],[80,1,80,17],[323,14,323,15],[321,14,321,15],[313,1,313,7],[313,8,313,9],[314,1,314,7],[314,8,314,9],[310,1,310,7],[310,8,310,9],[311,1,311,7],[311,8,311,9],[311,10,311,13],[311,14,311,15],[281,10,281,13],[281,14,281,15],[287,10,287,13],[287,14,287,15],[296,1,296,7],[283,10,283,13],[283,14,283,15],[290,10,290,13],[290,14,290,15],[309,1,309,7],[309,8,309,9],[312,1,312,7],[312,8,312,9],[288,1,288,7],[288,8,288,9],[294,8,294,9],[295,1,295,7],[283,1,283,7],[283,8,283,9],[284,1,284,7],[286,1,286,7],[320,16,320,17],[338,8,338,9],[337,1,337,7],[337,8,337,9],[303,1,303,17],[304,1,304,17],[312,16,312,17],[313,10,313,13],[313,14,313,15],[313,16,313,17],[314,10,314,13],[314,14,314,15],[314,16,314,17],[317,10,317,13],[317,14,317,15],[317,16,317,17],[318,10,318,13],[318,14,318,15],[323,16,323,17],[321,16,321,17],[322,10,322,13],[322,14,322,15],[322,16,322,17],[319,1,319,7],[319,8,319,9],[317,1,317,7],[323,10,323,13],[316,10,316,13],[318,1,318,7],[318,8,318,9],[318,16,318,17],[321,10,321,13],[319,10,319,13],[319,14,319,15],[319,16,319,17],[285,8,285,9],[276,10,276,13],[276,14,276,15],[274,10,274,13],[274,14,274,15],[131,16,131,17],[132,1,132,9],[132,13,132,15],[132,16,132,17],[133,1,133,9],[133,13,133,15],[133,16,133,17],[173,1,173,9],[173,10,173,12],[140,1,140,9],[140,13,140,15],[140,16,140,17],[131,10,131,12],[132,10,132,12],[135,10,135,12],[133,10,133,12],[134,10,134,12],[131,1,131,9],[131,13,131,15],[136,10,136,12],[143,1,143,9],[143,13,143,15],[143,16,143,17],[144,1,144,9],[317,8,317,9],[316,14,316,15],[316,16,316,17],[297,8,297,9],[298,1,298,7],[298,8,298,9],[299,1,299,7],[299,8,299,9],[281,8,281,9],[289,1,289,7],[289,8,289,9],[282,1,282,7],[282,8,282,9],[276,8,276,9],[295,8,295,9],[290,8,290,9],[291,1,291,7],[291,8,291,9],[286,8,286,9],[293,8,293,9],[310,10,310,13],[279,10,279,13],[279,14,279,15],[279,16,279,17],[287,1,287,7],[310,14,310,15],[310,16,310,17],[287,8,287,9],[284,8,284,9],[285,1,285,7],[281,16,281,17],[277,10,277,13],[274,16,274,17],[254,13,254,15],[254,16,254,17],[255,1,255,9],[255,13,255,15],[255,16,255,17],[256,13,256,15],[256,16,256,17],[257,1,257,17],[259,1,259,17],[260,1,260,17],[268,10,268,13],[268,14,268,15],[254,10,254,12],[267,8,267,9],[278,16,278,17],[272,10,272,13],[273,10,273,13],[272,1,272,7],[272,8,272,9],[269,1,269,7],[269,8,269,9],[270,1,270,7],[270,8,270,9],[268,1,268,7],[268,8,268,9],[269,10,269,13],[269,14,269,15],[269,16,269,17],[270,10,270,13],[265,10,265,13],[265,14,265,15],[250,16,250,17],[251,1,251,9],[251,13,251,15],[251,16,251,17],[252,1,252,9],[252,13,252,15],[252,16,252,17],[253,1,253,9],[253,13,253,15],[253,16,253,17],[253,10,253,12],[254,1,254,9],[181,16,181,17],[182,1,182,9],[182,13,182,15],[182,16,182,17],[195,1,195,9],[195,13,195,15],[195,16,195,17],[196,1,196,9],[196,13,196,15],[196,16,196,17],[197,1,197,9],[197,13,197,15],[197,16,197,17],[192,10,192,12],[197,10,197,12],[193,10,193,12],[194,10,194,12],[195,10,195,12],[188,1,188,9],[188,13,188,15],[137,10,137,12],[138,10,138,12],[143,10,143,12],[144,10,144,12],[141,10,141,12],[141,1,141,9],[141,13,141,15],[141,16,141,17],[142,1,142,9],[142,13,142,15],[142,16,142,17],[106,10,106,12],[94,10,94,12],[95,10,95,12],[97,10,97,12],[107,10,107,12],[105,10,105,12],[98,10,98,12],[112,10,112,12],[113,10,113,12],[114,10,114,12],[108,10,108,12],[109,10,109,12],[111,1,111,9],[111,13,111,15],[111,16,111,17],[112,1,112,9],[112,13,112,15],[112,16,112,17],[113,1,113,9],[106,1,106,9],[106,13,106,15],[57,1,57,7],[58,1,58,7],[60,1,60,7],[61,1,61,7],[87,10,87,12],[65,1,65,7],[66,1,66,7],[67,1,67,7],[68,1,68,7],[69,1,69,7],[70,1,70,7],[71,1,71,7],[72,1,72,7],[99,10,99,12],[103,10,103,12],[104,10,104,12],[100,1,100,9],[64,10,64,13],[88,10,88,12],[89,10,89,12],[83,1,83,17],[65,10,65,13],[65,14,65,15],[65,16,65,17],[66,10,66,13],[66,14,66,15],[66,16,66,17],[67,10,67,13],[67,14,67,15],[67,16,67,17],[68,10,68,13],[89,13,89,15],[55,1,55,7],[55,8,55,9],[62,1,62,7],[63,8,63,9],[64,8,64,9],[65,8,65,9],[66,8,66,9],[67,8,67,9],[68,8,68,9],[63,1,63,7],[64,1,64,7],[85,10,85,12],[86,10,86,12],[84,1,84,17],[87,13,87,15],[87,1,87,9],[86,16,86,17],[62,10,62,13],[86,13,86,15],[86,1,86,9],[59,1,59,7],[59,8,59,9],[82,1,82,17],[81,1,81,17],[62,14,62,15],[62,16,62,17],[63,10,63,13],[63,14,63,15],[63,16,63,17],[64,14,64,15],[64,16,64,17],[56,1,56,7],[10,1,13,1],[14,1,17,1],[20,1,23,1],[18,1,19,1],[24,1,27,1],[28,7,28,10],[7,2,7,6],[7,7,7,10],[8,2,8,6],[10,2,10,6],[10,7,10,10],[14,2,14,6],[14,7,14,10],[18,2,18,6],[20,2,20,6],[20,7,20,10],[54,16,54,17],[54,1,54,7],[54,8,54,9],[54,10,54,13],[54,14,54,15],[48,16,48,17]],"merged_total":1272,"flags":["merged_cut"]}
[null,{"$f":"'Main Page'!$G$9","v":"2022-2023"},null,"School Division: ",{"$f":"'Main Page'!$F$13","v":"Albemarle County Public Schools"},null,null,null,"Division Number:  ",{"$f":"'Main Page'!$F$14","v":2},null,null,{"$f":"'Main Page'!$A$6","v":"Title II, Part A, Supporting Effective Instruction"}]
[null,"E.  BUDGET SUMMARY "]
[]
[null,null,null,null,null,null,null,"Title II, Part A\nBudget for 2022-2023\nAward:  S367A220044\nProject Code:  APE61480"]
[null,null,null,null,null,null,null,"Allocation:",null,null,null,{"$f":"Narrative!O49","v":295515.82}]
[null,"OBJECT CODE","EXPENDITURE",null,null,null,null,"AMOUNT BUDGETED",null,null,null,"FTEs",null,null,"DOES THE BUDGET SUMMARY  MATCH THE DETAILED BUDGET BREAKDOWN?"]
[null,"1000 -  Personnel Services","Administrative"]
[null,null,"Non-Administrative",null,null,null,null,191957]
[null,null,"Private School Set-Aside "]
[null,null,"Total Personal Services",null,null,null,null,{"$f":"SUM(H7:K9)","v":191957},null,null,null,null,null,null,{"$f":"IF(Q77=SUM(H10),\"Yes\",\"No - Please review your entries.\")","v":"Yes"}]
[null,"2000 - Employee Benefits","Administrative"]
[null,null,"Non-Administrative",null,null,null,null,76365.039999999994]
[null,null,"Private School Set-Aside "]
[null,null,"Total Employee Benefits",null,null,null,null,{"$f":"SUM(H11:K13)","v":76365.039999999994},null,null,null,null,null,null,{"$f":"IF(Q123=SUM(H14),\"Yes\",\"No - Please review your entries.\")","v":"Yes"}]
[null,"3000 - Purchased/\nContracted Services","Administrative"]
[null,null,"Non-Administrative"]
[null,null,"Private School Set-Aside ",null,null,null,null,14693.65]
[null,null,"Total Purchased/Contracted Services",null,null,null,null,{"$f":"SUM(H15:K17)","v":14693.65},null,null,null,null,null,null,{"$f":"IF(Q165=SUM(H18),\"Yes\",\"No - Please review your entries.\")","v":"Yes"}]
[null,"4000 - Internal Services","Internal Services"]
[null,null,"Total Internal Services",null,null,null,null,{"$f":"SUM(H19:K19)","v":0},null,null,null,null,null,null,{"$f":"IF(Q212=SUM(H20),\"Yes\",\"No - Please review your entries.\")","v":"Yes"}]
[null,"5000 - Other Charges","Administrative"]
[null,null,"Non-Administrative"]
[null,null,"Private School Set-Aside ",null,null,null,null,6798]
[null,null,"Total Other Charges",null,null,null,null,{"$f":"SUM(H21:K23)","v":6798},null,null,null,null,null,null,{"$f":"IF(Q257=SUM(H24),\"Yes\",\"No - Please review your entries.\")","v":"Yes"}]
[null,"6000 - Materials and Supplies","Administrative"]
[null,null,"Non-Administrative"]
[null,null,"Private School Set-Aside ",null,null,null,null,5702.13]
[null,null,"Total Materials and Supplies",null,null,null,null,{"$f":"SUM(H25:K27)","v":5702.13},null,null,null,null,null,null,{"$f":"IF(Q301=SUM(H28),\"Yes\",\"No - Please review your entries.\")","v":"Yes"}]
[null,"8000 - Capital Outlay","Non-Administrative"]
[null,null,"Total Capital Outlay",null,null,null,null,{"$f":"SUM(H29:K29)","v":0},null,null,null,null,null,null,{"$f":"IF(Q344=SUM(H30),\"Yes\",\"No - Please review your entries.\")","v":"Yes"}]
[null,null,"TOTAL BUDGET",null,null,null,null,{"$f":"SUM(H10+H14+H18+H20+H24+H28+H30)","v":295515.82}]
[null,null,"DOES THE BUDGET SUMMARY MATCH THE TOTAL ALLOCATION?",null,null,null,null,{"$f":"IF(H31=L5,\"Yes\",\"No - please review your entries.\")","v":"Yes"},null,null,null,null,null,null,"Difference",null,{"$f":"H31-L5","v":0}]
[null,null,"TOTAL SET-ASIDE",null,null,null,null,{"$f":"H7+H11+H15+H21+H25","v":0}]
[null,null,"TOTAL PRIVATE SCHOOL SET-ASIDE",null,null,null,null,{"$f":"H9+H13+H17+H23+H27","v":27193.780000000002}]
[null,null,"DOES THE TOTAL PRIVATE SCHOOL SET-ASIDE MATCH THE \"PRIVATE SCHOOLS\" TAB?",null,null,null,null,{"$f":"IF(H34>=SUM('Private Schools'!B37:E37),\"Yes\",\"No - Please review your entries.\")","v":"Yes"},null,null,null,null,null,null,"Difference",null,{"$f":"H34-'Private Schools'!B37","v":0}]
[null,null,"Note:  Object codes 7000 and 9000 are not used in application budgets or in requests for reimbursements for this grant."]
[null,"Page 15"]
[null,{"$f":"'Main Page'!$G$9","v":"2022-2023"},null,"School Division: ",{"$f":"'Main Page'!$F$13","v":"Albemarle County Public Schools"},null,null,null,"Division Number:  ",{"$f":"'Main Page'!$F$14","v":2},null,null,{"$f":"'Main Page'!$A$6","v":"Title II, Part A, Supporting Effective Instruction"}]
[null,"F.  DETAIL BUDGET BREAKDOWN"]
[null,"Prepare a detailed breakdown of the budget categories for Object Codes 1000-6000 and 8000.  Choose the appropriate category for each expense in the dropdown list under \"Category.\"  "]
[null,"Does the Detailed Budget Breakdown Match the Total Allocation?",null,null,null,null,null,null,{"$f":"IF(SUM(H31)=SUM(Q77,Q123,Q165,Q212,Q257,Q301,Q344),\"Yes\",\"No - Please review your entries.\")","v":"Yes"}]
[]
[null,"DETAILED BUDGET DESCRIPTION OF OBJECT CODE 1000"]
[null,"Provide a description of the positions supported with funds from this program. Indicate if any positions are newly funded under this program.  Explain the supplementary nature of any new positions. Required if staff positions are to be funded by federal funds."]
[null,"Instructional coaches will serve as instructional resources in the areas of math, reading/language arts, science, and social studies curricula, instruction and assessment. They will train other teachers to use data as a basis for planning and implementing improved instruction and will focus on providing novice and other teachers specific strategies to improve core subject outcomes for struggling learners. Additional coaching duties to be performed are described in greater depth in other areas of this application."]
[]
[null,"Please provide a detailed description of Private School activities (If no private school set-aside is present, please enter N/A). "]
[null,"N/A"]
[null,"Item Description",null,null,null,null,null,null,"Measurable Objective",null,"Category",null,null,null,"FTEs",null,"Total Cost"]
[null,"Value of professional development personnel-related services or stipends on behalf of private schools"]
[null,"Instructional Coaches",null,null,null,null,null,null,"#1, #3",null,"Professional Development",null,null,null,3,null,191957]
[]
[]
[]
[]
[]
[]
[]
[]
[]
[]
[]
[]
[]
[]
[]
[]
[]
[]
[]
[]
[]
[]
[]
[]
[]
[null,null,null,null,null,"   ",null,null,null,null,null,"Total for Object Code:",null,null,{"$f":"SUM(O50:P76)","v":3},null,{"$f":"SUM(Q50:R76)","v":191957}]
[null,"Page 16"]
[null,{"$f":"'Main Page'!$G$9","v":"2022-2023"},null,"School Division: ",{"$f":"'Main Page'!$F$13","v":"Albemarle County Public Schools"},null,null,null,"Division Number:  ",{"$f":"'Main Page'!$F$14","v":2},null,null,{"$f":"'Main Page'!$A$6","v":"Title II, Part A, Supporting Effective Instruction"}]
[null,"DETAILED BUDGET DESCRIPTION OF OBJECT CODE 2000 "]
[null,"Indicate the fixed charge categories (such as FICA, health, etc.) and specify the amount of each."]
[null," FICA, VSRS, Group Life, Health, and Dental insurance will be paid for the instructional coach positions."]
[]
[null,"Please provide a detailed description of Private School activities (If no private school set-aside is present, please enter N/A). "]
[null,"N/A"]
[null,"Item Description",null,null,null,null,null,null,null,null,"Measurable Objective",null,null,"Category",null,null,"Total Cost"]
[null,"Private School Set-aside"]
[null,"FICA",null,null,null,null,null,null,null,null,"#1, #3",null,null,"Professional Development",null,null,14624.88]
[null,"VSRS",null,null,null,null,null,null,null,null,"#1, #3",null,null,"Professional Development",null,null,35651.160000000003]
[null,"Group Life",null,null,null,null,null,null,null,null,"#1, #3",null,null,"Professional Development",null,null,2680]
[null,"Health Insurance",null,null,null,null,null,null,null,null,"#1, #3",null,null,"Professional Development",null,null,22689]
[null,"Dental Insurance",null,null,null,null,null,null,null,null,"#1, #3",null,null,"Professional Development",null,null,720]
[]
[]
[]
[]
[]
[]
[]
[]
[]
[]
[]
[]
[]
[]
[]
[]
[]
[]
[]
[]
[]
[]
[]
[]
[]
[]
[]
[]
[]
[]
[null,null,null,null,null,"      ",null,null,null,null,null,null,null,"Total for Object Code:",null,null,{"$f":"SUM(Q87:R122)","v":76365.040000000008}]
[null,"Page 17"]
[null,{"$f":"'Main Page'!$G$9","v":"2022-2023"},null,"School Division: ",{"$f":"'Main Page'!$F$13","v":"Albemarle County Public Schools"},null,null,null,"Division Number:  ",{"$f":"'Main Page'!$F$14","v":2},null,null,{"$f":"'Main Page'!$A$6","v":"Title II, Part A, Supporting Effective Instruction"}]
[null,"DETAILED BUDGET DESCRIPTION OF OBJECT CODE 3000 "]
[null,"Please indicate how these funds will support any services and activities that are described in this application.  If program funds are expended for professional development, justify such expenditures by demonstrating a relationship between the proposed expenditure for professional development and the program services and activities described in the application. \nNOTE:  All tuition-related expenses should be included in this object code."]
[null,"The eight participating private schools through their needs assessments and professional development planning are requesting to use a number of vendors and programs to fulfill the needs of their teachers and students. Local and regional workshops, local colleges and universities, online sites will assist schools in meeting the needs of their staff and students.  Virginia Association of Independent Schools will be used for New Teacher Institute offering, and Waldorf teacher preparations, trainings and conferences will serve the needs of another of the private schools.   Areas for training include classroom management, curriculum development, social emotional learning, differentiated instruction and appropriate methodologies for student assessment methods, best practices in core curriculum instruction and integration of curriculum areas, among many others. Schools are also wanting to meet the needs of their diverse populations.  In addition, training for integrating technology in the classroom has been requested: including speech to text programs to facilitate student writing; how to best integrate recorded lessons for students who have slower processing rates and using resources such as Newsela to provide content to students of different reading abilities."]
[]
[null,"Please provide a detailed description of Private School activities (If no private school set-aside is present, please enter N/A). "]
[]
[null,"Item Description",null,null,null,null,null,null,null,null,"Measurable Objective",null,null,"Category",null,null,"Total Cost"]
[null,"Private School Set-aside",null,null,null,null,null,null,null,null,null,null,null,"Professional Development",null,null,14693.65]
[]
[]
[]
[]
[]
[]
[]
[]
[]
[]
[]
[]
[]
[]
[]
[]
[]
[]
[]
[]
[]
[]
[]
[]
[]
[]
[]
[]
[]
[]
[]
[null,null,null,null,null,"      ",null,null,null,null,null,null,null,"Total for Object Code:",null,null,{"$f":"SUM(Q133:R164)","v":14693.65}]
[]
[null,"Page 18"]
[null,{"$f":"'Main Page'!$G$9","v":"2022-2023"},null,"School Division: ",{"$f":"'Main Page'!$F$13","v":"Albemarle County Public Schools"},null,null,null,"Division Number:  ",{"$f":"'Main Page'!$F$14","v":2},null,null,{"$f":"'Main Page'!$A$6","v":"Title II, Part A, Supporting Effective Instruction"}]
[null,"DETAILED BUDGET DESCRIPTION OF OBJECT CODE 4000"]
[null,"Provide a description of charges from an Internal Service Fund to other functions/activities/elements of the local government for the use of intergovernmental services.  "]
[]
[]
[]
[null,"Item Description",null,null,null,null,null,null,null,null,"Measurable Objective",null,null,"Category",null,null,"Total Cost"]
[]
[]
[]
[]
[]
[]
[]
[]
[]
[]
[]
[]
[]
[]
[]
[]
[]
[]
[]
[]
[]
[]
[]
[]
[]
[]
[]
[]
[]
[]
[]
[]
[]
[]
[]
[]
[]
[null,null,null,null,null,"      ",null,null,null,null,null,null,null,"Total for Object Code:",null,null,{"$f":"SUM(Q175:R211)","v":0}]
[null,"Page 19"]
[null,{"$f":"'Main Page'!$G$9","v":"2022-2023"},null,"School Division: ",{"$f":"'Main Page'!$F$13","v":"Albemarle County Public Schools"},null,null,null,"Division Number:  ",{"$f":"'Main Page'!$F$14","v":2},null,null,{"$f":"'Main Page'!$A$6","v":"Title II, Part A, Supporting Effective Instruction"}]
[null,"DETAILED BUDGET DESCRIPTION FOR OBJECT CODE 5000"]
[null,"Includes expenditures that support the program, including utilities (maintenance and operation of plant), staff/administrative/consultant travel, office phone charges, training, leases/rental, indirect cost, and other.  Indirect costs cannot be claimed against capital outlay and equipment."]
[null,"Limited attendance by private school teachers at conferences and training programs referenced in OC 3000 is anticipated, and travel expenses will be reimbursed to attendees."]
[]
[null,"Please provide a detailed description of Private School activities (If no private school set-aside is present, please enter N/A). "]
[]
[null,"Item Description",null,null,null,null,null,null,null,null,"Measurable Objective",null,null,"Category",null,null,"Total Cost"]
[null,"Private School Set-aside",null,null,null,null,null,null,null,null,null,null,null,"Professional Development",null,null,6798]
[]
[]
[]
[]
[]
[]
[]
[]
[]
[]
[]
[]
[]
[]
[]
[]
[]
[]
[]
[]
[]
[]
[]
[]
[]
[]
[]
[]
[]
[]
[]
[]
[]
[]
[null,null,null,null,null,"      ",null,null,null,null,null,null,null,"Total for Object Code:",null,null,{"$f":"SUM(Q222:R256)","v":6798}]
[null,"Page 20"]
[null,{"$f":"'Main Page'!$G$9","v":"2022-2023"},null,"School Division: ",{"$f":"'Main Page'!$F$13","v":"Albemarle County Public Schools"},null,null,null,"Division Number:  ",{"$f":"'Main Page'!$F$14","v":2},null,null,{"$f":"'Main Page'!$A$6","v":"Title II, Part A, Supporting Effective Instruction"}]
[null,"DETAILED BUDGET DESCRIPTION FOR OBJECT CODE 6000"]
[null,"Provide a description for expenses related to object code 6000 Materials and Supplies.  Include items that are consumed or materially altered when used and minor equipment that is not capitalized. Equipment under $5,000, including computer equipment, should be reported under this object code unless the LEA has set a lower capitalization threshold.  Indicate the quantity for each item.  "]
[null,"In order to meet professional development programming goals, materials and books will be purchased to align with areas being presented.  Some private schools host summer faculty reading and study groups for all faculty to participate in preparing for student instructional, developmental, or social-emotional needs."]
[]
[null,"Please provide a detailed description of Private School activities (If no private school set-aside is present, please enter N/A). "]
[]
[null,"Item Description",null,null,null,null,null,null,"Measurable Objective",null,"Category",null,null,null,"Quantity",null,"Total Cost"]
[null,"Private School Set-aside",null,null,null,null,null,null,null,null,null,null,null,null,null,null,5702.13]
[]
[]
[]
[]
[]
[]
[]
[]
[]
[]
[]
[]
[]
[]
[]
[]
[]
[]
[]
[]
[]
[]
[]
[]
[]
[]
[]
[]
[]
[]
[]
[]
[]
[null,null,null,null,null,"      ",null,null,null,null,null,null,null,null,"Total for Object Code:",null,{"$f":"SUM(Q267:R300)","v":5702.13}]
[null,"Page 21"]
[null,{"$f":"'Main Page'!$G$9","v":"2022-2023"},null,"School Division: ",{"$f":"'Main Page'!$F$13","v":"Albemarle County Public Schools"},null,null,null,"Division Number:  ",{"$f":"'Main Page'!$F$14","v":2},null,null,{"$f":"'Main Page'!$A$6","v":"Title II, Part A, Supporting Effective Instruction"}]
[null,"DETAILED BUDGET DESCRIPTION FOR OBJECT CODE 8000"]
[null,"Provide a description for expenses related to object code.   All capital outlay expenditures over $5,000 per unit must be approved by the Virginia Department of Education through the application submission and approval process. If the local school division has established a threshold of a lesser amount, items equal to that amount or greater must be itemized in Object Code 8000.  Specify equipment quantities."]
[]
[]
[null,"Please provide a detailed description of Private School activities (If no private school set-aside is present, please enter N/A). "]
[]
[null,"Item Description",null,null,null,null,null,null,"Measurable Objective",null,"Category",null,null,null,"Quantity",null,"Total Cost"]
[null,"Private School Set-aside"]
[]
[]
[]
[]
[]
[]
[]
[]
[]
[]
[]
[]
[]
[]
[]
[]
[]
[]
[]
[]
[]
[]
[]
[]
[]
[]
[]
[]
[]
[]
[]
[]
[null,null,null,null,null,"      ",null,null,null,null,null,null,null,null,"Total for Object Code:",null,{"$f":"SUM(Q311:R343)","v":0}]
[]
[null,"Page 22"]

{"sheet":"Transferability","index":4,"n_rows":345,"n_cols":17,"rows_kept":345,"cut":false,"hidden":false,"merged":[[0,12,0,17],[40,12,40,17],[81,12,81,17],[127,12,127,17],[171,12,171,17],[216,12,216,17],[261,12,261,17],[304,12,304,17],[4,1,4,17],[3,1,3,17],[26,7,26,13],[27,7,27,13],[28,7,28,13],[29,7,29,13],[30,7,30,13],[31,7,31,13],[18,7,18,13],[19,7,19,13],[20,7,20,13],[21,7,21,13],[24,7,24,13],[25,7,25,13],[22,7,22,13],[23,7,23,13],[36,7,36,13],[36,2,36,6],[37,2,37,6],[34,2,34,6],[31,14,31,17],[32,1,33,1],[32,2,32,6],[32,14,32,17],[10,2,10,6],[10,14,12,17],[11,2,11,6],[12,2,12,6],[37,7,37,13],[34,14,36,17],[369,1,369,17],[9,7,9,13],[7,14,8,17],[7,7,7,13],[8,7,8,13],[10,7,10,13],[11,7,11,13],[12,7,12,13],[13,7,13,13],[14,7,14,13],[363,1,363,17],[364,2,364,17],[365,2,365,17],[366,1,366,17],[367,2,367,17],[368,2,368,17],[356,2,356,17],[357,2,357,17],[359,2,359,17],[360,1,360,17],[361,2,361,17],[362,2,362,17],[347,1,347,17],[349,1,349,17],[350,1,350,17],[352,2,352,17],[354,2,354,17],[355,1,355,17],[343,10,343,15],[343,16,343,17],[344,1,344,17],[345,1,345,17],[341,1,341,7],[341,8,341,9],[341,10,341,13],[341,14,341,15],[341,16,341,17],[342,1,342,7],[342,8,342,9],[342,10,342,13],[342,14,342,15],[342,16,342,17],[339,1,339,7],[339,8,339,9],[339,10,339,13],[339,14,339,15],[339,16,339,17],[340,1,340,7],[340,8,340,9],[340,10,340,13],[340,14,340,15],[340,16,340,17],[337,1,337,7],[337,8,337,9],[337,10,337,13],[337,14,337,15],[337,16,337,17],[338,1,338,7],[338,8,338,9],[338,10,338,13],[338,14,338,15],[338,16,338,17],[336,1,336,7],[336,8,336,9],[336,10,336,13],[336,14,336,15],[336,16,336,17],[334,1,334,7],[334,8,334,9],[334,10,334,13],[334,14,334,15],[334,16,334,17],[335,1,335,7],[335,8,335,9],[335,10,335,13],[335,14,335,15],[335,16,335,17],[332,1,332,7],[332,8,332,9],[332,10,332,13],[332,14,332,15],[332,16,332,17],[333,1,333,7],[333,8,333,9],[333,10,333,13],[333,14,333,15],[333,16,333,17],[330,1,330,7],[330,8,330,9],[330,10,330,13],[330,14,330,15],[330,16,330,17],[331,1,331,7],[331,8,331,9],[331,10,331,13],[331,14,331,15],[331,16,331,17],[328,1,328,7],[328,8,328,9],[328,10,328,13],[328,14,328,15],[328,16,328,17],[329,1,329,7],[329,8,329,9],[329,10,329,13],[329,14,329,15],[329,16,329,17],[326,1,326,7],[326,8,326,9],[326,10,326,13],[326,14,326,15],[326,16,326,17],[327,1,327,7],[327,8,327,9],[327,10,327,13],[327,14,327,15],[327,16,327,17],[324,1,324,7],[324,8,324,9],[324,10,324,13],[324,14,324,15],[324,16,324,17],[325,1,325,7],[325,8,325,9],[325,10,325,13],[325,14,325,15],[325,16,325,17],[322,1,322,7],[322,8,322,9],[322,10,322,13],[322,14,322,15],[322,16,322,17],[323,1,323,7],[323,8,323,9],[323,10,323,13],[323,14,323,15],[323,16,323,17],[320,1,320,7],[320,8,320,9],[320,10,320,13],[320,14,320,15],[320,16,320,17],[321,1,321,7],[321,8,321,9],[321,10,321,13],[321,14,321,15],[321,16,321,17],[318,1,318,7],[318,8,318,9],[318,10,318,13],[318,14,318,15],[318,16,318,17],[319,1,319,7],[319,8,319,9],[319,10,319,13],[319,14,319,15],[319,16,319,17],[316,1,316,7],[316,8,316,9],[316,10,316,13],[316,14,316,15],[316,16,316,17],[317,1,317,7],[317,8,317,9],[317,10,317,13],[317,14,317,15],[317,16,317,17],[314,1,314,7],[314,8,314,9],[314,10,314,13],[314,14,314,15],[314,16,314,17],[315,1,315,7],[315,8,315,9],[315,10,315,13],[315,14,315,15],[315,16,315,17],[312,1,312,7],[312,8,312,9],[312,10,312,13],[312,14,312,15],[312,16,312,17],[313,1,313,7],[313,8,313,9],[313,10,313,13],[313,14,313,15],[313,16,313,17],[307,1,307,17],[308,1,308,17],[310,1,310,17],[311,1,311,7],[311,8,311,9],[311,10,311,13],[311,14,311,15],[311,16,311,17],[309,1,309,17],[303,1,303,17],[305,1,305,17],[306,1,306,17],[301,1,301,7],[301,8,301,9],[301,10,301,13],[301,14,301,15],[301,16,301,17],[302,10,302,15],[302,16,302,17],[300,1,300,7],[300,8,300,9],[300,10,300,13],[300,14,300,15],[300,16,300,17],[299,1,299,7],[299,8,299,9],[299,10,299,13],[299,14,299,15],[299,16,299,17],[297,1,297,7],[297,8,297,9],[297,10,297,13],[297,14,297,15],[297,16,297,17],[298,1,298,7],[298,8,298,9],[298,10,298,13],[298,14,298,15],[298,16,298,17],[295,1,295,7],[295,8,295,9],[295,10,295,13],[295,14,295,15],[295,16,295,17],[296,1,296,7],[296,8,296,9],[296,10,296,13],[296,14,296,15],[296,16,296,17],[293,1,293,7],[293,8,293,9],[293,10,293,13],[293,14,293,15],[293,16,293,17],[294,1,294,7],[294,8,294,9],[294,10,294,13],[294,14,294,15],[294,16,294,17],[291,1,291,7],[291,8,291,9],[291,10,291,13],[291,14,291,15],[291,16,291,17],[292,1,292,7],[292,8,292,9],[292,10,292,13],[292,14,292,15],[292,16,292,17],[289,1,289,7],[289,8,289,9],[289,10,289,13],[289,14,289,15],[289,16,289,17],[290,1,290,7],[290,8,290,9],[290,10,290,13],[290,14,290,15],[290,16,290,17],[287,1,287,7],[287,8,287,9],[287,10,287,13],[287,14,287,15],[287,16,287,17],[288,1,288,7],[288,8,288,9],[288,10,288,13],[288,14,288,15],[288,16,288,17],[285,1,285,7],[285,8,285,9],[285,10,285,13],[285,14,285,15],[285,16,285,17],[286,1,286,7],[286,8,286,9],[286,10,286,13],[286,14,286,15],[286,16,286,17],[283,1,283,7],[283,8,283,9],[283,10,283,13],[283,14,283,15],[283,16,283,17],[284,1,284,7],[284,8,284,9],[284,10,284,13],[284,14,284,15],[284,16,284,17],[281,1,281,7],[281,8,281,9],[281,10,281,13],[281,14,281,15],[281,16,281,17],[282,1,282,7],[282,8,282,9],[282,10,282,13],[282,14,282,15],[282,16,282,17],[279,1,279,7],[279,8,279,9],[279,10,279,13],[279,14,279,15],[279,16,279,17],[280,1,280,7],[280,8,280,9],[280,10,280,13],[280,14,280,15],[280,16,280,17],[277,1,277,7],[277,8,277,9],[277,10,277,13],[277,14,277,15],[277,16,277,17],[278,1,278,7],[278,8,278,9],[278,10,278,13],[278,14,278,15],[278,16,278,17],[275,1,275,7],[275,8,275,9],[275,10,275,13],[275,14,275,15],[275,16,275,17],[276,1,276,7],[276,8,276,9],[276,10,276,13],[276,14,276,15],[276,16,276,17],[273,1,273,7],[273,8,273,9],[273,10,273,13],[273,14,273,15],[273,16,273,17],[274,1,274,7],[274,8,274,9],[274,10,274,13],[274,14,274,15],[274,16,274,17],[271,1,271,7],[271,8,271,9],[271,10,271,13],[271,14,271,15],[271,16,271,17],[272,1,272,7],[272,8,272,9],[272,10,272,13],[272,14,272,15],[272,16,272,17],[269,1,269,7],[269,8,269,9],[269,10,269,13],[269,14,269,15],[269,16,269,17],[270,1,270,7],[270,8,270,9],[270,10,270,13],[270,14,270,15],[270,16,270,17],[264,1,264,17],[265,1,265,17],[267,1,267,17],[268,1,268,7],[268,8,268,9],[268,10,268,13],[268,14,268,15],[268,16,268,17],[266,1,266,17],[260,1,260,17],[262,1,262,17],[263,1,263,17],[259,13,259,15],[259,16,259,17],[258,1,258,9],[258,10,258,12],[258,13,258,15],[258,16,258,17],[256,1,256,9],[256,10,256,12],[256,13,256,15],[256,16,256,17],[257,1,257,9],[257,10,257,12],[257,13,257,15],[257,16,257,17],[254,1,254,9],[254,10,254,12],[254,13,254,15],[254,16,254,17],[255,1,255,9],[255,10,255,12],[255,13,255,15],[255,16,255,17],[252,1,252,9],[252,10,252,12],[252,13,252,15],[252,16,252,17],[253,1,253,9],[253,10,253,12],[253,13,253,15],[253,16,253,17],[250,1,250,9],[250,10,250,12],[250,13,250,15],[250,16,250,17],[251,1,251,9],[251,10,251,12],[251,13,251,15],[251,16,251,17],[248,1,248,9],[248,10,248,12],[248,13,248,15],[248,16,248,17],[249,1,249,9],[249,10,249,12],[249,13,249,15],[249,16,249,17],[246,1,246,9],[246,10,246,12],[246,13,246,15],[246,16,246,17],[247,1,247,9],[247,10,247,12],[247,13,247,15],[247,16,247,17],[244,1,244,9],[244,10,244,12],[244,13,244,15],[244,16,244,17],[245,1,245,9],[245,10,245,12],[245,13,245,15],[245,16,245,17],[242,1,242,9],[242,10,242,12],[242,13,242,15],[242,16,242,17],[243,1,243,9],[243,10,243,12],[243,13,243,15],[243,16,243,17],[240,1,240,9],[240,10,240,12],[240,13,240,15],[240,16,240,17],[241,1,241,9],[241,10,241,12],[241,13,241,15],[241,16,241,17],[238,1,238,9],[238,10,238,12],[238,13,238,15],[238,16,238,17],[239,1,239,9],[239,10,239,12],[239,13,239,15],[239,16,239,17],[236,1,236,9],[236,10,236,12],[236,13,236,15],[236,16,236,17],[237,1,237,9],[237,10,237,12],[237,13,237,15],[237,16,237,17],[234,1,234,9],[234,10,234,12],[234,13,234,15],[234,16,234,17],[235,1,235,9],[235,10,235,12],[235,13,235,15],[235,16,235,17],[232,1,232,9],[232,10,232,12],[232,13,232,15],[232,16,232,17],[233,1,233,9],[233,10,233,12],[233,13,233,15],[233,16,233,17],[230,1,230,9],[230,10,230,12],[230,13,230,15],[230,16,230,17],[231,1,231,9],[231,10,231,12],[231,13,231,15],[231,16,231,17],[228,1,228,9],[228,10,228,12],[228,13,228,15],[228,16,228,17],[229,1,229,9],[229,10,229,12],[229,13,229,15],[229,16,229,17],[226,1,226,9],[226,10,226,12],[226,13,226,15],[226,16,226,17],[227,1,227,9],[227,10,227,12],[227,13,227,15],[227,16,227,17],[224,1,224,9],[224,10,224,12],[224,13,224,15],[224,16,224,17],[225,1,225,9],[225,10,225,12],[225,13,225,15],[225,16,225,17],[217,1,217,17],[218,1,218,17],[219,1,219,17],[220,1,220,17],[222,1,222,17],[223,1,223,9],[223,10,223,12],[223,13,223,15],[223,16,223,17],[221,1,221,17],[214,13,214,15],[214,16,214,17],[215,1,215,17],[212,1,212,9],[212,10,212,12],[212,13,212,15],[212,16,212,17],[213,1,213,9],[213,10,213,12],[213,13,213,15],[213,16,213,17],[210,1,210,9],[210,10,210,12],[210,13,210,15],[210,16,210,17],[211,1,211,9],[211,10,211,12],[211,13,211,15],[211,16,211,17],[208,1,208,9],[208,10,208,12],[208,13,208,15],[208,16,208,17],[209,1,209,9],[209,10,209,12],[209,13,209,15],[209,16,209,17],[206,1,206,9],[206,10,206,12],[206,13,206,15],[206,16,206,17],[207,1,207,9],[207,10,207,12],[207,13,207,15],[207,16,207,17],[204,1,204,9],[204,10,204,12],[204,13,204,15],[204,16,204,17],[205,1,205,9],[205,10,205,12],[205,13,205,15],[205,16,205,17],[202,1,202,9],[202,10,202,12],[202,13,202,15],[202,16,202,17],[203,1,203,9],[203,10,203,12],[203,13,203,15],[203,16,203,17],[200,1,200,9],[200,10,200,12],[200,13,200,15],[200,16,200,17],[201,1,201,9],[201,10,201,12],[201,13,201,15],[201,16,201,17],[198,1,198,9],[198,10,198,12],[198,13,198,15],[198,16,198,17],[199,1,199,9],[199,10,199,12],[199,13,199,15],[199,16,199,17],[196,1,196,9],[196,10,196,12],[196,13,196,15],[196,16,196,17],[197,1,197,9],[197,10,197,12],[197,13,197,15],[197,16,197,17],[194,1,194,9],[194,10,194,12],[194,13,194,15],[194,16,194,17],[195,1,195,9],[195,10,195,12],[195,13,195,15],[195,16,195,17],[192,1,192,9],[192,10,192,12],[192,13,192,15],[192,16,192,17],[193,1,193,9],[193,10,193,12],[193,13,193,15],[193,16,193,17],[190,1,190,9],[190,10,190,12],[190,13,190,15],[190,16,190,17],[191,1,191,9],[191,10,191,12],[191,13,191,15],[191,16,191,17],[188,1,188,9],[188,10,188,12],[188,13,188,15],[188,16,188,17],[189,1,189,9],[189,10,189,12],[189,13,189,15],[189,16,189,17],[186,1,186,9],[186,10,186,12],[186,13,186,15],[186,16,186,17],[187,1,187,9],[187,10,187,12],[187,13,187,15],[187,16,187,17],[184,1,184,9],[184,10,184,12],[184,13,184,15],[184,16,184,17],[185,1,185,9],[185,10,185,12],[185,13,185,15],[185,16,185,17],[182,1,182,9],[182,10,182,12],[182,13,182,15],[182,16,182,17],[183,1,183,9],[183,10,183,12],[183,13,183,15],[183,16,183,17],[180,1,180,9],[180,10,180,12],[180,13,180,15],[180,16,180,17],[181,1,181,9],[181,10,181,12],[181,13,181,15],[181,16,181,17],[178,1,178,9],[178,10,178,12],[178,13,178,15],[178,16,178,17],[179,1,179,9],[179,10,179,12],[179,13,179,15],[179,16,179,17],[172,1,172,17],[173,1,173,17],[174,1,174,17],[175,1,175,17],[176,1,176,17],[177,1,177,9],[177,10,177,12],[177,13,177,15],[177,16,177,17],[168,13,168,15],[168,16,168,17],[169,1,169,17],[170,1,170,17],[166,1,166,9],[166,10,166,12],[166,13,166,15],[166,16,166,17],[167,1,167,9],[167,10,167,12],[167,13,167,15],[167,16,167,17],[165,1,165,9],[165,10,165,12],[165,13,165,15],[165,16,165,17],[164,1,164,9],[164,10,164,12],[164,13,164,15],[164,16,164,17],[162,1,162,9],[162,10,162,12],[162,13,162,15],[162,16,162,17],[163,1,163,9],[163,10,163,12],[163,13,163,15],[163,16,163,17],[160,1,160,9],[160,10,160,12],[160,13,160,15],[160,16,160,17],[161,1,161,9],[161,10,161,12],[161,13,161,15],[161,16,161,17],[158,1,158,9],[158,10,158,12],[158,13,158,15],[158,16,158,17],[159,1,159,9],[159,10,159,12],[159,13,159,15],[159,16,159,17],[156,1,156,9],[156,10,156,12],[156,13,156,15],[156,16,156,17],[157,1,157,9],[157,10,157,12],[157,13,157,15],[157,16,157,17],[154,1,154,9],[154,10,154,12],[154,13,154,15],[154,16,154,17],[155,1,155,9],[155,10,155,12],[155,13,155,15],[155,16,155,17],[152,1,152,9],[152,10,152,12],[152,13,152,15],[152,16,152,17],[153,1,153,9],[153,10,153,12],[153,13,153,15],[153,16,153,17],[150,1,150,9],[150,10,150,12],[150,13,150,15],[150,16,150,17],[151,1,151,9],[151,10,151,12],[151,13,151,15],[151,16,151,17],[148,1,148,9],[148,10,148,12],[148,13,148,15],[148,16,148,17],[149,1,149,9],[149,10,149,12],[149,13,149,15],[149,16,149,17],[146,1,146,9],[146,10,146,12],[146,13,146,15],[146,16,146,17],[147,1,147,9],[147,10,147,12],[147,13,147,15],[147,16,147,17],[144,1,144,9],[144,10,144,12],[144,13,144,15],[144,16,144,17],[145,1,145,9],[145,10,145,12],[145,13,145,15],[145,16,145,17],[142,1,142,9],[142,10,142,12],[142,13,142,15],[142,16,142,17],[143,1,143,9],[143,10,143,12],[143,13,143,15],[143,16,143,17],[140,1,140,9],[140,10,140,12],[140,13,140,15],[140,16,140,17],[141,1,141,9],[141,10,141,12],[141,13,141,15],[141,16,141,17],[139,1,139,9],[139,10,139,12],[139,13,139,15],[139,16,139,17],[137,1,137,9],[137,10,137,12],[137,13,137,15],[137,16,137,17],[138,1,138,9],[138,10,138,12],[138,13,138,15],[138,16,138,17],[135,1,135,9],[135,10,135,12],[135,13,135,15],[135,16,135,17],[136,1,136,9],[136,10,136,12],[136,13,136,15],[136,16,136,17],[130,1,130,17],[131,1,131,17],[133,1,133,17],[134,1,134,9],[134,10,134,12],[134,13,134,15],[134,16,134,17],[126,1,126,17],[128,1,128,17],[129,1,129,17],[124,1,124,9],[124,10,124,12],[124,13,124,15],[124,16,124,17],[125,13,125,15],[125,16,125,17],[123,1,123,9],[123,10,123,12],[123,13,123,15],[123,16,123,17],[132,1,132,17],[121,1,121,9],[121,10,121,12],[121,13,121,15],[121,16,121,17],[122,1,122,9],[122,10,122,12],[122,13,122,15],[122,16,122,17],[119,1,119,9],[119,10,119,12],[119,13,119,15],[119,16,119,17],[120,1,120,9],[120,10,120,12],[120,13,120,15],[120,16,120,17],[117,1,117,9],[117,10,117,12],[117,13,117,15],[117,16,117,17],[118,1,118,9],[118,10,118,12],[118,13,118,15],[118,16,118,17],[115,1,115,9],[115,10,115,12],[115,13,115,15],[115,16,115,17],[116,1,116,9],[116,10,116,12],[116,13,116,15],[116,16,116,17],[113,1,113,9],[113,10,113,12],[113,13,113,15],[113,16,113,17],[114,1,114,9],[114,10,114,12],[114,13,114,15],[114,16,114,17],[111,1,111,9],[111,10,111,12],[111,13,111,15],[111,16,111,17],[112,1,112,9],[112,10,112,12],[112,13,112,15],[112,16,112,17],[109,1,109,9],[109,10,109,12],[109,13,109,15],[109,16,109,17],[110,1,110,9],[110,10,110,12],[110,13,110,15],[110,16,110,17],[107,1,107,9],[107,10,107,12],[107,13,107,15],[107,16,107,17],[108,1,108,9],[108,10,108,12],[108,13,108,15],[108,16,108,17],[105,1,105,9],[105,10,105,12],[105,13,105,15],[105,16,105,17],[106,1,106,9],[106,10,106,12],[106,13,106,15],[106,16,106,17],[103,1,103,9],[103,10,103,12],[103,13,103,15],[103,16,103,17],[104,1,104,9],[104,10,104,12],[104,13,104,15],[104,16,104,17],[101,1,101,9],[101,10,101,12],[101,13,101,15],[101,16,101,17],[102,1,102,9],[102,10,102,12],[102,13,102,15],[102,16,102,17],[99,1,99,9],[99,10,99,12],[99,13,99,15],[99,16,99,17],[100,1,100,9],[100,10,100,12],[100,13,100,15],[100,16,100,17],[97,1,97,9],[97,10,97,12],[97,13,97,15],[97,16,97,17],[98,1,98,9],[98,10,98,12],[98,13,98,15],[98,16,98,17],[95,1,95,9],[95,10,95,12],[95,13,95,15],[95,16,95,17],[96,1,96,9],[96,10,96,12],[96,13,96,15],[96,16,96,17],[93,1,93,9],[93,10,93,12],[93,13,93,15],[93,16,93,17],[94,1,94,9],[94,10,94,12],[94,13,94,15]],"merged_total":1233,"flags":["merged_cut"]}
[null,{"$f":"'Main Page'!$G$9","v":"2022-2023"},null,"School Division: ",{"$f":"'Main Page'!$F$13","v":"Albemarle County Public Schools"},null,null,null,"Division Number:  ",{"$f":"'Main Page'!$F$14","v":2},null,null,{"$f":"'Main Page'!$A$6","v":"Title II, Part A, Supporting Effective Instruction"}]
[null,"G.  BUDGET SUMMARY"]
[]
[null,"Section 5103(b)(2) of ESSA allows divisions to transfer all or a portion of the funds received from Title II, Part A, or Title IV, Part A, into: Title I, Part A; Title I, Part C; Title I, Part D; Title II, Part A; Title III, Part A; Title IV, Part A; or Title V, Part B.  "]
[]
[null,"Complete the tab below if funds will be transferred under Section 5103(b)(2). Please note that prior approval is required to transfer funds. The transfer request form is provided at "]
[null,"Transfer Request Form"]
[null,null,null,null,null,null,null,"Title IV, Part A, Transferability\nAward S424A220048\nProject Code APE60022"]
[null,null,null,null,null,null,null,{"$f":"Narrative!N57","v":0}]
[null,"OBJECT CODE","EXPENDITURE",null,null,null,null,"AMOUNT TRANSFERRED INTO PROGRAM",null,null,null,null,null,null,"DOES THE BUDGET SUMMARY  MATCH THE DETAILED BUDGET BREAKDOWN?"]
[null,"1000 -\n Personnel Services","Administrative"]
[null,null,"Non-Administrative"]
[null,null,"Private School Set-Aside "]
[null,null,"Total Personal Services",null,null,null,null,{"$f":"SUM(H11:N13)","v":0},null,null,null,null,null,null,{"$f":"IF(SUM(Q79)=SUM(H14:N14),\"Yes\", \"No - Please review your entries.\")","v":"Yes"}]
[null,"2000 -\nEmployee Benefits","Administrative"]
[null,null,"Non-Administrative"]
[null,null,"Private School Set-Aside "]
[null,null,"Total Employee Benefits",null,null,null,null,{"$f":"SUM(H15:N17)","v":0},null,null,null,null,null,null,{"$f":"IF(SUM(Q126)=SUM(H18:N18),\"Yes\",\"No - Please review your entries.\")","v":"Yes"}]
[null,"3000 - \nPurchased/\nContracted Services","Administrative"]
[null,null,"Non-Administrative"]
[null,null,"Private School Set-Aside "]
[null,null,"Total Purchased/Contracted Services",null,null,null,null,{"$f":"SUM(H19:N21)","v":0},null,null,null,null,null,null,{"$f":"IF(SUM(Q169)=SUM(H22:N22),\"Yes\",\"No - Please review your entries.\")","v":"Yes"}]
[null,"4000 - \nInternal Services","Internal Services"]
[null,null,"Total Internal Services",null,null,null,null,{"$f":"SUM(H23)","v":0},null,null,null,null,null,null,{"$f":"IF(SUM(Q215)=SUM(H24:N24),\"Yes\",\"No - Please review your entries.\")","v":"Yes"}]
[null,"5000 - \nOther  \nCharges","Indirect Cost"]
[null,null,"Non-Administrative"]
[null,null,"Private School Set-Aside "]
[null,null,"Total Other Charges",null,null,null,null,{"$f":"SUM(H25:N27)","v":0},null,null,null,null,null,null,{"$f":"IF(SUM(Q260)=SUM(H28:N28),\"Yes\",\"No - Please review your entries.\")","v":"Yes"}]
[null,"6000 - \nMaterials\nand Supplies","Administrative"]
[null,null,"Non-Administrative"]
[null,null,"Private School Set-Aside "]
[null,null,"Total Materials and Supplies",null,null,null,null,{"$f":"SUM(H29:N31)","v":0},null,null,null,null,null,null,{"$f":"IF(SUM(Q303)=SUM(H32:N32),\"Yes\",\"No - Please review your entries.\")","v":"Yes"}]
[null,"8000 - \nCapital\nOutlay","Non-Administrative"]
[null,null,"Total Capital Outlay",null,null,null,null,{"$f":"SUM(H33)","v":0},null,null,null,null,null,null,{"$f":"IF(SUM(Q344)=SUM(H34:N34),\"Yes\",\"No - Please review your entries.\")","v":"Yes"}]
[null,null,"TOTAL BUDGET",null,null,null,null,{"$f":"SUM(H34,H32,H28,H24,H22,H18,H14)","v":0}]
[null,null,"TOTAL SET-ASIDE",null,null,null,null,{"$f":"H11+H15+H19+H25+H29","v":0}]
[null,null,"TOTAL PRIVATE SCHOOL SET-ASIDE",null,null,null,null,{"$f":"SUM(H13,H17,H21,H27,H31)","v":0}]
[null,null,"DOES THE TRANSFERABILITY BUDGET SUMMARY MATCH THE TRANSFERABILITY ALLOCATION?",null,null,null,null,{"$f":"IF(H35=H9,\"Yes\",\"No - Please review your entries.\")","v":"Yes"},null,null,null,null,null,null,"Difference",null,{"$f":"H35-H9","v":0}]
[]
[null,"Page 23"]
[null,{"$f":"'Main Page'!$G$9","v":"2022-2023"},null,"School Division: ",{"$f":"'Main Page'!$F$13","v":"Albemarle County Public Schools"},null,null,null,"Division Number:  ",{"$f":"'Main Page'!$F$14","v":2},null,null,{"$f":"'Main Page'!$A$6","v":"Title II, Part A, Supporting Effective Instruction"}]
[null,"H.  DETAILED BUDGET BREAKDOWN"]
[null,"Prepare a detailed breakdown of the budget categories for Object Codes 1000-6000 and 8000.  Choose the appropriate category for each expense in the dropdown list under \"Funding Source.\""]
[null,"Does the Transferability Detailed Budget Breakdown Match the Transferability Allocation?",null,null,null,null,null,null,null,null,{"$f":"IF(H35=SUM(Q79,Q126,Q169, Q215, Q260, Q303, Q344),\"Yes\",\"No - Please review your entries.\")","v":"Yes"}]
[]
[null,"DETAILED BUDGET DESCRIPTION OF OBJECT CODE 1000"]
[null,"Provide a description of the positions supported with funds from this program. Indicate if any positions are newly funded under this program.  Explain the supplementary nature of any new positions. Required if staff positions are to be funded by federal funds."]
[]
[]
[null,"Please provide a detailed description of Private School activities (If no private school set-aside is present, please enter N/A). "]
[]
[null,"Item Description",null,null,null,null,null,null,"Measurable Objective",null,"Funding Source",null,null,null,"FTEs",null,"Total Cost"]
[null,"Value of professional development personnel-related services or stipends on behalf of private schools"]
[]
[]
[]
[]
[]
[]
[]
[]
[]
[]
[]
[]
[]
[]
[]
[]
[]
[]
[]
[]
[]
[]
[]
[]
[]
[null,null,null,null,null,"      ",null,null,null,null,"Total for Object Code:",null,null,null,{"$f":"SUM(O53:P78)","v":0},null,{"$f":"SUM(Q53:R78)","v":0}]
[]
[null,"Page 24"]
[null,{"$f":"'Main Page'!$G$9","v":"2022-2023"},null,"School Division: ",{"$f":"'Main Page'!$F$13","v":"Albemarle County Public Schools"},null,null,null,"Division Number:  ",{"$f":"'Main Page'!$F$14","v":2},null,null,{"$f":"'Main Page'!$A$6","v":"Title II, Part A, Supporting Effective Instruction"}]
[null,"DETAILED BUDGET DESCRIPTION OF OBJECT CODE 2000"]
[null,"Indicate the fixed charge categories (such as FICA, health, etc.) and specify the amount of each."]
[]
[]
[null,"Please provide a detailed description of Private School activities (If no private school set-aside is present, please enter N/A). "]
[]
[null,"Item Description",null,null,null,null,null,null,null,null,"Measurable Objective",null,null,"Funding Source",null,null,"Total Cost"]
[null,"Private School Set-aside"]
[]
[]
[]
[]
[]
[]
[]
[]
[]
[]
[]
[]
[]
[]
[]
[]
[]
[]
[]
[]
[]
[]
[]
[]
[]
[]
[]
[]
[]
[]
[]
[]
[]
[]
[]
[null,null,null,null,null,"      ",null,null,null,null,null,null,null,"Total for Object Code:",null,null,{"$f":"SUM(Q90:R125)","v":0}]
[null,"Page 25"]
[null,{"$f":"'Main Page'!$G$9","v":"2022-2023"},null,"School Division: ",{"$f":"'Main Page'!$F$13","v":"Albemarle County Public Schools"},null,null,null,"Division Number:  ",{"$f":"'Main Page'!$F$14","v":2},null,null,{"$f":"'Main Page'!$A$6","v":"Title II, Part A, Supporting Effective Instruction"}]
[null,"DETAILED BUDGET DESCRIPTION OF OBJECT CODE 3000"]
[null,"Please indicate how these funds will support any services and activities that are described in this application.  If program funds are expended for professional development, justify such expenditures by demonstrating a relationship between the proposed expenditure for professional development and the program services and activities described in the application. \nNOTE:  All tuition-related expenses should be included in this object code."]
[]
[]
[null,"Please provide a detailed description of Private School activities (If no private school set-aside is present, please enter N/A). "]
[]
[null,"Item Description",null,null,null,null,null,null,null,null,"Measurable Objective",null,null,"Funding Source",null,null,"Total Cost"]
[null,"Private School Set-aside"]
[]
[]
[]
[]
[]
[]
[]
[]
[]
[]
[]
[]
[]
[]
[]
[]
[]
[]
[]
[]
[]
[]
[]
[]
[]
[]
[]
[]
[]
[]
[]
[]
[null,null,null,null,null,"      ",null,null,null,null,null,null,null,"Total for Object Code:",null,null,{"$f":"SUM(Q136:R168)","v":0}]
[]
[null,"Page 26"]
[null,{"$f":"'Main Page'!$G$9","v":"2022-2023"},null,"School Division: ",{"$f":"'Main Page'!$F$13","v":"Albemarle County Public Schools"},null,null,null,"Division Number:  ",{"$f":"'Main Page'!$F$14","v":2},null,null,{"$f":"'Main Page'!$A$6","v":"Title II, Part A, Supporting Effective Instruction"}]
[null,"DETAILED BUDGET DESCRIPTION OF OBJECT CODE 4000"]
[null,"Provide a description of charges from an Internal Service Fund to other functions/activities/elements of the local government for the use of intergovernmental services.  "]
[]
[]
[]
[null,"Item Description",null,null,null,null,null,null,null,null,"Measurable Objective",null,null,"Funding Source",null,null,"Total Cost"]
[]
[]
[]
[]
[]
[]
[]
[]
[]
[]
[]
[]
[]
[]
[]
[]
[]
[]
[]
[]
[]
[]
[]
[]
[]
[]
[]
[]
[]
[]
[]
[]
[]
[]
[]
[]
[null,null,null,null,null,"      ",null,null,null,null,null,null,null,"Total for Object Code:",null,null,{"$f":"SUM(Q179:R214)","v":0}]
[null,"Page 27"]
[null,{"$f":"'Main Page'!$G$9","v":"2022-2023"},null,"School Division: ",{"$f":"'Main Page'!$F$13","v":"Albemarle County Public Schools"},null,null,null,"Division Number:  ",{"$f":"'Main Page'!$F$14","v":2},null,null,{"$f":"'Main Page'!$A$6","v":"Title II, Part A, Supporting Effective Instruction"}]
[null,"DETAILED BUDGET DESCRIPTION OF OBJECT CODE 5000"]
[null,"Provide a description of the expenditures that support the program, including utilities (maintenance and operation of plant), staff/administrative/consultant travel, office phone charges, training, leases/rental, indirect cost, and other.   Indirect costs cannot be claimed against capital outlay and equipment."]
[]
[]
[null,"Please provide a detailed description of Private School activities (If no private school set-aside is present, please enter N/A). "]
[]
[null,"Item Description",null,null,null,null,null,null,null,null,"Measurable Objective",null,null,"Funding Source",null,null,"Total Cost"]
[null,"Private School Set-aside"]
[]
[]
[]
[]
[]
[]
[]
[]
[]
[]
[]
[]
[]
[]
[]
[]
[]
[]
[]
[]
[]
[]
[]
[]
[]
[]
[]
[]
[]
[]
[]
[]
[]
[]
[null,null,null,null,null,"      ",null,null,null,null,null,null,null,"Total for Object Code:",null,null,{"$f":"SUM(Q225:R259)","v":0}]
[null,"Page 28"]
[null,{"$f":"'Main Page'!$G$9","v":"2022-2023"},null,"School Division: ",{"$f":"'Main Page'!$F$13","v":"Albemarle County Public Schools"},null,null,null,"Division Number:  ",{"$f":"'Main Page'!$F$14","v":2},null,null,{"$f":"'Main Page'!$A$6","v":"Title II, Part A, Supporting Effective Instruction"}]
[null,"DETAILED BUDGET DESCRIPTION OF OBJECT CODE 6000"]
[null,"Provide a description for expenses related to object code 6000 Materials and Supplies.  Include items that are consumed or materially altered when used and minor equipment that is not capitalized. Equipment under $5,000, including computer equipment, should be reported under this object code unless the LEA has set a lower capitalization threshold.  Indicate the quantity for each item.  "]
[]
[]
[null,"Please provide a detailed description of Private School activities (If no private school set-aside is present, please enter N/A). "]
[]
[null,"Item Description",null,null,null,null,null,null,"Measurable Objective",null,"Funding Source",null,null,null,"Quantity",null,"Total Cost"]
[null,"Private School Set-aside"]
[]
[]
[]
[]
[]
[]
[]
[]
[]
[]
[]
[]
[]
[]
[]
[]
[]
[]
[]
[]
[]
[]
[]
[]
[]
[]
[]
[]
[]
[]
[]
[]
[null,null,null,null,null,"      ",null,null,null,null,"Total for Object Code:",null,null,null,null,null,{"$f":"SUM(Q270:R302)","v":0}]
[null,"Page 29"]
[null,{"$f":"'Main Page'!$G$9","v":"2022-2023"},null,"School Division: ",{"$f":"'Main Page'!$F$13","v":"Albemarle County Public Schools"},null,null,null,"Division Number:  ",{"$f":"'Main Page'!$F$14","v":2},null,null,{"$f":"'Main Page'!$A$6","v":"Title II, Part A, Supporting Effective Instruction"}]
[null,"DETAILED BUDGET DESCRIPTION OF OBJECT CODE 8000"]
[null,"Provide a description for expenses related to object code.   All capital outlay expenditures over $5,000 per unit must be approved by the Virginia Department of Education through the application submission and approval process. If the local school division has established a threshold of a lesser amount, items equal to that amount or greater must be itemized in Object Code 8000.  Specify equipment quantities."]
[]
[]
[null,"Please provide a detailed description of Private School activities (If no private school set-aside is present, please enter N/A). "]
[]
[null,"Item Description",null,null,null,null,null,null,"Measurable Objective",null,"Funding Source",null,null,null,"Quantity",null,"Total Cost"]
[null,"Private School Set-aside"]
[]
[]
[]
[]
[]
[]
[]
[]
[]
[]
[]
[]
[]
[]
[]
[]
[]
[]
[]
[]
[]
[]
[]
[]
[]
[]
[]
[]
[]
[]
[null,null,null,null,null,"      ",null,null,null,null,"Total for Object Code:",null,null,null,null,null,{"$f":"SUM(Q313:R343)","v":0}]
[null,"Page 30"]

{"sheet":"Teacher Quality","index":5,"n_rows":36,"n_cols":16,"rows_kept":36,"cut":false,"hidden":false,"merged":[[1,1,1,16],[3,1,3,16],[2,1,2,16],[4,1,4,16],[5,1,5,16],[9,15,9,16],[15,32,15,47],[15,48,15,63],[15,64,15,79],[15,448,15,463],[15,464,15,479],[8,1,8,16],[15,320,15,335],[15,336,15,351],[15,352,15,367],[10,15,10,16],[11,15,11,16],[12,15,12,16],[13,15,13,16],[9,12,9,13],[15,256,15,271],[15,272,15,287],[15,288,15,303],[15,304,15,319],[15,160,15,175],[15,176,15,191],[15,192,15,207],[15,208,15,223],[15,224,15,239],[15,80,15,95],[15,96,15,111],[15,112,15,127],[15,128,15,143],[15,144,15,159],[15,944,15,959],[15,800,15,815],[15,816,15,831],[15,832,15,847],[15,848,15,863],[15,864,15,879],[15,720,15,735],[15,736,15,751],[15,752,15,767],[15,768,15,783],[15,784,15,799],[0,11,0,16],[6,1,6,16],[7,1,7,16],[15,640,15,655],[15,656,15,671],[15,672,15,687],[15,688,15,703],[15,704,15,719],[15,560,15,575],[15,576,15,591],[15,592,15,607],[15,608,15,623],[15,624,15,639],[15,480,15,495],[15,496,15,511],[15,512,15,527],[15,528,15,543],[15,544,15,559],[15,400,15,415],[15,416,15,431],[15,432,15,447],[15,368,15,383],[15,384,15,399],[15,240,15,255],[15,1280,15,1295],[15,1296,15,1311],[15,1312,15,1327],[15,1328,15,1343],[15,1344,15,1359],[15,1200,15,1215],[15,1216,15,1231],[15,1232,15,1247],[15,1248,15,1263],[15,1264,15,1279],[15,1120,15,1135],[15,1136,15,1151],[15,1152,15,1167],[15,1168,15,1183],[15,1184,15,1199],[15,1040,15,1055],[15,1056,15,1071],[15,1072,15,1087],[15,1088,15,1103],[15,1104,15,1119],[15,960,15,975],[15,976,15,991],[15,992,15,1007],[15,1008,15,1023],[15,1024,15,1039],[15,880,15,895],[15,896,15,911],[15,912,15,927],[15,928,15,943],[15,1600,15,1615],[15,1616,15,1631],[15,1632,15,1647],[15,1648,15,1663],[15,1664,15,1679],[15,1520,15,1535],[15,1536,15,1551],[15,1552,15,1567],[15,1568,15,1583],[15,1584,15,1599],[15,1440,15,1455],[15,1456,15,1471],[15,1472,15,1487],[15,1488,15,1503],[15,1504,15,1519],[15,1360,15,1375],[15,1376,15,1391],[15,1392,15,1407],[15,1408,15,1423],[15,1424,15,1439],[15,1920,15,1935],[15,1936,15,1951],[15,1952,15,1967],[15,1968,15,1983],[15,1984,15,1999],[15,1840,15,1855],[15,1856,15,1871],[15,1872,15,1887],[15,1888,15,1903],[15,1904,15,1919],[15,1760,15,1775],[15,1776,15,1791],[15,1792,15,1807],[15,1808,15,1823],[15,1824,15,1839],[15,1680,15,1695],[15,1696,15,1711],[15,1712,15,1727],[15,1728,15,1743],[15,1744,15,1759],[15,2240,15,2255],[15,2256,15,2271],[15,2272,15,2287],[15,2288,15,2303],[15,2304,15,2319],[15,2160,15,2175],[15,2176,15,2191],[15,2192,15,2207],[15,2208,15,2223],[15,2224,15,2239],[15,2080,15,2095],[15,2096,15,2111],[15,2112,15,2127],[15,2128,15,2143],[15,2144,15,2159],[15,2000,15,2015],[15,2016,15,2031],[15,2032,15,2047],[15,2048,15,2063],[15,2064,15,2079],[15,2560,15,2575],[15,2576,15,2591],[15,2592,15,2607],[15,2608,15,2623],[15,2624,15,2639],[15,2480,15,2495],[15,2496,15,2511],[15,2512,15,2527],[15,2528,15,2543],[15,2544,15,2559],[15,2400,15,2415],[15,2416,15,2431],[15,2432,15,2447],[15,2448,15,2463],[15,2464,15,2479],[15,2320,15,2335],[15,2336,15,2351],[15,2352,15,2367],[15,2368,15,2383],[15,2384,15,2399],[15,2880,15,2895],[15,2896,15,2911],[15,2912,15,2927],[15,2928,15,2943],[15,2944,15,2959],[15,2800,15,2815],[15,2816,15,2831],[15,2832,15,2847],[15,2848,15,2863],[15,2864,15,2879],[15,2720,15,2735],[15,2736,15,2751],[15,2752,15,2767],[15,2768,15,2783],[15,2784,15,2799],[15,2640,15,2655],[15,2656,15,2671],[15,2672,15,2687],[15,2688,15,2703],[15,2704,15,2719],[15,3200,15,3215],[15,3216,15,3231],[15,3232,15,3247],[15,3248,15,3263],[15,3264,15,3279],[15,3120,15,3135],[15,3136,15,3151],[15,3152,15,3167],[15,3168,15,3183],[15,3184,15,3199],[15,3040,15,3055],[15,3056,15,3071],[15,3072,15,3087],[15,3088,15,3103],[15,3104,15,3119],[15,2960,15,2975],[15,2976,15,2991],[15,2992,15,3007],[15,3008,15,3023],[15,3024,15,3039],[15,3520,15,3535],[15,3536,15,3551],[15,3552,15,3567],[15,3568,15,3583],[15,3584,15,3599],[15,3440,15,3455],[15,3456,15,3471],[15,3472,15,3487],[15,3488,15,3503],[15,3504,15,3519],[15,3360,15,3375],[15,3376,15,3391],[15,3392,15,3407],[15,3408,15,3423],[15,3424,15,3439],[15,3280,15,3295],[15,3296,15,3311],[15,3312,15,3327],[15,3328,15,3343],[15,3344,15,3359],[15,3840,15,3855],[15,3856,15,3871],[15,3872,15,3887],[15,3888,15,3903],[15,3904,15,3919],[15,3760,15,3775],[15,3776,15,3791],[15,3792,15,3807],[15,3808,15,3823],[15,3824,15,3839],[15,3680,15,3695],[15,3696,15,3711],[15,3712,15,3727],[15,3728,15,3743],[15,3744,15,3759],[15,3600,15,3615],[15,3616,15,3631],[15,3632,15,3647],[15,3648,15,3663],[15,3664,15,3679],[15,4160,15,4175],[15,4176,15,4191],[15,4192,15,4207],[15,4208,15,4223],[15,4224,15,4239],[15,4080,15,4095],[15,4096,15,4111],[15,4112,15,4127],[15,4128,15,4143],[15,4144,15,4159],[15,4000,15,4015],[15,4016,15,4031],[15,4032,15,4047],[15,4048,15,4063],[15,4064,15,4079],[15,3920,15,3935],[15,3936,15,3951],[15,3952,15,3967],[15,3968,15,3983],[15,3984,15,3999],[15,4480,15,4495],[15,4496,15,4511],[15,4512,15,4527],[15,4528,15,4543],[15,4544,15,4559],[15,4400,15,4415],[15,4416,15,4431],[15,4432,15,4447],[15,4448,15,4463],[15,4464,15,4479],[15,4320,15,4335],[15,4336,15,4351],[15,4352,15,4367],[15,4368,15,4383],[15,4384,15,4399],[15,4240,15,4255],[15,4256,15,4271],[15,4272,15,4287],[15,4288,15,4303],[15,4304,15,4319],[15,4800,15,4815],[15,4816,15,4831],[15,4832,15,4847],[15,4848,15,4863],[15,4864,15,4879],[15,4720,15,4735],[15,4736,15,4751],[15,4752,15,4767],[15,4768,15,4783],[15,4784,15,4799],[15,4640,15,4655],[15,4656,15,4671],[15,4672,15,4687],[15,4688,15,4703],[15,4704,15,4719],[15,4560,15,4575],[15,4576,15,4591],[15,4592,15,4607],[15,4608,15,4623],[15,4624,15,4639],[15,5120,15,5135],[15,5136,15,5151],[15,5152,15,5167],[15,5168,15,5183],[15,5184,15,5199],[15,5040,15,5055],[15,5056,15,5071],[15,5072,15,5087],[15,5088,15,5103],[15,5104,15,5119],[15,4960,15,4975],[15,4976,15,4991],[15,4992,15,5007],[15,5008,15,5023],[15,5024,15,5039],[15,4880,15,4895],[15,4896,15,4911],[15,4912,15,4927],[15,4928,15,4943],[15,4944,15,4959],[15,5440,15,5455],[15,5456,15,5471],[15,5472,15,5487],[15,5488,15,5503],[15,5504,15,5519],[15,5360,15,5375],[15,5376,15,5391],[15,5392,15,5407],[15,5408,15,5423],[15,5424,15,5439],[15,5280,15,5295],[15,5296,15,5311],[15,5312,15,5327],[15,5328,15,5343],[15,5344,15,5359],[15,5200,15,5215],[15,5216,15,5231],[15,5232,15,5247],[15,5248,15,5263],[15,5264,15,5279],[15,5760,15,5775],[15,5776,15,5791],[15,5792,15,5807],[15,5808,15,5823],[15,5824,15,5839],[15,5680,15,5695],[15,5696,15,5711],[15,5712,15,5727],[15,5728,15,5743],[15,5744,15,5759],[15,5600,15,5615],[15,5616,15,5631],[15,5632,15,5647],[15,5648,15,5663],[15,5664,15,5679],[15,5520,15,5535],[15,5536,15,5551],[15,5552,15,5567],[15,5568,15,5583],[15,5584,15,5599],[15,6080,15,6095],[15,6096,15,6111],[15,6112,15,6127],[15,6128,15,6143],[15,6144,15,6159],[15,6000,15,6015],[15,6016,15,6031],[15,6032,15,6047],[15,6048,15,6063],[15,6064,15,6079],[15,5920,15,5935],[15,5936,15,5951],[15,5952,15,5967],[15,5968,15,5983],[15,5984,15,5999],[15,5840,15,5855],[15,5856,15,5871],[15,5872,15,5887],[15,5888,15,5903],[15,5904,15,5919],[15,6400,15,6415],[15,6416,15,6431],[15,6432,15,6447],[15,6448,15,6463],[15,6464,15,6479],[15,6320,15,6335],[15,6336,15,6351],[15,6352,15,6367],[15,6368,15,6383],[15,6384,15,6399],[15,6240,15,6255],[15,6256,15,6271],[15,6272,15,6287],[15,6288,15,6303],[15,6304,15,6319],[15,6160,15,6175],[15,6176,15,6191],[15,6192,15,6207],[15,6208,15,6223],[15,6224,15,6239],[15,6720,15,6735],[15,6736,15,6751],[15,6752,15,6767],[15,6768,15,6783],[15,6784,15,6799],[15,6640,15,6655],[15,6656,15,6671],[15,6672,15,6687],[15,6688,15,6703],[15,6704,15,6719],[15,6560,15,6575],[15,6576,15,6591],[15,6592,15,6607],[15,6608,15,6623],[15,6624,15,6639],[15,6480,15,6495],[15,6496,15,6511],[15,6512,15,6527],[15,6528,15,6543],[15,6544,15,6559],[15,7040,15,7055],[15,7056,15,7071],[15,7072,15,7087],[15,7088,15,7103],[15,7104,15,7119],[15,6960,15,6975],[15,6976,15,6991],[15,6992,15,7007],[15,7008,15,7023],[15,7024,15,7039],[15,6880,15,6895],[15,6896,15,6911],[15,6912,15,6927],[15,6928,15,6943],[15,6944,15,6959],[15,6800,15,6815],[15,6816,15,6831],[15,6832,15,6847],[15,6848,15,6863],[15,6864,15,6879],[15,7360,15,7375],[15,7376,15,7391],[15,7392,15,7407],[15,7408,15,7423],[15,7424,15,7439],[15,7280,15,7295],[15,7296,15,7311],[15,7312,15,7327],[15,7328,15,7343],[15,7344,15,7359],[15,7200,15,7215],[15,7216,15,7231],[15,7232,15,7247],[15,7248,15,7263],[15,7264,15,7279],[15,7120,15,7135],[15,7136,15,7151],[15,7152,15,7167],[15,7168,15,7183],[15,7184,15,7199],[15,7680,15,7695],[15,7696,15,7711],[15,7712,15,7727],[15,7728,15,7743],[15,7744,15,7759],[15,7600,15,7615],[15,7616,15,7631],[15,7632,15,7647],[15,7648,15,7663],[15,7664,15,7679],[15,7520,15,7535],[15,7536,15,7551],[15,7552,15,7567],[15,7568,15,7583],[15,7584,15,7599],[15,7440,15,7455],[15,7456,15,7471],[15,7472,15,7487],[15,7488,15,7503],[15,7504,15,7519],[15,8000,15,8015],[15,8016,15,8031],[15,8032,15,8047],[15,8048,15,8063],[15,8064,15,8079],[15,7920,15,7935],[15,7936,15,7951],[15,7952,15,7967],[15,7968,15,7983],[15,7984,15,7999],[15,7840,15,7855],[15,7856,15,7871],[15,7872,15,7887],[15,7888,15,7903],[15,7904,15,7919],[15,7760,15,7775],[15,7776,15,7791],[15,7792,15,7807],[15,7808,15,7823],[15,7824,15,7839],[15,8320,15,8335],[15,8336,15,8351],[15,8352,15,8367],[15,8368,15,8383],[15,8384,15,8399],[15,8240,15,8255],[15,8256,15,8271],[15,8272,15,8287],[15,8288,15,8303],[15,8304,15,8319],[15,8160,15,8175],[15,8176,15,8191],[15,8192,15,8207],[15,8208,15,8223],[15,8224,15,8239],[15,8080,15,8095],[15,8096,15,8111],[15,8112,15,8127],[15,8128,15,8143],[15,8144,15,8159],[15,8640,15,8655],[15,8656,15,8671],[15,8672,15,8687],[15,8688,15,8703],[15,8704,15,8719],[15,8560,15,8575],[15,8576,15,8591],[15,8592,15,8607],[15,8608,15,8623],[15,8624,15,8639],[15,8480,15,8495],[15,8496,15,8511],[15,8512,15,8527],[15,8528,15,8543],[15,8544,15,8559],[15,8400,15,8415],[15,8416,15,8431],[15,8432,15,8447],[15,8448,15,8463],[15,8464,15,8479],[15,8960,15,8975],[15,8976,15,8991],[15,8992,15,9007],[15,9008,15,9023],[15,9024,15,9039],[15,8880,15,8895],[15,8896,15,8911],[15,8912,15,8927],[15,8928,15,8943],[15,8944,15,8959],[15,8800,15,8815],[15,8816,15,8831],[15,8832,15,8847],[15,8848,15,8863],[15,8864,15,8879],[15,8720,15,8735],[15,8736,15,8751],[15,8752,15,8767],[15,8768,15,8783],[15,8784,15,8799],[15,9280,15,9295],[15,9296,15,9311],[15,9312,15,9327],[15,9328,15,9343],[15,9344,15,9359],[15,9200,15,9215],[15,9216,15,9231],[15,9232,15,9247],[15,9248,15,9263],[15,9264,15,9279],[15,9120,15,9135],[15,9136,15,9151],[15,9152,15,9167],[15,9168,15,9183],[15,9184,15,9199],[15,9040,15,9055],[15,9056,15,9071],[15,9072,15,9087],[15,9088,15,9103],[15,9104,15,9119],[15,9600,15,9615],[15,9616,15,9631],[15,9632,15,9647],[15,9648,15,9663],[15,9664,15,9679],[15,9520,15,9535],[15,9536,15,9551],[15,9552,15,9567],[15,9568,15,9583],[15,9584,15,9599],[15,9440,15,9455],[15,9456,15,9471],[15,9472,15,9487],[15,9488,15,9503],[15,9504,15,9519],[15,9360,15,9375],[15,9376,15,9391],[15,9392,15,9407],[15,9408,15,9423],[15,9424,15,9439],[15,9920,15,9935],[15,9936,15,9951],[15,9952,15,9967],[15,9968,15,9983],[15,9984,15,9999],[15,9840,15,9855],[15,9856,15,9871],[15,9872,15,9887],[15,9888,15,9903],[15,9904,15,9919],[15,9760,15,9775],[15,9776,15,9791],[15,9792,15,9807],[15,9808,15,9823],[15,9824,15,9839],[15,9680,15,9695],[15,9696,15,9711],[15,9712,15,9727],[15,9728,15,9743],[15,9744,15,9759],[15,10240,15,10255],[15,10256,15,10271],[15,10272,15,10287],[15,10288,15,10303],[15,10304,15,10319],[15,10160,15,10175],[15,10176,15,10191],[15,10192,15,10207],[15,10208,15,10223],[15,10224,15,10239],[15,10080,15,10095],[15,10096,15,10111],[15,10112,15,10127],[15,10128,15,10143],[15,10144,15,10159],[15,10000,15,10015],[15,10016,15,10031],[15,10032,15,10047],[15,10048,15,10063],[15,10064,15,10079],[15,10560,15,10575],[15,10576,15,10591],[15,10592,15,10607],[15,10608,15,10623],[15,10624,15,10639],[15,10480,15,10495],[15,10496,15,10511],[15,10512,15,10527],[15,10528,15,10543],[15,10544,15,10559],[15,10400,15,10415],[15,10416,15,10431],[15,10432,15,10447],[15,10448,15,10463],[15,10464,15,10479],[15,10320,15,10335],[15,10336,15,10351],[15,10352,15,10367],[15,10368,15,10383],[15,10384,15,10399],[15,10880,15,10895],[15,10896,15,10911],[15,10912,15,10927],[15,10928,15,10943],[15,10944,15,10959],[15,10800,15,10815],[15,10816,15,10831],[15,10832,15,10847],[15,10848,15,10863],[15,10864,15,10879],[15,10720,15,10735],[15,10736,15,10751],[15,10752,15,10767],[15,10768,15,10783],[15,10784,15,10799],[15,10640,15,10655],[15,10656,15,10671],[15,10672,15,10687],[15,10688,15,10703],[15,10704,15,10719],[15,11200,15,11215],[15,11216,15,11231],[15,11232,15,11247],[15,11248,15,11263],[15,11264,15,11279],[15,11120,15,11135],[15,11136,15,11151],[15,11152,15,11167],[15,11168,15,11183],[15,11184,15,11199],[15,11040,15,11055],[15,11056,15,11071],[15,11072,15,11087],[15,11088,15,11103],[15,11104,15,11119],[15,10960,15,10975],[15,10976,15,10991],[15,10992,15,11007],[15,11008,15,11023],[15,11024,15,11039],[15,11520,15,11535],[15,11536,15,11551],[15,11552,15,11567],[15,11568,15,11583],[15,11584,15,11599],[15,11440,15,11455],[15,11456,15,11471],[15,11472,15,11487],[15,11488,15,11503],[15,11504,15,11519],[15,11360,15,11375],[15,11376,15,11391],[15,11392,15,11407],[15,11408,15,11423],[15,11424,15,11439],[15,11280,15,11295],[15,11296,15,11311],[15,11312,15,11327],[15,11328,15,11343],[15,11344,15,11359],[15,11840,15,11855],[15,11856,15,11871],[15,11872,15,11887],[15,11888,15,11903],[15,11904,15,11919],[15,11760,15,11775],[15,11776,15,11791],[15,11792,15,11807],[15,11808,15,11823],[15,11824,15,11839],[15,11680,15,11695],[15,11696,15,11711],[15,11712,15,11727],[15,11728,15,11743],[15,11744,15,11759],[15,11600,15,11615],[15,11616,15,11631],[15,11632,15,11647],[15,11648,15,11663],[15,11664,15,11679],[15,12160,15,12175],[15,12176,15,12191],[15,12192,15,12207],[15,12208,15,12223],[15,12224,15,12239],[15,12080,15,12095],[15,12096,15,12111],[15,12112,15,12127],[15,12128,15,12143],[15,12144,15,12159],[15,12000,15,12015],[15,12016,15,12031],[15,12032,15,12047],[15,12048,15,12063],[15,12064,15,12079],[15,11920,15,11935],[15,11936,15,11951],[15,11952,15,11967],[15,11968,15,11983],[15,11984,15,11999],[15,12480,15,12495],[15,12496,15,12511],[15,12512,15,12527],[15,12528,15,12543],[15,12544,15,12559],[15,12400,15,12415],[15,12416,15,12431],[15,12432,15,12447],[15,12448,15,12463],[15,12464,15,12479],[15,12320,15,12335],[15,12336,15,12351],[15,12352,15,12367],[15,12368,15,12383],[15,12384,15,12399],[15,12240,15,12255],[15,12256,15,12271],[15,12272,15,12287],[15,12288,15,12303],[15,12304,15,12319],[15,12800,15,12815],[15,12816,15,12831],[15,12832,15,12847],[15,12848,15,12863],[15,12864,15,12879],[15,12720,15,12735],[15,12736,15,12751],[15,12752,15,12767],[15,12768,15,12783],[15,12784,15,12799],[15,12640,15,12655],[15,12656,15,12671],[15,12672,15,12687],[15,12688,15,12703],[15,12704,15,12719],[15,12560,15,12575],[15,12576,15,12591],[15,12592,15,12607],[15,12608,15,12623],[15,12624,15,12639],[15,13120,15,13135],[15,13136,15,13151],[15,13152,15,13167],[15,13168,15,13183],[15,13184,15,13199],[15,13040,15,13055],[15,13056,15,13071],[15,13072,15,13087],[15,13088,15,13103],[15,13104,15,13119],[15,12960,15,12975],[15,12976,15,12991],[15,12992,15,13007],[15,13008,15,13023],[15,13024,15,13039],[15,12880,15,12895],[15,12896,15,12911],[15,12912,15,12927],[15,12928,15,12943],[15,12944,15,12959],[15,13440,15,13455],[15,13456,15,13471],[15,13472,15,13487],[15,13488,15,13503],[15,13504,15,13519],[15,13360,15,13375],[15,13376,15,13391],[15,13392,15,13407],[15,13408,15,13423],[15,13424,15,13439],[15,13280,15,13295],[15,13296,15,13311],[15,13312,15,13327],[15,13328,15,13343],[15,13344,15,13359],[15,13200,15,13215],[15,13216,15,13231],[15,13232,15,13247],[15,13248,15,13263],[15,13264,15,13279],[15,13760,15,13775],[15,13776,15,13791],[15,13792,15,13807],[15,13808,15,13823],[15,13824,15,13839],[15,13680,15,13695],[15,13696,15,13711],[15,13712,15,13727],[15,13728,15,13743],[15,13744,15,13759],[15,13600,15,13615],[15,13616,15,13631],[15,13632,15,13647],[15,13648,15,13663],[15,13664,15,13679],[15,13520,15,13535],[15,13536,15,13551],[15,13552,15,13567],[15,13568,15,13583],[15,13584,15,13599],[15,14080,15,14095],[15,14096,15,14111],[15,14112,15,14127],[15,14128,15,14143],[15,14144,15,14159],[15,14000,15,14015],[15,14016,15,14031],[15,14032,15,14047],[15,14048,15,14063],[15,14064,15,14079],[15,13920,15,13935],[15,13936,15,13951],[15,13952,15,13967],[15,13968,15,13983],[15,13984,15,13999],[15,13840,15,13855],[15,13856,15,13871],[15,13872,15,13887],[15,13888,15,13903],[15,13904,15,13919],[15,14400,15,14415],[15,14416,15,14431],[15,14432,15,14447],[15,14448,15,14463],[15,14464,15,14479],[15,14320,15,14335],[15,14336,15,14351],[15,14352,15,14367],[15,14368,15,14383],[15,14384,15,14399],[15,14240,15,14255],[15,14256,15,14271],[15,14272,15,14287],[15,14288,15,14303],[15,14304,15,14319],[15,14160,15,14175],[15,14176,15,14191],[15,14192,15,14207],[15,14208,15,14223],[15,14224,15,14239],[15,14720,15,14735],[15,14736,15,14751],[15,14752,15,14767],[15,14768,15,14783],[15,14784,15,14799],[15,14640,15,14655],[15,14656,15,14671],[15,14672,15,14687],[15,14688,15,14703],[15,14704,15,14719],[15,14560,15,14575],[15,14576,15,14591],[15,14592,15,14607],[15,14608,15,14623],[15,14624,15,14639],[15,14480,15,14495],[15,14496,15,14511],[15,14512,15,14527],[15,14528,15,14543],[15,14544,15,14559],[15,15040,15,15055],[15,15056,15,15071],[15,15072,15,15087],[15,15088,15,15103],[15,15104,15,15119],[15,14960,15,14975],[15,14976,15,14991],[15,14992,15,15007],[15,15008,15,15023],[15,15024,15,15039],[15,14880,15,14895],[15,14896,15,14911],[15,14912,15,14927],[15,14928,15,14943],[15,14944,15,14959],[15,14800,15,14815],[15,14816,15,14831],[15,14832,15,14847],[15,14848,15,14863],[15,14864,15,14879],[15,15360,15,15375],[15,15376,15,15391],[15,15392,15,15407],[15,15408,15,15423],[15,15424,15,15439],[15,15280,15,15295],[15,15296,15,15311],[15,15312,15,15327],[15,15328,15,15343],[15,15344,15,15359],[15,15200,15,15215],[15,15216,15,15231],[15,15232,15,15247],[15,15248,15,15263],[15,15264,15,15279],[15,15120,15,15135],[15,15136,15,15151],[15,15152,15,15167],[15,15168,15,15183],[15,15184,15,15199],[15,15680,15,15695],[15,15696,15,15711],[15,15712,15,15727],[15,15728,15,15743],[15,15744,15,15759],[15,15600,15,15615],[15,15616,15,15631],[15,15632,15,15647],[15,15648,15,15663],[15,15664,15,15679],[15,15520,15,15535],[15,15536,15,15551],[15,15552,15,15567],[15,15568,15,15583],[15,15584,15,15599],[15,15440,15,15455],[15,15456,15,15471],[15,15472,15,15487],[15,15488,15,15503],[15,15504,15,15519],[15,16048,15,16063],[15,16064,15,16079]],"merged_total":1066,"flags":["merged_cut"]}
[null,{"$f":"'Main Page'!$G$9","v":"2022-2023"},null,"School Division: ",{"$f":"'Main Page'!$F$13","v":"Albemarle County Public Schools"},null,null,null,"Division Number:  ",{"$f":"'Main Page'!$F$14","v":2},null,{"$f":"'Main Page'!$A$6","v":"Title II, Part A, Supporting Effective Instruction"}]
[null,"I.  TEACHER QUALITY"]
[]
[null,"Section A"]
[null,"TEACHER QUALITY"]
[null,"Under USED’s authority to ensure an orderly transition from ESEA to ESSA, states are no longer required to report highly qualified teacher (HQT) data. Instead, states may rely on licensure and other professional requirements for teachers.  However, for program planning purposes for the 2022-2023 school year, the following information on teacher and paraprofessional quality from the 2021-2022 and 2020-2021 data collections may assist school divisions.  These data may be obtained from the two most recent verified Instructional Personnel and Licensure Reports (IPAL), which provide division results on the licensure and endorsement status of instructional personnel."]
[null,"See Instructional Personnel and Licensure Report (IPAL), as outlined in Superintendent's Memorandum Number #266-21, September 17, 2021."]
[]
[null,"Teachers (all schools and all federal core content subjects)"]
[null,null,null,null,null,null,null,null,null,null,null,null,{"$f":"YEAR('Main Page'!$G$8)-1 & \"-\" & YEAR('Main Page'!$G$8)","v":"2021-2022"},null,null,{"$f":"YEAR('Main Page'!$G$8)-2 & \"-\" & YEAR('Main Page'!$G$8)-1","v":"2020-2021"}]
[null,"Number of classes taught by properly licensed and endorsed teachers",null,null,null,null,null,null,null,null,null,null,4414,null,null,4203]
[null,"Number of classes not taught by properly licensed and endorsed teachers",null,null,null,null,null,null,null,null,null,null,260,null,null,249]
[null,"Total classes ",null,null,null,null,null,null,null,null,null,null,{"$f":"SUM(M11:N12)","v":4674},null,null,{"$f":"SUM(P11:Q12)","v":4452}]
[null,"Percent of classes taught by properly licensed and endorsed teachers",null,null,null,null,null,null,null,null,null,null,{"$f":"IF(M13=0,\"\",M11/M13)","v":0.94437312794180572},null,null,{"$f":"IF(P13=0,\"\",P11/P13)","v":0.94407008086253374}]
[]
[null,"Section B"]
[null,"EQUITABLE DISTRIBUTION OF QUALIFIED, EXPERIENCED AND EFFECTIVE TEACHERS "]
[null,"In the next four blocks (Parts 1-4), please describe how the division assures that students in high poverty (Title I) and/or high minority schools are not taught by inexperienced, out-of-field, or ineffective teachers at a higher rate than students in other schools. To do this, divisions may wish to examine teacher licensure and endorsement data from the 2021-2022 school year or other available teacher quality data and teachers' experience levels at the highest poverty (Title I) and/or highest minority schools and indicate whether these percentages are similar in other non-Title I schools with lower poverty or minority percentages. Outline strategies used to ensure an equitable distribution, including mentoring programs to support new teachers and professional development activities to support teachers in working with diverse student populations. Examples may include such activities as professional development on cultural competency, supporting English learners or special education students, or working with students from poverty."]
[]
[null,"Page 31"]
[null,{"$f":"'Main Page'!$G$9","v":"2022-2023"},null,"School Division: ",{"$f":"'Main Page'!$F$13","v":"Albemarle County Public Schools"},null,null,null,"Division Number:  ",{"$f":"'Main Page'!$F$14","v":2},null,{"$f":"'Main Page'!$A$6","v":"Title II, Part A, Supporting Effective Instruction"}]
[null,"EQUITABLE DISTRIBUTION OF QUALIFIED, EXPERIENCED AND EFFECTIVE TEACHERS (CONTINUED)"]
[]
[null,"Part 1","From data analysis, outline any identified gaps between Title I and non-Title I schools related to licensure/endorsements; experience; and effectiveness of teachers."]
[null,"The review of data from both the IPAL report and from our Human Resources Department shows that gaps between Title I and non-Title I schools do exist though one of the six Title I elementary schools has a 100% teacher licensure rate. The six Title I elementary schools have an average of 94.8% for sections taught by properly licensed and endorsed teachers, which is slightly above the average for the division of 94.4%.\n\nThe division-wide average among all schools for teachers with less than three years' teaching experience is 12%.  Five of the six Title I schools have higher percentages, with 13%, 14%, 17% (x2), and 19% averages.  "]
[]
[null,"Part 2","Describe strategies to address identified licensure/endorsement issues. (e.g., Praxis, coursework, residencies, etc.)"]
[null,"The Human Resources Department and Principals worked to ensure that any provisionally licensed teachers in school year 2021-2022 became \nfully licensed for the coming school year by providing counseling and advisement to these teachers. School division leaders met with principals concerning teachers teaching out of their content or endorsement areas to guide them toward taking and passing appropriate Praxis tests, where applicable. Division leaders also worked with principals to correct coding-related issues that lead to inaccuracies causing such errors on the IPAL submission and report.  The ACPS Professional Development Reimbursement Program supports teacher tuition reimbursement for coursework and training to further certifications and endorsements, as well as professional growth."]
[]
[null,"Part 3","Describe strategies to support inexperienced teachers. (e.g., mentoring; coaching; targeted professional development, etc.)"]
[null,"As has been described in the Program overview, our intensive instructional coaching approach is the foundation for developing the skills and instructional \ncapabilities of new teachers.  The instructional coaches serve as instructional resources in content areas, teaching methods, classroom management and assessment.  Instructional coaches assist new teachers in using data to plan and target instruction to student needs and also are available to provide support to experienced teachers, as needed. Our structured induction program includes a four-day New Teacher Academy prior to the start of school, where new teachers are instructed in the school division vision, mission, priorities, and strategic practices.  Ongoing, planned professional development activities occur throughout the first year and include quarterly meetings between novice teachers and ACPS Lead Coaches through the New Teacher Network, with the goal of providing an additional connection layer to division leadership. Instructional coaches work with new teachers for two years, through job-embedded, real-time activities resulting in a highly collaborative approach to new teacher development. An on-site teacher mentor is also assigned to work with each first-year teacher providing highly accessible support."]
[]
[null,"Part 4","Describe strategies to improve effectiveness of teachers, particularly related to poverty, diversity, cultural competency, English Learners, exceptional learners, etc.)"]
[null," ACPS is committed to developing culturally responsive teachers who are empowered to meet the needs of students most affected by achievement and opportunity\n gaps. Schools engage in site-based CRT professional development through book clubs and targeted sessions.  Our Certification in Culturally Responsive Teaching is a rigorous year-long program that provides our educators the ability to robustly integrate culturally responsive teaching methods into their instructional practice.\nA micro-credentialing process is also available, as a means to begin the longer certification process.  The certification program awards 90 recertification points, as well as stipends to those achieving their CRT certifications.  Three proficiency outcomes of the ACPS CRT certification process are identified as: \n1. Culturally responsive teachers acknowledge, validate, and incorporate cultural influences of all students, while reflecting on their own personal cultural lenses.\n2. Culturally responsive teachers teach to and through culture as they plan curriculum and instruction that is differentiated, rigorous, and relevant.\n3. Culturally responsive teachers build positive learning partnerships with students and families.\nThe ACPS Anti-Racism policy requires professional learning on institutional and structural racism and works toward the division's priority of recognizing and removing practices that perpetuate the achievement gap. An associated outcome has been to define and develop an anti-racism curriculum in programs such as Teaching Hard History.  "]
[]
[null,"Page 32"]

{"sheet":"Private Schools","index":6,"n_rows":76,"n_cols":14,"rows_kept":76,"cut":false,"hidden":false,"merged":[[1,1,1,15],[14,1,14,15],[15,2,15,15],[20,2,20,15],[21,2,21,8],[21,9,21,15],[2,1,2,15],[3,1,3,15],[4,1,4,15],[5,2,5,15],[7,1,7,15],[6,3,6,8],[6,10,6,15],[13,10,13,11],[13,12,13,15],[9,10,9,15],[11,3,11,8],[11,10,11,15],[13,3,13,8],[10,2,10,15],[12,2,12,15],[8,2,8,15],[9,3,9,8],[23,2,23,8],[23,9,23,15],[19,1,19,15],[29,2,29,10],[29,11,29,12],[31,2,31,15],[30,1,30,15],[16,2,16,8],[17,2,17,8],[18,2,18,8],[16,9,16,15],[17,9,17,15],[18,9,18,15],[24,1,24,15],[25,1,25,15],[27,1,27,15],[22,2,22,8],[22,9,22,15],[35,12,35,15],[36,12,36,15],[32,1,32,15],[33,2,33,15],[34,1,34,15],[37,1,37,15],[35,1,35,4],[35,5,35,8],[36,5,36,8],[40,13,40,15],[40,1,40,4],[28,1,28,15],[41,1,41,4],[41,7,41,8],[41,9,41,10],[41,11,41,12],[41,13,41,15],[40,7,40,8],[38,9,38,10],[39,9,39,10],[40,9,40,10],[38,11,38,12],[39,11,39,12],[40,11,40,12],[39,1,39,4],[38,7,38,8],[39,7,39,8],[38,13,38,15],[39,13,39,15],[38,1,38,4],[36,1,36,4],[35,9,35,11],[36,9,36,11],[43,1,43,4],[43,7,43,8],[43,9,43,10],[43,11,43,12],[43,13,43,15],[42,1,42,4],[42,7,42,8],[42,9,42,10],[42,11,42,12],[42,13,42,15],[45,1,45,4],[45,7,45,8],[45,9,45,10],[45,11,45,12],[45,13,45,15],[44,1,44,4],[44,7,44,8],[44,9,44,10],[44,11,44,12],[44,13,44,15],[47,1,47,4],[47,7,47,8],[47,9,47,10],[47,11,47,12],[47,13,47,15],[46,1,46,4],[46,7,46,8],[46,9,46,10],[46,11,46,12],[46,13,46,15],[49,1,49,4],[49,7,49,8],[49,9,49,10],[49,11,49,12],[49,13,49,15],[48,1,48,4],[48,7,48,8],[48,9,48,10],[48,11,48,12],[48,13,48,15],[51,1,51,4],[51,7,51,8],[51,9,51,10],[51,11,51,12],[51,13,51,15],[50,1,50,4],[50,7,50,8],[50,9,50,10],[50,11,50,12],[50,13,50,15],[53,1,53,4],[53,7,53,8],[53,9,53,10],[53,11,53,12],[53,13,53,15],[52,1,52,4],[52,7,52,8],[52,9,52,10],[52,11,52,12],[52,13,52,15],[55,1,55,4],[55,7,55,8],[55,9,55,10],[55,11,55,12],[55,13,55,15],[54,1,54,4],[54,7,54,8],[54,9,54,10],[54,11,54,12],[54,13,54,15],[57,1,57,4],[57,7,57,8],[57,9,57,10],[57,11,57,12],[57,13,57,15],[56,1,56,4],[56,7,56,8],[56,9,56,10],[56,11,56,12],[56,13,56,15],[59,1,59,4],[59,7,59,8],[59,9,59,10],[59,11,59,12],[59,13,59,15],[58,1,58,4],[58,7,58,8],[58,9,58,10],[58,11,58,12],[58,13,58,15],[61,1,61,4],[61,7,61,8],[61,9,61,10],[61,11,61,12],[61,13,61,15],[60,1,60,4],[60,7,60,8],[60,9,60,10],[60,11,60,12],[60,13,60,15],[63,1,63,4],[63,7,63,8],[63,9,63,10],[63,11,63,12],[63,13,63,15],[62,1,62,4],[62,7,62,8],[62,9,62,10],[62,11,62,12],[62,13,62,15],[65,1,65,4],[65,7,65,8],[65,9,65,10],[65,11,65,12],[65,13,65,15],[64,1,64,4],[64,7,64,8],[64,9,64,10],[64,11,64,12],[64,13,64,15],[67,1,67,4],[67,7,67,8],[67,9,67,10],[67,11,67,12],[67,13,67,15],[66,1,66,4],[66,7,66,8],[66,9,66,10],[66,11,66,12],[66,13,66,15],[69,7,69,8],[69,9,69,10],[69,11,69,12],[69,13,69,15],[68,1,68,4],[68,7,68,8],[68,9,68,10],[68,11,68,12],[68,13,68,15],[0,11,0,16],[26,11,26,16],[75,1,75,15],[73,7,73,8],[73,9,73,10],[74,7,74,8],[74,9,74,10],[73,5,73,6],[72,1,72,4],[72,7,72,8],[72,9,72,10],[72,11,72,12],[72,13,72,15],[71,1,71,4],[71,7,71,8],[71,9,71,10],[71,11,71,12],[71,13,71,15],[70,1,70,4],[70,7,70,8],[70,9,70,10],[70,11,70,12],[70,13,70,15],[69,1,69,4]]}
[null,{"$f":"'Main Page'!$G$9","v":"2022-2023"},null,"School Division: ",{"$f":"'Main Page'!$F$13","v":"Albemarle County Public Schools"},null,null,null,"Division Number:  ",{"$f":"'Main Page'!$F$14","v":2},null,{"$f":"'Main Page'!$A$6","v":"Title II, Part A, Supporting Effective Instruction"}]
[null,"J.  PRIVATE SCHOOL PARTICIPATION"]
[]
[null,"Each year, the school division must contact all eligible private (nonprofit) schools and engage in meaningful consultation on the availability of equitable services funded by Title II, Part A. (ESEA Section 8501 and Title VIII, Uniform Provisions, Part F, Subpart 1)."]
[]
[null,1,"Are there private nonprofit schools in your school division’s attendance area?"]
[null,null,"X","Yes (If yes, complete the remainder of this page).",null,null,null,null,null,null,"No (If no, it is not necessary to complete the rest of this page)."]
[]
[null,2,"Place an \"X\" in the appropriate block(s) to indicate how private schools in the division were notified on the availability of equitable services funded by Title II, Part A. (Copies of the notification must be kept on file for monitoring purposes)."]
[null,null,null,"Regular Mail",null,null,null,null,null,"X","Certified Mail"]
[]
[null,null,null,"Telephone Calls",null,null,null,null,null,"X","Meetings"]
[]
[null,null,null,"Visits to the Private School",null,null,null,null,null,null,"Other (Please specify)"]
[]
[null,3,"Determining Set-Asides from Title IIA Budget (These fields will calculate automatically once enrollment figures have been entered)."]
[null,null,"a. Proposed Budget ",null,null,null,null,null,null,{"$f":"'Budget '!H31","v":295515.82}]
[null,null,"b. Amount of funds allocated for administration ",null,null,null,null,null,null,{"$f":"'Budget '!H33","v":0}]
[null,null,"c. Amount to use for set-aside calculations",null,null,null,null,null,null,{"$f":"J17-J18","v":295515.82}]
[]
[null,4,"Determining additional set-asides as a result of Transferability. These fields will calculate automatically once budget and enrollment figures have been entered."]
[null,null,"a. Proposed Budget ",null,null,null,null,null,null,{"$f":"Transferability!H35","v":0}]
[null,null,"b. Amount of funds allocated for administration ",null,null,null,null,null,null,{"$f":"Transferability!H36","v":0}]
[null,null,"c. Amount to use for set-aside calculations",null,null,null,null,null,null,{"$f":"J22-J23","v":0}]
[]
[null,"Page 33"]
[null,{"$f":"'Main Page'!$G$9","v":"2022-2023"},null,"School Division: ",{"$f":"'Main Page'!$F$13","v":"Albemarle County Public Schools"},null,null,null,"Division Number:  ",{"$f":"'Main Page'!$F$14","v":2},null,{"$f":"'Main Page'!$A$6","v":"Title II, Part A, Supporting Effective Instruction"}]
[null,"CALCULATION OF SET-ASIDES"]
[]
[null,5,{"$f":"\"What is the PUBLIC SCHOOL DIVISION'S projected K-12 enrollment for the \"&  'Main Page'!$G$9  &\" school year?\"","v":"What is the PUBLIC SCHOOL DIVISION'S projected K-12 enrollment for the 2022-2023 school year?"},null,null,null,null,null,null,null,null,14100]
[]
[null,6,{"$f":"\"Complete the chart below:\n• In column A, list all eligible private schools in the geographic boundaries of the school division.\n• In column B, indicate the participation status of the listed private school(s) for the \" &  'Main Page'!$G$9  & \"  award year, as a result of consultation.\n• In column C, enter the K-12 enrollment of private schools participating in services for the \" &  'Main Page'!$G$9  & \" award year.\n• Columns D and E will automatically calculate the value of services for the \"  &  'Main Page'!$G$9  &  \" award year.\n• In column F, indicate the method of notification for each private school.\"","v":"Complete the chart below:\n• In column A, list all eligible private schools in the geographic boundaries of the school division.\n• In column B, indicate the participation status of the listed private school(s) for the 2022-2023  award year, as a result of consultation.\n• In column C, enter the K-12 enrollment of private schools participating in services for the 2022-2023 award year.\n• Columns D and E will automatically calculate the value of services for the 2022-2023 award year.\n• In column F, indicate the method of notification for each private school."}]
[]
[null,7,{"$f":"\"For the  \"&  'Main Page'!$G$9  &\"  award year, enter the estimated private school-set aside (Cell H74) onto the Summary Budget Tab under the 'Budget for  \"&  'Main Page'!$G$9  &\"'  column in the appropriate object codes on the 'Private School Set-Aside' lines.  On the Budget Detail pages, list the amounts in the appropriate object codes in the 'Private School Set-Aside for \"&  'Main Page'!$G$9  &\"'  lines.\"","v":"For the  2022-2023  award year, enter the estimated private school-set aside (Cell H74) onto the Summary Budget Tab under the 'Budget for  2022-2023'  column in the appropriate object codes on the 'Private School Set-Aside' lines.  On the Budget Detail pages, list the amounts in the appropriate object codes in the 'Private School Set-Aside for 2022-2023'  lines."}]
[]
[null,{"$f":"\"Value of Services \nfor Participating Private Schools \nfrom the Title IIA \"&  'Main Page'!$G$9  &\" Budget\"","v":"Value of Services \nfor Participating Private Schools \nfrom the Title IIA 2022-2023 Budget"},null,null,null,{"$f":"\"Value of Additional Services \nfor Participating Private Schools \nfrom the \"&  'Main Page'!$G$9  &\" TRANSFERABILITY Budget\"","v":"Value of Additional Services \nfor Participating Private Schools \nfrom the 2022-2023 TRANSFERABILITY Budget"},null,null,null,{"$f":"\"Total value of services \nfor Public Schools \nfrom the \"&  'Main Page'!$G$9  &\" Budget\"","v":"Total value of services \nfor Public Schools \nfrom the 2022-2023 Budget"},null,null,{"$f":"\"Total Value of Additional Services \nfor Public Schools \nfrom the \"&  'Main Page'!$G$9  &\" TRANSFERABILITY Budget\"","v":"Total Value of Additional Services \nfor Public Schools \nfrom the 2022-2023 TRANSFERABILITY Budget"}]
[null,{"$f":"H74","v":27193.780000000002},null,null,null,{"$f":"J74","v":0},null,null,null,{"$f":"J19-H74","v":268322.03999999998},null,null,{"$f":"J24-J74","v":0}]
[]
[null,"A",null,null,null,"B","C","D",null,"E",null,"F",null,"G"]
[null,"Name of Each  Private School",null,null,null,{"$f":"\"Participation Status for  \"&  'Main Page'!$G$9  &\"  Award Year?\n(Yes/No)\"","v":"Participation Status for  2022-2023  Award Year?\n(Yes/No)"},"K-12 Enrollment ",{"$f":"\"Estimated Value of Services from \n \"&  'Main Page'!$G$9  &\" Title IIA budget, per school\n(calculated field)\"","v":"Estimated Value of Services from \n 2022-2023 Title IIA budget, per school\n(calculated field)"},null,{"$f":"\"Estimated Value of Additional Services from \n \"&  'Main Page'!$G$9  &\" Transferability Funds\n(calculated field)\"","v":"Estimated Value of Additional Services from \n 2022-2023 Transferability Funds\n(calculated field)"},null,"Method of Notification\n (for Non-Participating Schools Only)",null,"Notes"]
[null,"Charlottesville Catholic School",null,null,null,"Yes",324,{"$f":"ROUND(IF(F41=\"Yes\",G41*$D$75,0),2)","v":6165.7},null,{"$f":"ROUND(IF(F41=\"Yes\",G41*$G$75,0),2)","v":0}]
[null,"Charlottsville Waldorf School",null,null,null,"Yes",83,{"$f":"ROUND(IF(F42=\"Yes\",G42*$D$75,0),2)","v":1579.48},null,{"$f":"ROUND(IF(F42=\"Yes\",G42*$G$75,0),2)","v":0}]
[null,"Community Christian Academy",null,null,null,"Yes",73,1389.19,null,0]
[null,"Covenant School",null,null,null,"Yes",390,7421.67,null,0]
[null,"Little Keswick School",null,null,null,"Yes",34,647.02,null,0]
[null,"Miller School of Albemarle",null,null,null,"Yes",217,4129.5,null,0]
[null,"Tandem Friends School",null,null,null,"Yes",248,4719.42,null,0]
[null,"Field School of Charlottesville",null,null,null,"No",null,0,null,0,null,"Certified Mail"]
[null,"Free Union Country School",null,null,null,"Yes",60,1141.8,null,0]
[null,"Mountaintop Montessori",null,null,null,"No",null,0,null,0,null,"Certified Mail"]
[null,"Peabody School",null,null,null,"No",null,0,null,0,null,"Certified Mail"]
[null,"St. Anne's Belfield",null,null,null,"No",null,0,null,0,null,"Certified Mail"]
[null,"University Montessori",null,null,null,"No",null,0,null,0,null,"Certified Mail"]
[null,null,null,null,null,null,null,0,null,0]
[null,null,null,null,null,null,null,0,null,0]
[null,null,null,null,null,null,null,0,null,0]
[null,null,null,null,null,null,null,0,null,0]
[null,null,null,null,null,null,null,0,null,0]
[null,null,null,null,null,null,null,0,null,0]
[null,null,null,null,null,null,null,0,null,0]
[null,null,null,null,null,null,null,0,null,0]
[null,null,null,null,null,null,null,0,null,0]
[null,null,null,null,null,null,null,0,null,0]
[null,null,null,null,null,null,null,0,null,0]
[null,null,null,null,null,null,null,0,null,0]
[null,null,null,null,null,null,null,0,null,0]
[null,null,null,null,null,null,null,0,null,0]
[null,null,null,null,null,null,null,0,null,0]
[null,null,null,null,null,null,null,0,null,0]
[null,null,null,null,null,null,null,0,null,0]
[null,null,null,null,null,null,null,0,null,0]
[null,null,null,null,null,null,null,0,null,0]
[null,null,null,null,null,null,null,0,null,0]
[null,null,null,null,null,"Total Private School Set-Asides",null,{"$f":"SUM(H41:I73)","v":27193.780000000002},null,{"$f":"SUM(J41:K73)","v":0}]
[null,null,"Per Pupil Expenditure \n(calculated field):       ",{"$f":"IF(ISERROR(SUM(J19)/(SUM(L30)+SUMIF(F40:F73,\"Yes\",G40:G73))),0,SUM(J19)/(SUM(L30)+SUMIF(F40:F73,\"Yes\",G40:G73)))","v":19.029932384570802},null,"Per Pupil Expenditure for Transferability funds (calculated field):          ",{"$f":"IF(ISERROR(SUM(J24)/(SUM(L30)+SUMIF(F40:F73,\"Yes\",G40:G73))),0,SUM(J24)/(SUM(L30)+SUMIF(F40:F73,\"Yes\",G40:G73)))","v":0},{"$f":"\"Use this Figure for Private School Set-Asides in the \n\"&  'Main Page'!$G$9  &\" Budget\"","v":"Use this Figure for Private School Set-Asides in the \n2022-2023 Budget"},null,{"$f":"\"Use this Figure for Private School Set-Asides in the\n\"&  'Main Page'!$G$9  &\" Transferability Budget\"","v":"Use this Figure for Private School Set-Asides in the\n2022-2023 Transferability Budget"}]
[null,"Page 34"]

{"sheet":"GEPA","index":7,"n_rows":10,"n_cols":11,"rows_kept":10,"cut":false,"hidden":false,"merged":[[6,1,6,16],[7,1,7,16],[8,1,8,16],[9,1,1048575,16],[0,10,0,16],[1,1,1,16],[2,1,2,16],[3,1,3,16],[4,1,4,15],[5,1,5,16]]}
[null,{"$f":"'Main Page'!$G$9","v":"2022-2023"},null,"School Division: ",{"$f":"'Main Page'!$F$13","v":"Albemarle County Public Schools"},null,null,null,"Division Number:  ",{"$f":"'Main Page'!$F$14","v":2},{"$f":"'Main Page'!$A$6","v":"Title II, Part A, Supporting Effective Instruction"}]
[null,"K.  GENERAL EDUCATION PROVISIONS ACT (GEPA) SECTION 427"]
[]
[null,"Section 427 of the General Education Provisions Act (GEPA) requires applicants for federal funds to include in their applications a description of the steps the applicant will take to ensure equitable access to, and participation in, federally-assisted programs for students, teachers, and other program beneficiaries with special needs. The provision allows applicants discretion in developing the required description. The statute highlights six types of barriers that can impede equitable access or participation: gender, race, national origin, color, disability, or age. Based on local circumstances, the applicant should determine whether these or other barriers may prevent students, teachers, etc., from such access or participation in the federally-funded project or activity. The description in the application of steps to be taken to overcome these barriers need not be lengthy; the application may provide a clear and succinct description of how the applicant plans to address those barriers that are applicable to their circumstances."]
[]
[null,"Describe the steps the division will take to ensure equitable access to, and participation in, grant-funded programs for students, teachers, and other program beneficiaries with special needs as required by the General Education Provisions Act (GEPA) 427, OMB Control No. 1894-00045, Section 427."]
[null,"Albemarle County is committed to providing equitable access for students, teachers and families in all grant-funded programs and opportunities as required by GEPA 427: \n\n1.We ensure that events are held in handicapped accessible facilities in geographically convenient locations. Events are held during the day, evening, and on weekends to accommodate family school/work schedules in order to maximize participation.\n2. Materials provided are accessible for literate and non-readers as well as in electronic and paper copy formats to inform families that may not have access to social media and email. This includes translation of documents into Spanish and other languages as needed. The ESOL Office annually vets, hires and trains additional interpreters and translators to ensure a high-level of quality with a personalized experience for families.  Simultaneous interpretation equipment is used in large-group settings, and InterpreTalk Language Line services are used when necessary. \n3.Albemarle County conducts a variety of outreach programs to address gender and/or race inequalities. Some of these include: Teacher summer reading project, Girls in STEM initiatives, Summer Immersion Excursion programs for newcomers, Camp Invention modules, CoderDojo, World Peace Game, and Saturday family engagement experiences to STEM fairs and other local attractions. \n4.Efforts to involve diverse stakeholders in program planning and implementation are robust and include seventeen diverse teams. Advisory groups include Parent Council, Student Advisory, Special Education, Gifted, Title I, and Diversity and Equity.  Additionally, the Title I, Title III, Migrant and Homeless Coordinators all meet monthly with the Director of Federal Programs to collaborate and ensure our students have equitable access to all division opportunities. "]
[null,"5. Lastly, as set forth on our Human Resources website \"hiring for Albemarle County shall be accomplished without regard to race, color, religion, national origin, gender, pregnancy, childbirth or related medical conditions, age, marital status or disability unless otherwise permitted by County policy or applicable law\"."]
[]
[null,"Page 35"]

{"sheet":"Expenditure Descriptions","index":8,"n_rows":29,"n_cols":12,"rows_kept":29,"cut":false,"hidden":false,"merged":[[11,1,11,16],[0,11,0,16],[1,1,1,16],[2,1,2,16],[3,1,3,16],[4,1,4,16],[5,1,5,16],[6,1,6,16],[7,1,7,16],[8,2,8,16],[9,1,9,16],[10,2,10,16],[18,2,18,16],[12,2,12,16],[13,2,13,16],[15,1,15,16],[16,2,16,16],[14,1,14,16],[17,1,17,16],[25,2,25,16],[26,2,26,16],[27,1,27,16],[28,1,28,16],[19,2,19,16],[20,1,20,16],[21,2,21,16],[22,2,22,16],[23,1,23,16],[24,1,24,16]]}
[null,{"$f":"'Main Page'!$G$9","v":"2022-2023"},null,"School Division: ",{"$f":"'Main Page'!$F$13","v":"Albemarle County Public Schools"},null,null,null,"Division Number:  ",{"$f":"'Main Page'!$F$14","v":2},null,{"$f":"'Main Page'!$A$6","v":"Title II, Part A, Supporting Effective Instruction"}]
[null,"EXPENDITURE ACCOUNT DESCRIPTIONS"]
[]
[null,"These accounts are for budgeting and recording expenditures of the educational agency for activities under its control.  Below are definitions of the major expenditure categories.  The descriptions provided are examples only.   For further clarification on the proper expenditures of funds, contact your school division budget or finance office, the grant specialist in the Virginia Department of Education, or refer to the appropriate federal act."]
[]
[null,"OBJECT CODE DEFINITIONS:"]
[null,"(revised 4/8/21)"]
[]
[null,1000,"PERSONAL SERVICES – Includes all compensation for the direct labor of persons in the employment of the local government. Salaries and wages paid to employees for full‐ and part‐time work, including overtime, shift differential, and similar compensation. Includes payments for time not worked, including sick leave, vacation, holidays, jury duty, military leave, and other paid absences that are earned during the reporting period. \n\nFor the purposes of this report, the term “salaries” means all compensation including base wage. This also includes amounts paid through salary reduction plans, such as tax‐sheltered annuities and flexible benefit plans. Do not confuse this definition with the Virginia Retirement System (VRS) definition, which excludes supplements for retirement calculation purposes in some circumstances."]
[]
[null,2000,"EMPLOYEE BENEFITS – Job related benefits provided to employees as part of their total compensation. Fringe benefits include the employer’s portion of FICA, pensions, insurance (life, health, disability income, etc.) and employee\nallowances.\n\nNOTE: Fringe Benefits are a significant component of employee compensation and, like salaries and wages, are charged to the appropriate object of expenditure within each program. If possible, fringe benefit costs should be charged to the applicable educational program or activity on an ongoing basis. An alternative is to charge all fringe benefits to various benefit accounts. As part of the year‐end closing process, these accounts are closed, and all costs are allocated to the appropriate educational program or activity. The following methods are suggested for allocating such cost at year‐end. If these methods do not provide reasonable allocations based on circumstances within the school division, then the school division should use another reasonable allocation method. Consistency in application should be maintained at all times.\n\n1) Allocation by percentage of payroll dollars\n2) Allocation by Head Count\n3) Direct to Program or Activity"]
[]
[null,3000,"PURCHASED/CONTRACTUAL SERVICES – Services acquired from outside sources (i.e., private vendors, public authorities, or other governmental entities). Purchase of the service is on a fee basis or fixed time contract basis. Payments for rentals and utilities are not included in this account description. Allowable payments would be to individual or firms that are independent contractors and not employees of the grantee or sub‐grantee organization. The word honorarium is sometimes used to characterize such payments; the term “fee” is preferred.\n\nFood Purchases – Prepared meals, working meals, and/or catered services purchased through a vendor are included in this object code. Reimbursement is capped at the per diem rate for the meal listed according to the state travel regulations. Examples for this object code include meals provided during day‐long professional development sessions, or meals provided to support attendance at family engagement activities. Food purchased from catering services and restaurants such as Pizza Hut, Panera Bread, and Subway is included in this object code.\n\nTransportation Services Public Carriers – Payments to public carriers for transportation of pupils on vehicles that are used by the public. Include payments for pupils transported in intra‐city transit buses, taxicabs, airplanes, and intercity/interstate passenger buses.\n\nTransportation Services Private Carriers – Payments (either cash or tokens) to parents for transportation of pupils in lieu of providing transportation on school buses. Include allowable payments to parents for pupils attending public, private, and non‐sectarian schools. Include costs associated with transporting special education students in school board‐owned vehicles to and from school.\n\nTransportation Services by Contract – Payments to private owners of school buses who contract with the school board to transport pupils to and from public schools. Include payments to owners of private vehicles that contract with the school board to transport pupils to and from designated public and private schools.\n"]
[null,null,"Purchase of Service from Other Governmental Entities – Payments for services purchased from other governmental entities (i.e., other local governments, public authorities, state agencies, and other LEAs) on a contract/fee basis. Tuition payments to other local governments for a jointly operated center are not included here but are reported under “Payments to Joint Operations” (object code 7000).\n\nTuition Paid – Other Divisions In‐State, Tuition Paid – Other Divisions Out‐of‐State, and Tuition Paid – Private Schools are included in this object code."]
[null,"Page 36"]
[]
[null,4000,"INTERNAL SERVICES – Charges from an Internal Service Fund to other functions/activities/elements of the local government for the use of intergovernmental services, such as data processing, automotive/motor pool, central purchasing/central stores, print shop, and risk management. These services are provided by internal services within the School District and possibly the county but not a vendor.\n\nFood Purchases – Food purchased from the food services department of a school division or sub‐grantee equivalent to support professional development or family engagement events is included in this object code. For example, internal expenses for school cafeterias to provide meals to support attendance at family engagement activities are included in this object code."]
[]
[null,5000,"OTHER CHARGES – Include expenditures that support the use of programs. Includes expenditures that support the program, including utilities (maintenance and operation of plant), staff/administrative/consultant travel, office\nphone charges, training, leases/rental, indirect cost, and other.\n\nFood Purchases – Food Purchases under this object code is restricted to food purchases related to travel reimbursement for meals only (see Travel below). If the sub‐recipient’s internal travel policies conform to state travel regulations, reimbursement is allowable at per diem meals rates according to state travel regulations. If the sub‐recipient’s internal travel policies require reimbursement for the cost of each meal, reimbursement is capped at the per diem rate for the meal listed according to the state travel regulations. Sub‐recipients must elect either meals per diem or per meals costs as their internal travel policy.\n\nTelecommunications – Include expenditures for recurring telecommunications services for the use of on‐line computer technology (e.g., telephone/telecommunications line charges). Telephone charges for line service for Internet connectivity and the Electronic Classroom program. Package pricing from a vendor for Accident or cyber‐risk insurance, LTE mobile carrier data plans, Internet access via an Internet Service Provider. Package pricing from a vendor for hardware, content filtering, data plans, extended warranty services and other components of the package when no breakout pricing is available.\n\nUtilities – Payments for heat, electricity, water, and sewer services regardless of whether the service is provided by a private enterprise authority or an enterprise fund operated by a local government.\n\nCommunications – Payments for postal, messenger, and telecommunications services, typically office voice telephone charges. (Telecommunication costs directly related to technology uses should be coded\nunder 6000.) In addition, office telephone charges would be coded under this code. \n\nInsurance – Payments for insurance except those that relate to personal services (i.e., hospitalization, group life, worker’s compensation, unemployment).\n"]
[null,null,"Leases and Rentals – Includes payments for leases that are not capitalized and rental of land, structures, and equipment. Do not include payments made under a lease‐purchase agreement.\n\nTravel – includes payments for travel reimbursement for staff/administrative/consultant travel. These are travel costs that are being reimbursed directly to travelers. These costs may include lodging, mileage, meals, and incidentals as allowable according to state travel regulations or documented sub‐recipient internal travel policies. If the sub‐recipient does not have documented internal travel policies, state travel regulations will prevail.\n\nContributions to Other Entities – Includes payments to other governmental entities or community organizations that are not related to the direct purchase of a service on a fee basis (which is reported under object code 3000) or payments to joint operations (which are reflected under object code 7000).\n\nPublic Assistance Payments – Payments to individuals for public assistance programs (general government use only).\n\nMiscellaneous Other Charges – Includes expenditures that support the program, including indirect costs and other costs."]
[]
[null,6000,"MATERIALS AND SUPPLIES – Includes articles and commodities that are consumed or materially altered when used and minor equipment that is not capitalized. This includes any equipment purchased under $5,000, unless the LEA has set a lower capitalization threshold. Therefore, computer equipment under $5,000 would be reported in “materials and supplies.”\n\nFood Purchases – Food items purchased from a grocery store or its equivalent for snacks or breaks is included in this object code. Examples include bottled water, granola bars, cookies, and fruit purchased from a store such as Wal‐Mart, Food Lion, Costco, etc. Prepared meals is not included in this object code; see object code 3000 for prepared/working/catered meals as purchased/contracted services. \n\nVehicle and Powered Equipment Fuels – Gasoline, lubricating oils, or such other fuel used in the operation of vehicles and powered equipment (e.g., lawnmowers) purchased from private sources or governmental agencies.\n\nVehicle and Powered Equipment Supplies – Tires, spark plugs, batteries, and chains used in the operation of vehicles and powered equipment purchased from private sources or governmental agencies.\n\nTextbooks – All textbooks and workbooks purchased to be used in the classroom.\n\nInstructional Materials – Books (not textbooks) and other materials.\n"]
[null,null,"Technology Software/On‐line Content – Include expenditures for videodiscs and computer programs used in the classroom for instructional purposes, operating system software (i.e., standalone software, not software that is pre‐installed and included in hardware costs), application software, and on‐line or downloadable software and content. Include expenditures for both additions and replacement.\n\nNon‐Capitalized Technology Hardware – Include expenditures for hardware or classroom technology equipment that is not capitalized.\n\nNon‐Capitalized Technology Infrastructure – Include expenditures for technology infrastructure that is not capitalized."]
[]
[null,"Page 37"]
[null,8000,"CAPITAL OUTLAY – Note: Indirect cost cannot be claimed against capital outlay and equipment.\n\nOutlays that result in the acquisition of or additions to fixed assets. Capital Outlay includes the purchase of fixed assets both replacement and/or additional.\n\nCapital Outlay Replacement\n\nTechnology – Hardware Replacements – Include capital outlay for replacement of hardware or classroom technology equipment. (For further clarification on which expenditures should be included in this object code, see the “Special Note” below).\n\nTechnology – Infrastructure Replacements – Include capital outlay for replacement of technology infrastructure. (For further clarification on which expenditures should be included in this object code, see the “Special Note” below).\n\nCapital Outlay Additions – Include machinery, equipment, furniture, fixtures, communications equipment, motor vehicles, etc. that are capitalized.\n\nTechnology – Hardware Additions – Include capital outlay for additional hardware or classroom technology equipment. (For further clarification on which expenditures should be included in this object code, see the “Special Note” below).\n\nTechnology – Infrastructure Additions – Include capital outlay for additional technology infrastructure. (For further clarification on which expenditures should be included in this object code, see the “Special Note” below).\n"]
[null,null," "]
[]
[null,"Page 38"]

{"sheet":"General Assurances","index":9,"n_rows":45,"n_cols":11,"rows_kept":45,"cut":false,"hidden":false,"merged":[[0,10,0,16],[1,1,1,16],[2,1,2,16],[3,1,3,4],[3,5,3,16],[4,1,4,4],[4,5,4,16],[12,2,12,16],[5,1,5,4],[5,5,5,16],[6,1,6,4],[6,5,6,16],[7,1,7,4],[7,5,7,16],[8,1,8,4],[8,5,8,16],[9,1,9,4],[9,5,9,16],[11,1,11,16],[13,2,13,16],[14,2,14,16],[15,2,15,16],[16,3,16,16],[17,3,17,16],[18,4,18,16],[19,4,19,16],[20,4,20,16],[21,4,21,16],[22,4,22,16],[23,4,23,16],[40,3,40,16],[44,1,44,16],[37,4,37,16],[38,3,38,16],[39,3,39,16],[41,2,41,16],[42,2,42,16],[43,1,43,16],[31,4,31,16],[32,4,32,16],[33,4,33,16],[34,5,34,16],[29,4,29,16],[25,4,25,16],[24,4,24,16],[35,5,35,16],[36,5,36,16],[30,4,30,16],[26,4,26,16],[27,4,27,16],[28,4,28,16]]}
[null,{"$f":"'Main Page'!$G$9","v":"2022-2023"},null,"School Division: ",{"$f":"'Main Page'!$F$13","v":"Albemarle County Public Schools"},null,null,null,"Division Number:  ",{"$f":"'Main Page'!$F$14","v":2},{"$f":"'Main Page'!$A$6","v":"Title II, Part A, Supporting Effective Instruction"}]
[null,"GENERAL ASSURANCES"]
[]
[null,"Title I, Part A",null,null,null,"Improving Basic Programs Operated by Local Educational Agencies"]
[null,"Title I, Part C",null,null,null,"Education of Migratory  Children"]
[null,"Title I, Part D, Subpart 2",null,null,null,"Prevention and Intervention Programs for Children and Youth Who Are Neglected, Delinquent, or At-Risk"]
[null,"Title II, Part A",null,null,null,"Supporting Effective Instruction"]
[null,"Title III, Part A ",null,null,null,"Language Instruction for English Learners and Immigrant Students"]
[null,"Title IV, Part A",null,null,null,"Student Support and Academic Enrichments Grants"]
[null,"Title V, Part B, Subpart 2",null,null,null,"Rural and Low-Income School Program"]
[]
[null,"The school division/grantee assures:"]
[null,"I.","Each program will be administered in accordance with all applicable statutes, regulations, program plans, and applications;"]
[null,"II.","The control of funds provided under each program and title to property acquired with program funds will be in a public agency, a nonprofit private agency institution, organization, or an Indian tribe, if the law authorizing the program provides for assistance to those entities;"]
[null,"III.","The public agency, nonprofit private agency, institution, organization, or Indian tribe, will administer the funds and property to the extent required by the authorizing statutes;"]
[null,"IV.","It will adopt and use proper methods of administering each program, including - "]
[null,null,"A.","The enforcement of any obligations imposed by law on agencies, institutions, organizations, and other recipients responsible for carrying out each program;"]
[null,null,"B.","The correction of deficiencies in program operations that are identified through audits, monitoring, or evaluation and that:"]
[null,null,null,1,"It will maintain fiscal effort in support of free public education;"]
[null,null,null,2,"It will provide services with state and local funds that are at least comparable to services provided in schools and areas not receiving special federal funds; "]
[null,null,null,3,"The majority of the resources in the school division are derived from nonfederal funds;"]
[null,null,null,4,"It is in compliance with the requirements in Title VIII, Section 8524 and has no policy that prevents, or otherwise denies participation in, constitutionally protected prayer in public elementary and secondary schools;"]
[null,null,null,5,"It will comply with the audit requirements for each program; "]
[null,null,null,6,"The federal funds are used to supplement, not supplant regular nonfederal funds;"]
[null,null,null,7,"It will cooperate in carrying out any evaluation of each program conducted by or for the state educational agency, the Secretary, or other federal officials;\n\n"]
[null,null,null,8,"It will use such fiscal control and fund accounting procedures as will ensure proper disbursement of, and accounting for, federal funds paid to the applicant under each program;"]
[null,null,null,9,"It will submit such reports to the state educational agency (which shall make the reports available to the Governor) and the Secretary of Education as the state educational agency and Secretary may require to enable the state educational agency and the Secretary to perform their duties under each program;\n\n"]
[null,null,null,10,"It will maintain such records for five years, provide such information, and afford such access to the records as the state educational agency (after consultation with the Governor) or the Secretary may reasonably require to carry out the state educational agency’s or the Secretary’s duties; "]
[null,null,null,11,"It consulted with teachers, school administrators, parents, members of the community, nonprofit organizations and other interested parties in the development of this plan;"]
[null,null,null,12,"It afforded a reasonable opportunity for public comment on the plan or application and considered such comment before the application was submitted;"]
[null,null,null,13,"It will provide information in an understandable and uniform format and, to the extent practicable, be provided in a language that the parents can understand;"]
[null,null,null,14,"It is in compliance with the requirement regarding equal access to public school facilities as specified in Title VIII, Section 8525;"]
[null,null,null,15,"It is in compliance with the requirement regarding the prohibition on aiding and abetting sexual abuse as specified in Title VIII, Section 8546;"]
[null,null,null,16,"It will comply with the other application requirements outlined in"]
[null,null,null,null,null,"Section 8501. Private School Children;"]
[null,null,null,null,null,"Section 8502. Bypass; and"]
[null,null,null,null,null,"Section 8521. Maintenance of Effort under Title VIII –Other Provisions;"]
[null,null,null,17,"It will ensure that funds are expended in accordance with the school division’s approved application or amended application.  In the event the  local division needs to expend funds in any manner other than stipulated in the approved application, the plan must be amended using the amendment process provided by the Department of Education.  The application must be amended before funds can be expended for activities not approved in the original application;"]
[null,null,"C.","It will collect and disseminate information collected under Section 1111 in a manner that protects the privacy of individuals;\n"]
[null,null,"D.","It will adhere to the provisions of the Federal Funding Transparency and Accountability Act (FFATA), and will obtain a valid DUNS number prior to applying for funds;"]
[null,null,"E.","It will comply with the provisions of 2 CFR part 200 section 200.116, which prohibits the purchase of certain telecommunications and video surveillance services or equipment as described in Public Law 115-232, section 889."]
[null,"V.","It will comply with Section 22.1-277.07, of the Code of Virginia that requires the expulsion for one year of any student determined to have brought a firearm to school.  A description of each incident, the name of the school concerned, the number of students expelled from each school, and the type of firearm used in each instance of expulsion will be reported to the Virginia Department of Education in compliance with provisions under Section 8561 (Gun-Free Schools Act).  This agency has a policy that requires referral to the criminal justice or the juvenile delinquency system of any student who brings a firearm or weapon to school; and"]
[null,"VI.","It will participate, if selected, in the state National Assessment of Educational Progress in 4th and 8th grade reading and mathematics carried out under Section 303 of the National Assessment of Educational Progress Act."]
[]
[null,"Page 39"]

{"sheet":"Program Specific Assurances","index":10,"n_rows":13,"n_cols":11,"rows_kept":13,"cut":false,"hidden":false,"merged":[[16,6,16,7],[16,8,16,9],[16,10,16,11],[17,6,17,7],[17,8,17,9],[17,10,17,11],[5,2,5,16],[6,2,6,16],[7,2,7,16],[15,6,15,7],[15,8,15,9],[15,10,15,11],[8,2,8,16],[9,2,9,16],[10,2,10,16],[11,1,11,16],[12,1,12,16],[14,6,14,7],[14,8,14,9],[14,10,14,11],[1,1,1,16],[2,1,2,16],[3,1,3,16],[0,10,0,16],[4,2,4,16]]}
[null,{"$f":"'Main Page'!$G$9","v":"2022-2023"},null,"School Division: ",{"$f":"'Main Page'!$F$13","v":"Albemarle County Public Schools"},null,null,null,"Division Number:  ",{"$f":"'Main Page'!$F$14","v":2},{"$f":"'Main Page'!$A$6","v":"Title II, Part A, Supporting Effective Instruction"}]
[null,"PROGRAM SPECIFIC ASSURANCES"]
[]
[null,"The school division/grantee assures:"]
[null,"I.","Professional development activities provided through this program are coordinated with professional development activities provided through other federal, state, and local programs;"]
[null,"II.","It will comply with Section 8501 (regarding participation by private school children and teachers);"]
[null,"III.","The plan is based on consultation with a variety of stakeholders, including teachers, principals, other school leaders, paraprofessionals (including organizations representing such individuals), specialized instructional support personnel, charter school leaders (in a local educational agency that has charter schools), parents, community partners, and other organizations or partners with relevant and demonstrated expertise in programs and activities designed to meet the purpose of this title;  "]
[null,"IV.","Activities and programs will address the needs of all students, including children with disabilities, English learners, and gifted and talented students;"]
[null,"V.","The funds are expended according to Title II, Part A guidelines for teachers, administrators, other school leaders, and paraprofessional staff only. These guidelines can be found within the guidance document: ESSA Title II, Part A Guidance – Supporting Educators; "]
[null,"VI.","Professional development activities are for teachers, administrators, paraprofessionals, and other school leaders to ensure “high quality” instruction and leadership. These activities should be based on evidence-based research and should adhere to the requirements of high quality professional development; and "]
[null,"VII.","Students in high-poverty or high-minority Title I schools will not be taught by inexperienced, out-of-field, or ineffective teachers at a higher rate than students in other schools."]
[]
[null,"Page 40"]

{"sheet":"Prefills","index":11,"n_rows":145,"n_cols":38,"rows_kept":145,"cut":false,"hidden":true,"merged":[[1,3,1,5],[0,3,0,5],[22,7,22,8],[23,26,23,28],[3,3,3,5],[2,3,2,5],[5,25,6,38],[8,25,8,32],[20,25,21,25],[20,26,21,28],[22,26,22,28],[30,26,30,28],[30,7,30,8],[24,26,24,28],[25,26,25,28],[26,26,26,28],[27,26,27,28],[28,26,28,28],[29,26,29,28]]}
["Allocation Total Column:",null,null,{"$f":"SUM(F6:F145)","v":38829604.999999985},null,null,7,8,9,10,11,12,13,14,15,16,17,18,19,20,21,22,23,24,25,26,27,28,29,30,31,32,33,34,35,36,37]
["Allocation Check Column: ",null,null,{"$f":"38829605-D1","v":0}]
[null,{"$f":"SUBTOTAL(3,B6:B145)","v":140},null,"Title II, Part A"]
["Project Group ID:",null,null,"4"]
["Division","Div Num",null,"Div Num","Consolidated App Flag","Allocation",null,null,null,null,null,null,null,null,null,null,null,null,null,null,null,null,null,null,null,"Anchor at Z7"]
["Accomack County Public Schools",1,null,1,null,292029.48,null,null,null,null,null,null,null,null,null,null,null,null,null,null,null,null,null,null,null,"Change Colors on all the sheets "]
["Albemarle County Public Schools",2,null,2,null,295515.82,null,"Funding Source",null,"Yes or No"]
["Alexandria City Public Schools",101,null,3,null,77330.649999999994,null,"Title II, Part A, Transferability",null,"Yes"]
["Alleghany County Public Schools",3,null,4,null,60962.28,null,"Title IV, Part A, Transferability",null,"No",null,null,null,null,null,null,null,null,null,null,null,null,null,null,null,"Color and Color# (Number)"]
["Amelia County Public Schools",4,null,5,null,152352.82]
["Amherst County Public Schools",5,null,6,null,99003.41,null,"Title IIA Categories",null,null,null,null,null,null,null,null,null,null,null,null,null,null,null,null,null,1,2,3,4,5,6,7,8,null,"Step 1.   Go to \"Narrative\" TAB and click on a CELL with LAST Year's   Blank COLOR"]
["Appomattox County Public Schools",6,null,7,null,653172.06000000006,null,"Title IIA Administration",null,null,null,null,null,null,null,null,null,null,null,null,null,null,null,null,null,9,10,11,12,13,14,15,16,null,null,null,null,"Paste it here. (Color A:)"]
["Arlington County Public Schools",7,null,8,null,243567.15000000002,null,"Class size Reduction",null,null,null,null,null,null,null,null,null,null,null,null,null,null,null,null,null,17,18,19,20,21,22,23,24]
["Augusta County Public Schools",8,null,9,null,13427.36,null,"Evaluation",null,null,null,null,null,null,null,null,null,null,null,null,null,null,null,null,null,25,26,27,28,29,30,31,32,null,null,"Step 2.   Pick a New COLOR# for this year Type the number into AE21(Color B:)"]
["Bath County Public Schools",9,null,10,null,279295,null,"Leadership",null,null,null,null,null,null,null,null,null,null,null,null,null,null,null,null,null,33,34,35,36,37,38,39,40]
["Bedford County Public Schools",10,null,11,null,21762.55,null,"Mentoring/Induction",null,null,null,null,null,null,null,null,null,null,null,null,null,null,null,null,null,41,42,43,44,45,46,47,48,null,null,null,"Step 3.   Refresh the color chart to the left by pessing \"Refresh\""]
["Bland County Public Schools",11,null,12,null,93785.63,null,"Professional Development",null,null,null,null,null,null,null,null,null,null,null,null,null,null,null,null,null,49,50,51,52,53,54,55,56]
["Botetourt County Public Schools",12,null,13,null,101360.06,null,"Recruitment/Retention"]
["Bristol City Public Schools",102,null,14,null,153909.89000000001,null,"Teacher Quality (assessments)"]
["Brunswick County Public Schools",13,null,15,null,101895.81,null,"Other"]
["Buchanan County Public Schools",14,null,16,null,239939.66999999998,null,null,null,null,null,null,null,null,null,null,null,null,null,null,null,null,null,null,null,"Range for Color Change","Tab Name",null,null,null,null,"Color #"]
["Buckingham County Public Schools",15,null,17,null,149600.85,null,null,null,null,null,null,null,null,null,null,null,null,null,null,null,null,null,null,null,null,null,null,null,null,"OldColor A:",20]
["Buena Vista City Public Schools",103,null,18,null,156294.62,null,null,null,null,null,null,null,null,null,null,null,null,null,null,null,null,null,null,null,"A:R","Narrative",null,null,null,"NewColor B:",40,null,null,null,null,null,"Step 4.   Refresh the color from Color A:  to Color B: for all Tabs listed"]
["Campbell County Public Schools",16,null,19,null,29456.26,null,null,null,null,null,null,null,null,null,null,null,null,null,null,null,null,null,null,null,"A:S","Budget Summary"]
["Caroline County Public Schools",17,null,20,null,111117.6,null,null,null,null,null,null,null,null,null,null,null,null,null,null,null,null,null,null,null,"A:R","Transferability"]
["Carroll County Public Schools",18,null,21,null,1301463.98,null,null,null,null,null,null,null,null,null,null,null,null,null,null,null,null,null,null,null,"A:R","Teacher Quality"]
["Charles City County Public Schools",19,null,22,null,38542.259999999995,null,null,null,null,null,null,null,null,null,null,null,null,null,null,null,null,null,null,null,"A:Q","Private Schools"]
["Charlotte County Public Schools",20,null,23,null,26593.51,null,null,null,null,null,null,null,null,null,null,null,null,null,null,null,null,null,null,null,"A:R","GEPA"]
["Charlottesville City Public Schools",104,null,24,null,245023.84999999998,null,null,null,null,null,null,null,null,null,null,null,null,null,null,null,null,null,null,null,"A:R","Expenditure Descriptions"]
["Chesapeake City Public Schools",136,null,25,null,64854.229999999996,null,null,null,null,null,null,null,null,null,null,null,null,null,null,null,null,null,null,null,"A:R","General Assurances"]
["Chesterfield County Public Schools",21,null,26,null,110410.90000000001,null,null,null,null,null,null,null,null,null,null,null,null,null,null,null,null,null,null,null,"A:R","Program Specific Assurances"]
["Clarke County Public Schools",22,null,27,null,136087.1]
["Colonial Beach Town Public Schools",202,null,28,null,70250.77]
["Colonial Heights City Public Schools",106,null,29,null,3766358.5399999996]
["Covington City Public Schools",107,null,30,null,202457.16999999998]
["Craig County Public Schools",23,null,31,null,77731.070000000007]
["Culpeper County Public Schools",24,null,32,null,87534.41]
["Cumberland County Public Schools",25,null,33,null,275297.77999999997]
["Danville City Public Schools",108,null,34,null,325078.63]
["Department Of Juvenile Justice",917,null,35,null,84669.55]
["Dickenson County Public Schools",26,null,36,null,154047.31]
["Dinwiddie County Public Schools",27,null,37,null,56238.369999999995]
["Emporia City Public Schools",138,null,38,null,100969.39]
["Essex County Public Schools",28,null,39,null,91631.25]
["Fairfax City Public Schools",134,null,40,null,134105.01999999999]
["Fairfax County Public Schools",29,null,41,null,243963.62]
["Falls Church City Public Schools",109,null,42,null,261013.97999999998]
["Fauquier County Public Schools",30,null,43,null,1505047.15]
["Floyd County Public Schools",31,null,44,null,326025.81]
["Fluvanna County Public Schools",32,null,45,null,8358.08]
["Franklin City Public Schools",135,null,46,null,189036.71]
["Franklin County Public Schools",33,null,47]
["Frederick County Public Schools",34,null,48,null,91131.41]
["Fredericksburg City Public Schools",110,null,49,null,34007.369999999995]
["Galax City Public Schools",111,null,50,null,55313.569999999992]
["Giles County Public Schools",35,null,51,null,58609.02]
["Gloucester County Public Schools",36,null,52,null,220646.27000000002]
["Goochland County Public Schools",37,null,53,null,947075.21]
["Grayson County Public Schools",38,null,54,null,162410.28]
["Greene County Public Schools",39,null,55,null,85119.05]
["Greensville County Public Schools",40,null,56,null,62514.55]
["Halifax County Public Schools",41,null,57,null,34384.28]
["Hampton City Public Schools",112,null,58,null,200573.22]
["Hanover County Public Schools",42,null,59,null,57724.979999999996]
["Harrisonburg City Public Schools",113,null,60,null,322538.5]
["Henrico County Public Schools",43,null,62,null,73348.759999999995]
["Henry County Public Schools",44,null,63,null,63416.37]
["Highland County Public Schools",45,null,65,null,96440.66]
["Hopewell City Public Schools",114,null,66,null,65777.849999999991]
["Isle Of Wight County Public Schools",46,null,67,null,110470.34]
["James City County Public Schools",47,null,68,null,172475.69]
["James Madison University",871,null,69,null,125007.02]
["King And Queen County Public Schools",49,null,70,null,103096.77]
["King George County Public Schools",48,null,71,null,372041.36]
["King William County Public Schools",50,null,72,null,69007.05]
["Lancaster County Public Schools",51,null,73,null,132775.39000000001]
["Lee County Public Schools",52,null,74,null,147002.08000000002]
["Lexington City Public Schools",137,null,75,null,1828328.3900000001]
["Loudoun County Public Schools",53,null,77,null,185086.36000000002]
["Louisa County Public Schools",54,null,78,null,26925.120000000003]
["Lunenburg County Public Schools",55,null,79,null,45669.96]
["Lynchburg City Public Schools",115,null,80,null,266971.99]
["Madison County Public Schools",56,null,81,null,97356.98]
["Manassas City Public Schools",143,null,82,null,345938.94]
["Manassas Park City Public Schools",144,null,83,null,160408.48000000001]
["Martinsville City Public Schools",116,null,84,null,119655.64000000001]
["Mathews County Public Schools",57,null,85,null,221371.93]
["Mecklenburg County Public Schools",58,null,86,null,191397.15]
["Middlesex County Public Schools",59,null,87,null,97820.22]
["Montgomery County Public Schools",60,null,88,null,572335.94999999995]
["Nelson County Public Schools",62,null,89,null,511856.70999999996]
["New Kent County Public Schools",63,null,90,null,30999.17]
["Newport News City Public Schools",117,null,91,null,70633.290000000008]
["Norfolk City Public Schools",118,null,92,null,350276.41000000003]
["Northampton County Public Schools",65,null,93,null,193710.47000000003]
["Northumberland County Public Schools",66,null,94,null,256345.58000000002]
["Norton City Public Schools",119,null,95,null,101958.75]
["Nottoway County Public Schools",67,null,96,null,288025.20999999996]
["Orange County Public Schools",68,null,97,null,162694.07999999999]
["Page County Public Schools",69,null,98,null,190408.44]
["Patrick County Public Schools",70,null,101,null,594724.39]
["Petersburg City Public Schools",120,null,102,null,155194.43]
["Pittsylvania County Public Schools",71,null,103,null,48789.81]
["Poquoson City Public Schools",142,null,104,null,256386.58000000002]
["Portsmouth City Public Schools",121,null,106,null,95942.549999999988]
["Powhatan County Public Schools",72,null,107,null,37241.71]
["Prince Edward County Public Schools",73,null,108,null,463274.43]
["Prince George County Public Schools",74,null,109,null,29840.940000000002]
["Prince William County Public Schools",75,null,110,null,219768.58]
["Pulaski County Public Schools",77,null,111,null,71797.179999999993]
["Radford City Public Schools",122,null,112,null,855380.47999999998]
["Rappahannock County Public Schools",78,null,113,null,240744.21999999997]
["Richmond City Public Schools",123,null,114,null,248900.56]
["Richmond County Public Schools",79,null,115,null,446630.45]
["Roanoke City Public Schools",124,null,116,null,140790.82]
["Roanoke County Public Schools",80,null,117,null,1351508.5]
["Rockbridge County Public Schools",81,null,118,null,1833257.12]
["Rockingham County Public Schools",82,null,119,null,36074.67]
["Russell County Public Schools",83,null,120,null,328248.77999999997]
["Salem City Public Schools",139,null,121,null,888314.88]
["Scott County Public Schools",84,null,122,null,60723.4]
["Shenandoah County Public Schools",85,null,123,null,1422841.52]
["Smyth County Public Schools",86,null,124,null,936412.66]
["Southampton County Public Schools",87,null,126,null,123476.51000000001]
["Spotsylvania County Public Schools",88,null,127,null,502803.99]
["Stafford County Public Schools",89,null,128,null,1692578.35]
["State Operated Programs",901,null,130,null,149839.57999999999]
["Staunton City Public Schools",126,null,131,null,274517.46000000002]
["Suffolk City Public Schools",127,null,132,null,183975.38]
["Surry County Public Schools",90,null,134]
["Sussex County Public Schools",91,null,135,null,99199.26]
["Tazewell County Public Schools",92,null,136,null,1143278.83]
["Va Beach City Public Schools",128,null,137,null,17452.28]
["Va Dept Of Correctional Education",900,null,138]
["VSDB Staunton",218,null,139,null,104636.79999999999]
["Warren County Public Schools",93,null,142,null,34127.24]
["Washington County Public Schools",94,null,143,null,225634.53]
["Waynesboro City Public Schools",130,null,144,null,72773.259999999995]
["West Point Town Public Schools",207,null,202,null,36061.450000000004]
["Westmoreland County Public Schools",95,null,207,null,11483.439999999999]
["Williamsburg City Public Schools",131,null,218,null,2964.65]
["Winchester City Public Schools",132,null,871]
["Wise County Public Schools",96,null,900]
["Wythe County Public Schools",97,null,901]
["York County Public Schools",98,null,917,null,4361.6500000000005]